﻿TitleID,StatuteID,Description,ChapterID,ArticleID,SectionID,DrillDownID,CRCTIndicator,ClericalID,JudicialID,DefaultAmount,DefaultBondAmount,OverdueTypeID,FeeCategoryID,SpeedSchedule,AppearanceRequired,Textbox23,DegreeID,BondTypeID,Enhancement,EffectiveDate,ExpirationDate
Title:  1,1-2-104 a,FALSELY CERTIFY  DOCUMT,2,104,a,,CR,FEL,FEL,0.00,0.00,CRIMINAL,CLSACOSTS,,Y,,F,,,2010.07.01,9999.12.31
Title:  6,6-2-101 d,MURDER OF AN UNBORN CHILD - 1ST DEGREE,2,101,d,,CR,FEL,FEL,0.00,0.00,CRIMINAL,CLSACV150,,Y,,F,,,2021.07.01,9999.12.31
Title:  6,6-2-104,MURDER: 2ND DEGREE,2,104,,,CR,FEL,FEL,0.00,0.00,CRIMINAL,CLSACV150,,Y,,F,,,2010.07.01,2021.06.30
Title:  6,6-2-104 a,MURDER: 2ND DEGREE,2,104,a,,CR,FEL,FEL,0.00,0.00,CRIMINAL,CLSACV150,,Y,,F,,,2021.07.01,9999.12.31
Title:  6,6-2-104 b,MURDER OF AN UNBORN CHILD - 2ND DEGREE,2,104,b,,CR,FEL,FEL,0.00,0.00,CRIMINAL,CLSACV150,,Y,,F,,,2021.07.01,9999.12.31
Title:  6,6-2-202 ai,FELONIOUS RESTRAINT: EXPOSE VM TO RISK,2,202,ai,,CR,FEL,FEL,0.00,0.00,CRIMINAL,CLSACV150,,Y,,F,,,2010.07.01,9999.12.31
Title:  6,6-2-202 aii,FELONIOUS RESTRAINT: INVOLUNTARY SERVITUDE,2,202,aii,,CR,FEL,FEL,0.00,0.00,CRIMINAL,CLSACV150,,Y,,F,,,2010.07.01,9999.12.31
Title:  6,6-2-204 ai(di),INTERFERE W/ CUSTODY: NOT A PARENT,2,204,ai(di),,CR,FEL,FEL,0.00,0.00,CRIMINAL,CLSACV150,,Y,,F,,,2012.11.09,9999.12.31
Title:  6,6-2-204 ai(dii),"INTERFERE W/ CUSTODY: CONCEAL, HARBOR",2,204,ai(dii),,CR,FEL,FEL,0.00,0.00,CRIMINAL,CLSACV150,,Y,,F,,,2012.11.09,9999.12.31
Title:  6,6-2-204 ai(e),INTERFERE W/ CUSTODY,2,204,ai(e),,CR,FEL,FEL,0.00,0.00,CRIMINAL,CLSACV150,,Y,,F,,,2012.11.09,9999.12.31
Title:  6,6-2-204 aii(di),FAIL TO RETURN: NOT A PARENT,2,204,aii(di),,CR,FEL,FEL,0.00,0.00,CRIMINAL,CLSACV150,,Y,,F,,,2012.11.09,9999.12.31
Title:  6,6-2-204 aii(dii),FAIL TO RETURN: CONCEAL; HARBOR,2,204,aii(dii),,CR,FEL,FEL,0.00,0.00,CRIMINAL,CLSACV150,,Y,,F,,,2012.11.09,9999.12.31
Title:  6,6-2-204 aii(e),FAIL TO RETURN,2,204,aii(e),,CR,FEL,FEL,0.00,0.00,CRIMINAL,CLSACV150,,Y,,F,,,2012.11.09,9999.12.31
Title:  6,6-2-304 aix,"SEXUAL ASSAULT:  2ND DEGREE - EMPLOYEE/VOLUNTEER OF ELEMENTARY, SECONDARY OR PRIVATE SCHOOL",2,304,aix,,CR,FEL,FEL,0.00,0.00,CRIMINAL,CLSACV150,,Y,,F,,,2017.07.01,9999.12.31
Title:  6,6-2-313 a,SEXUAL BATTERY,2,313,a,,CT,OMD,MM,0.00,0.00,CRIMINAL,CLSACV150,,Y,,M,,,2010.07.01,9999.12.31
Title:  6,6-2-314 ai,SEX ABUSE/MINOR 1ST DEG-ACTR 16/OLDR-INTRSN VIC<13 ,2,314,ai,,CR,FEL,FEL,0.00,0.00,CRIMINAL,CLSACV150,,Y,,F,,,2010.07.01,9999.12.31
Title:  6,6-2-314 aii,SEX ABUSE/MINOR 1ST DEG-ACTR=TO>18-INTRSN VIC<18; ACTR VIC'S GUARDIAN ,2,314,aii,,CR,FEL,FEL,0.00,0.00,CRIMINAL,CLSACV150,,Y,,F,,,2010.07.01,9999.12.31
Title:  6,6-2-314 aiii,SEX ABUSE/MINOR 1ST DEG-ACTR=TO> 18/INTRSN VIC<16 & ACTR IN POSITN/AUTHRTY ,2,314,aiii,,CR,FEL,FEL,0.00,0.00,CRIMINAL,CLSACV150,,Y,,F,,,2010.07.01,9999.12.31
Title:  6,6-2-315 ai,SEX ABUSE/MINOR 2ND DEG-ACTR =TO>17/INTRSN VIC 13-15; VIC 4 YRS YNGR/ACTR,2,315,ai,,CR,FEL,FEL,0.00,0.00,CRIMINAL,CLSACV150,,Y,,F,,,2010.07.01,9999.12.31
Title:  6,6-2-315 aii,SEX ABUSE/MINOR 2ND DEG-ACTR =TO>16/SXL CNTCT VIC<13,2,315,aii,,CR,FEL,FEL,0.00,0.00,CRIMINAL,CLSACV150,,Y,,F,,,2010.07.01,9999.12.31
Title:  6,6-2-315 aiii,SEX ABUSE/MINOR 2ND DEG-ACTR =TO>18/SXL CNTCT VIC<18 & ACTR VIC'S GUARDIAN,2,315,aiii,,CR,FEL,FEL,0.00,0.00,CRIMINAL,CLSACV150,,Y,,F,,,2010.07.01,9999.12.31
Title:  6,6-2-315 aiv,SEX ABUSE/MINOR 2ND DEG-ACTR =TO>18/SXL CNTCT VIC<16 & ACTR IN POSITN/AUTHRTY,2,315,aiv,,CR,FEL,FEL,0.00,0.00,CRIMINAL,CLSACV150,,Y,,F,,,2010.07.01,9999.12.31
Title:  6,6-2-316 ai,SEX ABUSE/MINOR 3RD DEG-ACTR=TO> 17/SXL CNTCT VIC 13-15; VIC 4 YRS YNGR/ACTR,2,316,ai,,CR,FEL,FEL,0.00,0.00,CRIMINAL,CLSACV150,,Y,,F,,,2010.07.01,9999.12.31
Title:  6,6-2-316 aii,SEX ABUSE/MINOR 3RD DEG-ACTR =TO>20/INTRSN VIC 16-17 & AT LST 3 YRS YNGR/ACTR & ACTR IN POSITN/ATHRT,2,316,aii,,CR,FEL,FEL,0.00,0.00,CRIMINAL,CLSACV150,,Y,,F,,,2010.07.01,9999.12.31
Title:  6,6-2-316 aiii,SEX ABUSE/MINOR 3RD DEG-ACTR<16/INTRSN VIC<13 & AT LST 3 YRS YNGR/ACTR,2,316,aiii,,CR,FEL,FEL,0.00,0.00,CRIMINAL,CLSACV150,,Y,,F,,,2010.07.01,9999.12.31
Title:  6,6-2-316 aiv,SEX ABUSE/MINOR 3RD DEG-ACTR =TO>17/IMMRL/INDCNT LBRTIES W/VIC<17 & AT LST 4 YRS YNGR/ACTR,2,316,aiv,,CR,FEL,FEL,0.00,0.00,CRIMINAL,CLSACV150,,Y,,F,,,2010.07.01,9999.12.31
Title:  6,6-2-317 ai,SEX ABUSE/MINOR 4TH DEG - ACTR<16; VIC<13 & 3 YRS YNGR/ACTR,2,317,ai,,CR,FEL,FEL,0.00,0.00,CRIMINAL,CLSACV150,,Y,,F,,,2010.07.01,9999.12.31
Title:  6,6-2-317 aii,SEX ABUSE/MINOR 4TH DEG - ACTR>20 & IN POS OF ATHRTY; VIC 16-17 & 4 YRS YNGR,2,317,aii,,CR,FEL,FEL,0.00,0.00,CRIMINAL,CLSACV150,,Y,,F,,,2010.07.01,9999.12.31
Title:  6,6-2-318,SOLICIT SXL INTRSN/ACTR>18; VIC<14,2,318,,,CR,FEL,FEL,0.00,0.00,CRIMINAL,CLSACV150,,Y,,F,,,2010.07.01,9999.12.31
Title:  6,6-2-503 ai,CHILD ABUSE,2,503,ai,,CR,FEL,FEL,0.00,0.00,CRIMINAL,CLSACV150,,Y,,F,,,2010.07.01,9999.12.31
Title:  6,6-2-503 ai&iiA,CHILD ABUSE: PHYSICAL INJURY - ACTOR 6+ YRS OLDER,2,503,ai&iiA,,CR,FEL,FEL,0.00,0.00,CRIMINAL,CLSACV150,,Y,,F,,,2010.07.01,9999.12.31
Title:  6,6-2-503 ai&iiB,CHILD ABUSE: MENTAL INJURY - ACTOR 6+ YRS OLDER,2,503,ai&iiB,,CR,FEL,FEL,0.00,0.00,CRIMINAL,CLSACV150,,Y,,F,,,2010.07.01,9999.12.31
Title:  6,6-2-503 ai&iiC,CHILD ABUSE: TORTURE OR CRUEL CONFINEMENT - ACTOR 6+ YRS OLDER,2,503,ai&iiC,,CR,FEL,FEL,0.00,0.00,CRIMINAL,CLSACV150,,Y,,F,,N,2015.07.01,9999.12.31
Title:  6,6-2-503 bi,CHILD ABUSE: RESPON FOR WELFARE - PHYSICAL INJURY,2,503,bi,,CR,FEL,FEL,0.00,0.00,CRIMINAL,CLSACV150,,Y,,F,,,2010.07.01,9999.12.31
Title:  6,6-2-503 bii,CHILD ABUSE: RESPON FOR WELFARE - MENTAL INJURY,2,503,bii,,CR,FEL,FEL,0.00,0.00,CRIMINAL,CLSACV150,,Y,,F,,,2010.07.01,9999.12.31
Title:  6,6-2-503 biii,CHILD ABUSE: RESPONSIBLE FOR WELFARE - TORTURE OR CRUEL CONFINEMENT,2,503,biii,,CR,FEL,FEL,0.00,0.00,CRIMINAL,CLSACV150,,Y,,F,,N,2015.07.01,9999.12.31
Title:  6,6-2-503 c,AGGRAVATED CHILD ABUSE,2,503,c,,CR,FEL,FEL,0.00,0.00,CRIMINAL,CLSACV150,,Y,,F,,,2010.07.01,9999.12.31
Title:  6,6-2-504 a,RECKLESS ENDANGERING,2,504,a,,CT,OMD,MM,0.00,0.00,CRIMINAL,CLSACV150,,Y,,M,,,2010.07.01,9999.12.31
Title:  6,6-2-505 a,TERRORISTIC THREATS,2,505,a,,CR,FEL,FEL,0.00,0.00,CRIMINAL,CLSACV150,,Y,,F,,,2010.07.01,9999.12.31
Title:  6,6-2-509 ai,APPLY PRESSURE ON THROAT OR NECK,2,509,ai,,CR,FEL,FEL,0.00,0.00,CRIMINAL,CLSACV150,,Y,,F,,,2011.07.01,9999.12.31
Title:  6,6-2-509 aii,BLOCKING NOSE OR MOUTH,2,509,aii,,CR,FEL,FEL,0.00,0.00,CRIMINAL,CLSACV150,,Y,,F,,,2011.07.01,9999.12.31
Title:  6,6-2-704 a(b),FORCED LABOR OR SERVITUDE,2,704,a(b),,CR,FEL,FEL,0.00,0.00,CRIMINAL,CLSACV150,,Y,,F,,,2013.07.01,9999.12.31
Title:  6,6-2-705 a(b),SEXUAL SERVITUDE OF AN ADULT,2,705,a(b),,CR,FEL,FEL,0.00,0.00,CRIMINAL,CLSACV150,,Y,,F,,,2013.07.01,9999.12.31
Title:  6,6-2-706 a(b),SEXUAL SERVITUDE OF A MINOR,2,706,a(b),,CR,FEL,FEL,0.00,0.00,CRIMINAL,CLSACV150,,Y,,F,,,2013.07.01,9999.12.31
Title:  6,6-2-707 a(b),PATRONIZING A VICTIM OF SEXUAL SERVITUDE,2,707,a(b),,CR,FEL,FEL,0.00,0.00,CRIMINAL,CLSACV150,,Y,,F,,N,2013.07.01,9999.12.31
Title:  6,6-3-105 a,NEGLIGENTLY BURNING PROPERTY,3,105,a,,CT,OMD,MM,0.00,0.00,CRIMINAL,CLSACV150,,Y,,M,,,2015.07.01,9999.12.31
Title:  6,6-3-107,THROW BURNING SUBST FROM VEH,3,107,,,CT,OMD,MF,330.00,330.00,NON-NRVC,CLSACV150,,N,550.00,M,,,2020.07.01,9999.12.31
Title:  6,6-3-111 b,POSSESS EXPLOSIVE DEVICE: PHYSICAL WELL BEING,3,111,b,,CR,FEL,FEL,0.00,0.00,CRIMINAL,CLSACV150,,Y,,F,,,2010.07.01,9999.12.31
Title:  6,6-3-111 c,POSSESS EXPLOSIVE DEVICE: PROP,3,111,c,,CR,FEL,FEL,0.00,0.00,CRIMINAL,CLSACV150,,Y,,F,,,2010.07.01,9999.12.31
Title:  6,6-3-112 a,INJURE FIREFIGHTING EQUIPMT,3,112,a,,CT,OMD,MM,0.00,0.00,CRIMINAL,CLSACV150,,Y,,M,,,2010.07.01,9999.12.31
Title:  6,6-3-202 ai,DISPLACE LANDMRK,3,202,ai,,CT,OMD,MM,0.00,0.00,CRIMINAL,CLSACV150,,Y,,M,,,2010.07.01,9999.12.31
Title:  6,6-3-202 aii,DEFACE LANDMRK,3,202,aii,,CT,OMD,MM,0.00,0.00,CRIMINAL,CLSACV150,,Y,,M,,,2010.07.01,9999.12.31
Title:  6,6-3-202 aiii,"BREAK, CUT DOWN, OR REMOVE LANDMRK",3,202,aiii,,CT,OMD,MM,0.00,0.00,CRIMINAL,CLSACV150,,Y,,M,,,2010.07.01,9999.12.31
Title:  6,6-3-203 ai,CRUELTY TO ANIMALS:  KNOWINGLY OVERRIDE OR OVERLOAD ANIMAL,3,203,ai,,CT,OMD,MM,0.00,0.00,CRIMINAL,CLSACV150,,Y,,M,,,2019.07.01,2021.06.30
Title:  6,6-3-203 aii,CRUELTY TO ANIMALS:  KNOWINGLY BEATS OR INJURES ANIMAL,3,203,aii,,CR,OMD,MM,0.00,0.00,CRIMINAL,CLSACV150,,Y,,M,,,2019.07.01,2021.06.30
Title:  6,6-3-203 aiii,CRUELTY TO ANIMALS: KNOWINGLY CARRY ANIMAL SO AS TO POSE UNDUE RISK OF INJURY OR DEATH,3,203,aiii,,CT,OMD,MM,0.00,0.00,CRIMINAL,CLSACV150,,Y,,M,,,2019.07.01,2021.06.30
Title:  6,6-3-203 b,"CRUELTY TO ANIMALS:  FAIL TO PROVIDE ANIMAL WITH FOOD, DRINK OR PROTECTION/ABANDON ANIMAL",3,203,b,,CT,OMD,MF,330.00,330.00,NON-NRVC,CLSACV150,,N,550.00,M,,,2020.07.01,2021.06.30
Title:  6,6-3-203 cii(e),AGGRAVATED CRUELTY: EXHIBITION FIGHTING - NO DEATH OF ANIMAL,3,203,cii(e),,CT,OMD,MM,0.00,0.00,CRIMINAL,CLSACV150,,Y,,M,,,2020.07.01,2021.06.30
Title:  6,6-3-203 cii(ni),AGGRAVATED CRUELTY: EXHIBITION FIGHTING CAUSING DEATH OF ANIMAL,3,203,cii(ni),,CR,FEL,FEL,0.00,0.00,CRIMINAL,CLSACV150,,Y,,F,,,2020.07.01,2021.06.30
Title:  6,6-3-203 civ(e),AGGRAVATED CRUELTY: CAUSE ANIMAL TO FIGHT FOR GAIN - NO DEATH OF ANIMAL,3,203,civ(e),,CT,OMD,MM,0.00,0.00,CRIMINAL,CLSACV150,,Y,,M,,,2020.07.01,2021.06.30
Title:  6,6-3-203 civ(ni),AGGRAVATED CRUELTY: CAUSE ANIMAL TO FIGHT FOR GAIN CAUSING DEATH OF ANIMAL,3,203,civ(ni),,CR,FEL,FEL,0.00,0.00,CRIMINAL,CLSACV150,,Y,,F,,,2020.07.01,2021.06.30
Title:  6,6-3-203 cv(e),AGGRAVATED CRUELTY: PERMIT EXHIBITION OF FIGHTING ON PREMISES - NO DEATH OF ANIMAL,3,203,cv(e),,CT,OMD,MM,0.00,0.00,CRIMINAL,CLSACV150,,Y,,M,,,2020.07.01,2021.06.30
Title:  6,6-3-203 cv(ni),AGGRAVATED CRUELTY: PERMIT EXHIBITION OF FIGHTING ON PREMISES CAUSING DEATH OF ANIMAL,3,203,cv(ni),,CR,FEL,FEL,0.00,0.00,CRIMINAL,CLSACV150,,Y,,F,,,2020.07.01,2021.06.30
Title:  6,6-3-203 cvi(e),AGGRAVATED CRUELTY: PROMOTE EXHIBITION OF FIGHTING - NO DEATH OF ANIMAL,3,203,cvi(e),,CT,OMD,MM,0.00,0.00,CRIMINAL,CLSACV150,,Y,,M,,,2020.07.01,2021.06.30
Title:  6,6-3-203 cvi(ni),AGGRAVATED CRUELTY: PROMOTE EXHIBITION OF FIGHTING CAUSING DEATH OF ANIMAL,3,203,cvi(ni),,CR,FEL,FEL,0.00,0.00,CRIMINAL,CLSACV150,,Y,,F,,,2020.07.01,2021.06.30
Title:  6,6-3-203 cvii(e),"AGGRAVATED CRUELTY: SHOOT, POISON OR INTENTIONALLY INJURE ANOTHER'S ANIMAL - NO DEATH OF ANIMAL",3,203,cvii(e),,CT,OMD,MM,0.00,0.00,CRIMINAL,CLSACV150,,Y,,M,,,2019.07.01,2021.06.30
Title:  6,6-3-203 cvii(ni),"AGGRAVATED CRUELTY: SHOOT, POISON OR INTENTIONALLY INJURE ANOTHER'S ANIMAL CAUSING DEATH OF ANIMAL",3,203,cvii(ni),,CR,FEL,FEL,0.00,0.00,CRIMINAL,CLSACV150,,Y,,F,,,2020.07.01,2021.06.30
Title:  6,6-3-203 d,DESTROY ANIMAL USING GAS ENGINE,3,203,d,,CT,OMD,MM,0.00,0.00,CRIMINAL,CLSACV150,,Y,,M,,,2010.07.01,2021.06.30
Title:  6,6-3-203 g,ATTEND EXHIBITION FIGHTING,3,203,g,,CT,OMD,MM,0.00,0.00,CRIMINAL,CLSACV150,,Y,,M,,,2010.07.01,2021.06.30
Title:  6,6-3-203 nii,"KNOWINGLY AND CRUELLY BEAT, TORTURE, TORMENT OR MUTILATE ANIMAL W/ INTENT TO CAUSE DEATH/SUFFERING",3,203,nii,,CR,FEL,FEL,0.00,0.00,CRIMINAL,CLSACV150,,Y,,F,,,2019.07.01,2021.06.30
Title:  6,6-3-203 pi,HOUSEHOLD ANIMAL CRUELTY – PHYSICAL HARM,3,203,pi,,CR,OMD,MM,0.00,0.00,CRIMINAL,CLSACV150,,Y,,M,,,2010.07.01,2021.06.30
Title:  6,6-3-203 pii,HOUSEHOLD ANIMAL CRUELTY – PUBLIC HEALTH HAZARD,3,203,pii,,CR,OMD,MM,0.00,0.00,CRIMINAL,CLSACV150,,Y,,M,,,2010.07.01,2021.06.30
Title:  6,6-3-204 a,LITTERING,3,204,a,,CT,OMD,MF,30.00,30.00,NON-NRVC,CLSACV150,,N,D,M,,,2011.07.01,9999.12.31
Title:  6,6-3-204 c,DISPOSE OF CONTAINER W/ BODY FLUIDS ALONG HWY RT OF WAY,3,204,c,,CT,OMD,MF,530.00,530.00,NON-NRVC,CLSACV150,,N,750.00,M,,,2020.07.01,9999.12.31
Title:  6,6-3-205 a,IMPEDING CRITICAL INFRASTRUCTURE: UNDER $1000,3,205,a,,CT,OMD,MM,0.00,0.00,CRIMINAL,CLSACV150,,Y,,M,,,2018.07.01,9999.12.31
Title:  6,6-3-205 b,IMPEDING CRITICAL INFRASTRUCTURE: $1000 OR MORE,3,205,b,,CR,FEL,FEL,0.00,0.00,CRIMINAL,CLSACV150,,Y,,F,,,2018.07.01,9999.12.31
Title:  6,6-3-301 cii,AGGR BURGLARY - KNOWINGLY INFLICT BODILY INJURY,3,301,cii,,CR,FEL,FEL,0.00,0.00,CRIMINAL,CLSACV150,,Y,,F,,,2010.07.01,9999.12.31
Title:  6,6-3-301 ciii,AGGR BURGLARY - ATTEMPT TO INFLICT BODILY INJURY,3,301,ciii,,CR,FEL,FEL,0.00,0.00,CRIMINAL,CLSACV150,,Y,,F,,,2010.07.01,9999.12.31
Title:  6,6-3-302 a,CRIMINAL ENTRY,3,302,a,,CT,OMD,MM,0.00,0.00,CRIMINAL,CLSACV150,,Y,,M,,,2010.07.01,9999.12.31
Title:  6,6-3-303 a,CRIMINAL TRESPASS,3,303,a,,CT,OMD,MM,0.00,0.00,CRIMINAL,CLSACV150,,Y,,M,,,2010.07.01,9999.12.31
Title:  6,6-3-304 a,POSSESS BURGLAR'S TOOLS,3,304,a,,CR,FEL,FEL,0.00,0.00,CRIMINAL,CLSACV150,,Y,,F,,,2010.07.01,9999.12.31
Title:  6,6-3-306,FORCIBLE ENTRY OR DETAINER: LAND,3,306,,,CT,OMD,MM,0.00,0.00,CRIMINAL,CLSACV150,,Y,,M,,,2010.07.01,9999.12.31
Title:  6,6-3-308 a,CRITICAL INFRASTRUCTURE TRESPASS,3,308,a,,CT,OMD,MM,0.00,0.00,CRIMINAL,CLSACV150,,Y,,M,,,2018.07.01,9999.12.31
Title:  6,6-3-414 ai&iiA,TRESPASS TO UNLAWFULLY COLLECT RESOURCE DATA: NOT OWNER OR NO LEGAL AUTHORIZATION,3,414,ai&iiA,,CT,OMD,MM,0.00,0.00,CRIMINAL,CLSACV150,,Y,,M,,N,2015.07.01,9999.12.31
Title:  6,6-3-414 ai&iiB,TRESPASS TO UNLAWFULLY COLLECT RESOURCE DATA: NO WRITTEN OR VERBAL PERMISSION FROM OWNER,3,414,ai&iiB,,CT,OMD,MM,0.00,0.00,CRIMINAL,CLSACV150,,Y,,M,,N,2015.07.01,9999.12.31
Title:  6,6-3-414 bi,UNLAWFULLY COLLECTING RESOURCE DATA: NOT OWNER OR NO LEGAL AUTHORIZATION,3,414,bi,,CT,OMD,MM,0.00,0.00,CRIMINAL,CLSACV150,,Y,,M,,N,2015.07.01,9999.12.31
Title:  6,6-3-414 bii,UNLAWFULLY COLLECT RESOURCE DATA ON PRIVATE LAND:  NO WRITTEN OR VERBAL PERMISSION,3,414,bii,,CT,OMD,MM,0.00,0.00,CRIMINAL,CLSACV150,,Y,,M,,N,2016.07.01,9999.12.31
Title:  6,6-3-414 ci&iiA,TRESPASS TO ACCESS ADJACENT LAND TO COLLECT RESOURCE DATA:  NOT OWNER OR NO AUTHORIZATION,3,414,ci&iiA,,CT,OMD,MM,0.00,0.00,CRIMINAL,CLSACV150,,Y,,M,,N,2016.07.01,9999.12.31
Title:  6,6-3-414 ci&iiB,TRESPASS TO ACCESS ADJACENT LAND TO COLLECT RESOURCE DATA:  NO WRITTEN OR VERBAL PERMISSION,3,414,ci&iiB,,CT,OMD,MM,0.00,0.00,CRIMINAL,CLSACV150,,Y,,M,,N,2016.07.01,9999.12.31
Title:  6,6-3-502 ai(bi),CRIME AGAINST INTELLECT PROP: MODIFY DATA,3,502,ai(bi),,CR,FEL,FEL,0.00,0.00,CRIMINAL,CLSACV150,,Y,,F,,,2012.11.09,9999.12.31
Title:  6,6-3-502 aii(bi),CRIME AGAINST INTELLECT PROP: DESTROY DATA,3,502,aii(bi),,CR,FEL,FEL,0.00,0.00,CRIMINAL,CLSACV150,,Y,,F,,,2012.11.09,9999.12.31
Title:  6,6-3-502 aiii(bi),CRIME AGAINST INTELLECT PROP: DISCLOSE TRADE SECRET,3,502,aiii(bi),,CR,FEL,FEL,0.00,0.00,CRIMINAL,CLSACV150,,Y,,F,,,2012.11.09,9999.12.31
Title:  6,6-3-503 ai,CRIME AGAINST COMPUTER EQUIPMT,3,503,ai,,CT,OMD,MM,0.00,0.00,CRIMINAL,CLSACV150,,Y,,M,,,2010.07.01,9999.12.31
Title:  6,6-3-503 b,INTERRUPT OR IMPAIR GOVERNMT COMPUTER OPERATIONS,3,503,b,,CR,FEL,FEL,0.00,0.00,CRIMINAL,CLSACV150,,Y,,F,,,2010.07.01,9999.12.31
Title:  6,6-3-504 ai(bi),CRIME AGAINST COMPUTER USER,3,504,ai(bi),,CR,FEL,FEL,0.00,0.00,CRIMINAL,CLSACV150,,Y,,F,,,2012.11.09,9999.12.31
Title:  6,6-3-504 aii(bi),DENY COMPUTER SYSTEM SERVICES,3,504,aii(bi),,CR,FEL,FEL,0.00,0.00,CRIMINAL,CLSACV150,,Y,,F,,,2012.11.09,9999.12.31
Title:  6,6-3-506 a(bi),COMPUTER TRESPASS: SYSTEM OR NETWORK DAMAGE OR MALFUNCTION - MISDEMEANOR,3,506,a(bi),,CT,OMD,MM,0.00,0.00,CRIMINAL,CLSACV150,,Y,,M,,N,2014.07.01,9999.12.31
Title:  6,6-3-506 a(bii),COMPUTER TRESPASS: SYSTEM OR NETWORK DAMAGE OR MALFUNCTION - FELONY,3,506,a(bii),,CR,FEL,FEL,0.00,0.00,CRIMINAL,CLSACV150,,Y,,F,,N,2014.07.01,9999.12.31
Title:  6,6-3-507 a,COMPUTER EXTORTION,3,507,a,,CR,FEL,FEL,0.00,0.00,CRIMINAL,CLSACV150,,Y,,F,,,2017.07.01,9999.12.31
Title:  6,6-3-602 aii(b),MAKE WRITING THAT PURPORTS TO BE ANOTHER'S,3,602,aii(b),,CR,FEL,FEL,0.00,0.00,CRIMINAL,CLSACV150,,Y,,F,,,2012.11.09,9999.12.31
Title:  6,6-3-605 ai,OPERATE COIN MACHINE W/ SLUG,3,605,ai,,CT,OMD,MM,0.00,0.00,CRIMINAL,CLSACV150,,Y,,M,,,2010.07.01,9999.12.31
Title:  6,6-3-605 aii,OPERATE COIN MACHINE W/O REQ'D LEGAL TENDER,3,605,aii,,CT,OMD,MM,0.00,0.00,CRIMINAL,CLSACV150,,Y,,M,,,2010.07.01,9999.12.31
Title:  6,6-3-605 b,MANUFAC SLUGS,3,605,b,,CT,OMD,MM,0.00,0.00,CRIMINAL,CLSACV150,,Y,,M,,,2010.07.01,9999.12.31
Title:  6,6-3-610,MISLABEL MERCHANDISE,3,610,,,CT,OMD,MM,0.00,0.00,CRIMINAL,CLSACV150,,Y,,M,,,2010.07.01,9999.12.31
Title:  6,6-3-803 bi(ci),UNLAWFUL SKIMMING: SCANNING DEVICE - 1ST OFFENSE,3,803,bi(ci),,CR,FEL,FEL,0.00,0.00,CRIMINAL,CLSACV150,,Y,,F,,,2012.11.09,9999.12.31
Title:  6,6-3-803 bi(cii),UNLAWFUL SKIMMING: SCANNING DEVICE - 2ND + OFFENSE,3,803,bi(cii),,CR,FEL,FEL,0.00,0.00,CRIMINAL,CLSACV150,,Y,,F,,,2012.11.09,9999.12.31
Title:  6,6-3-803 bii(ci),UNLAWFUL SKIMMING: RE-ENCODER - 1ST OFFENSE,3,803,bii(ci),,CR,FEL,FEL,0.00,0.00,CRIMINAL,CLSACV150,,Y,,F,,,2012.11.09,9999.12.31
Title:  6,6-3-803 bii(cii),UNLAWFUL SKIMMING: RE-ENCODER - 2ND + OFFENSE,3,803,bii(cii),,CR,FEL,FEL,0.00,0.00,CRIMINAL,CLSACV150,,Y,,F,,,2012.11.09,9999.12.31
Title:  6,6-3-902 ai,KNOWINGLY IMPERSONATE A PERSON BY ELECTRONIC MEANS OR SPOOFING TO CAUSE HARM,3,902,ai,,CT,OMD,MM,0.00,0.00,CRIMINAL,CLSACV150,,Y,,M,,,2018.07.01,9999.12.31
Title:  6,6-3-902 aii,KNOWINGLY IMPERSONATE A PERSON BY ELECTRONIC MEANS OR SPOOFING TO HARASS,3,902,aii,,CT,OMD,MM,0.00,0.00,CRIMINAL,CLSACV150,,Y,,M,,,2018.07.01,9999.12.31
Title:  6,6-3-902 aiii,KNOWINGLY IMPERSONATE A PERSON BY ELECTRONIC MEANS OR SPOOFING TO DECEPTIVELY CONTACT ANOTHER,3,902,aiii,,CT,OMD,MM,0.00,0.00,CRIMINAL,CLSACV150,,Y,,M,,,2018.07.01,9999.12.31
Title:  6,6-3-1003 a,ANIMAL ABUSE: DESTROY ANIMAL BY DECOMPRESSION OR GAS CHAMBER,3,1003,a,,CT,OMD,MM,0.00,0.00,CRIMINAL,CLSACV150,,Y,,M,,,2021.07.01,9999.12.31
Title:  6,6-3-1003 b,ANIMAL ABUSE: KNOWINGLY PRESENT AT EXHIBITION OF FIGHTING OF FOWL OR DOGS,3,1003,b,,CT,OMD,MM,0.00,0.00,CRIMINAL,CLSACV150,,Y,,M,,,2021.07.01,9999.12.31
Title:  6,6-3-1003 c,ANIMAL ABUSE: HOUSEHOLD PET CONFINED IN UNSANITARY CONDITIONS,3,1003,c,,CT,OMD,MM,0.00,0.00,CRIMINAL,CLSACV150,,Y,,M,,,2021.07.01,9999.12.31
Title:  6,6-3-1005 ai,AGGRAVATED ANIMAL CRUELTY RESULTING IN DEATH OR EUTHANASIA OF ANIMAL,3,1005,ai,,CR,FEL,FEL,0.00,0.00,CRIMINAL,CLSACV150,,Y,,F,,,2021.07.01,9999.12.31
Title:  6,6-3-1005 aii,"KNOWINGLY CAUSE DEATH OR SUFFERING OF ANIMAL BY BEATING, TORTURING, TORMENTING OR MUTILATING ANIMAL",3,1005,aii,,CR,FEL,FEL,0.00,0.00,CRIMINAL,CLSACV150,,Y,,F,,,2021.07.01,9999.12.31
Title:  6,6-4-103 aiii,PERMIT PLACE TO BE USED FOR PROSTIUTION,4,103,aiii,,CR,FEL,FEL,0.00,0.00,CRIMINAL,CLSACV150,,Y,,F,,,2013.07.01,9999.12.31
Title:  6,6-4-302 ai(bi),PROMOTE OBSCENITY: ADULT,4,302,ai(bi),,CT,OMD,MM,0.00,0.00,CRIMINAL,CLSACV150,,Y,,M,,,2012.11.09,9999.12.31
Title:  6,6-4-302 ai(bii),PROMOTE OBSCENITY: MINOR,4,302,ai(bii),,CT,OMD,MM,0.00,0.00,CRIMINAL,CLSACV150,,Y,,M,,,2012.11.09,9999.12.31
Title:  6,6-4-302 aii(bi),POSSESS OBSCENE MATERIAL: ADULT ,4,302,aii(bi),,CT,OMD,MM,0.00,0.00,CRIMINAL,CLSACV150,,Y,,M,,,2012.11.09,9999.12.31
Title:  6,6-4-302 aii(bii),POSSESS OBSCENE MATERIAL: MINOR,4,302,aii(bii),,CT,OMD,MM,0.00,0.00,CRIMINAL,CLSACV150,,Y,,M,,,2012.11.09,9999.12.31
Title:  6,6-4-302 aiii(bi),DISSEMINATE OBSCENE MATERIAL: ADULT,4,302,aiii(bi),,CT,OMD,MM,0.00,0.00,CRIMINAL,CLSACV150,,Y,,M,,,2012.11.09,9999.12.31
Title:  6,6-4-302 aiii(bii),DISSEMINATE OBSCENE MATERIAL: MINOR,4,302,aiii(bii),,CT,OMD,MM,0.00,0.00,CRIMINAL,CLSACV150,,Y,,M,,,2012.11.09,9999.12.31
Title:  6,6-4-303 bii,EXPLICIT SEXUAL CONDUCT W/ CHILD,4,303,bii,,CR,FEL,FEL,0.00,0.00,CRIMINAL,CLSACV150,,Y,,F,,,2010.07.01,9999.12.31
Title:  6,6-4-304 a,VOYEURISM: CLANDESTINE VIEWING,4,304,a,,CT,OMD,MM,0.00,0.00,CRIMINAL,CLSACV150,,Y,,M,,,2010.07.01,9999.12.31
Title:  6,6-4-304 bi,VOYEURISM: IMAGE CAPTURED OR RECORDED,4,304,bi,,CR,FEL,FEL,0.00,0.00,CRIMINAL,CLSACV150,,Y,,F,,,2010.07.01,9999.12.31
Title:  6,6-4-304 bii,VOYEURISM:  IMAGE UND CLOTHING CAPTURED OR RECORDED,4,304,bii,,CR,FEL,FEL,0.00,0.00,CRIMINAL,CLSACV150,,Y,,F,,,2010.07.01,9999.12.31
Title:  6,6-4-305 bi,DISSEMINATE/POSS NUDE IMAGE OF MINOR 3RD DEGREE:  MINOR PICTURE OF HIMSELF/HERSELF,4,305,bi,,CT,OMD,MM,0.00,0.00,CRIMINAL,CLSACV150,,Y,,M,,,2017.07.01,9999.12.31
Title:  6,6-4-305 bii,DISSEMINATE/POSS NUDE IMAGE OF MINOR 3RD DEGREE:  MINOR INADVERTENTLY HAS IMAGE OF OTHER MINOR,4,305,bii,,CT,OMD,MM,0.00,0.00,CRIMINAL,CLSACV150,,Y,,M,,,2017.07.01,9999.12.31
Title:  6,6-4-305 c,DISSEMINATE/POSS NUDE IMAGE OF MINOR 2ND DEGREE:  MINOR KNOWINGLY HAS IMAGE OF OTHER MINOR,4,305,c,,CT,OMD,MM,0.00,0.00,CRIMINAL,CLSACV150,,Y,,M,,,2017.07.01,9999.12.31
Title:  6,6-4-305 di,DISSEMINATE/POSS NUDE IMAGE OF MINOR 1ST DEGREE:  MINOR THREATEN TO DISSEMINATE NUDE IMAGE OF MINOR,4,305,di,,CT,OMD,MM,0.00,0.00,CRIMINAL,CLSACV150,,Y,,M,,,2017.07.01,9999.12.31
Title:  6,6-4-305 dii,DISSEMINATE/POSS NUDE IMAGE OF MINOR 1ST DEGREE:  MINOR CAPTURES IMAGE OF OTHER MINOR W/O KNOWLEDGE,4,305,dii,,CT,OMD,MM,0.00,0.00,CRIMINAL,CLSACV150,,Y,,M,,,2017.07.01,9999.12.31
Title:  6,6-4-306 b,ACTOR >18 DISSEMINATE INTIMATE IMAGE OF ANOTHER ,4,306,b,,CT,OMD,MM,0.00,0.00,CRIMINAL,CLSACV150,,Y,,M,,,2021.07.01,9999.12.31
Title:  6,6-4-401 a,BIGAMY,4,401,a,,CR,FEL,FEL,0.00,0.00,CRIMINAL,CLSACV150,,Y,,F,,,2010.07.01,9999.12.31
Title:  6,6-4-403 ai (1),ABANDON CHILD - 1ST OFFENSE,4,403,ai,1,CT,OMD,MM,0.00,0.00,CRIMINAL,CLSACV150,,Y,,M,,,2010.07.01,9999.12.31
Title:  6,6-4-403 ai (2),ABANDON CHILD - 2ND OFFENSE,4,403,ai,2,CR,FEL,FEL,0.00,0.00,CRIMINAL,CLSACV150,,Y,,F,,,2010.07.01,9999.12.31
Title:  6,6-4-403 aii (1),ENDANGER CHILD - 1ST OFFENSE,4,403,aii,1,CT,OMD,MM,0.00,0.00,CRIMINAL,CLSACV150,,Y,,M,,,2010.07.01,9999.12.31
Title:  6,6-4-403 aii (2),ENDANGER CHILD - 2ND OFFENSE,4,403,aii,2,CR,FEL,FEL,0.00,0.00,CRIMINAL,CLSACV150,,Y,,F,,,2010.07.01,9999.12.31
Title:  6,6-4-403 biii (1),INDECENT OR OBSCENE ACT IN CHILD'S PRESENCE - 1ST OFFENSE,4,403,biii,1,CT,OMD,MM,0.00,0.00,CRIMINAL,CLSACV150,,Y,,M,,,2010.07.01,9999.12.31
Title:  6,6-4-403 biii (2),INDECENT OR OBSCENE ACT IN CHILD'S PRESENCE - 2ND OFFENSE,4,403,biii,2,CR,FEL,FEL,0.00,0.00,CRIMINAL,CLSACV150,,Y,,F,,,2010.07.01,9999.12.31
Title:  6,6-4-403 bviA (1),USE CHILD IN  DANGEROUS BUS - 1ST OFFENSE,4,403,bviA,1,CT,OMD,MM,0.00,0.00,CRIMINAL,CLSACV150,,Y,,M,,,2012.11.09,9999.12.31
Title:  6,6-4-403 bviA (2),USE CHILD IN DANGEROUS BUS - 2ND OFFENSE,4,403,bviA,2,CR,FEL,FEL,0.00,0.00,CRIMINAL,CLSACV150,,Y,,F,,,2012.11.09,9999.12.31
Title:  6,6-4-403 bviB (1),USE CHILD FOR BEGGING - 1ST OFFENSE,4,403,bviB,1,CT,OMD,MM,0.00,0.00,CRIMINAL,CLSACV150,,Y,,M,,,2012.11.09,9999.12.31
Title:  6,6-4-403 bviB (2),USE CHILD FOR BEGGING - 2ND OFFENSE,4,403,bviB,2,CR,FEL,FEL,0.00,0.00,CRIMINAL,CLSACV150,,Y,,F,,,2012.11.09,9999.12.31
Title:  6,6-4-403 bviC (1),EXHIBIT CHILD'S DEFORMITY - 1ST OFFENSE,4,403,bviC,1,CT,OMD,MM,0.00,0.00,CRIMINAL,CLSACV150,,Y,,M,,,2012.11.09,9999.12.31
Title:  6,6-4-403 bviC (2),EXHIBIT CHILD'S DEFORMITY - 2ND OFFENSE,4,403,bviC,2,CR,FEL,FEL,0.00,0.00,CRIMINAL,CLSACV150,,Y,,F,,,2012.11.09,9999.12.31
Title:  6,6-4-405 ai,"CHILD ABSORB, INHALE OR INGEST METH",4,405,ai,,CR,FEL,FEL,0.00,0.00,CRIMINAL,CLSACV150,,Y,,F,,,2010.07.01,9999.12.31
Title:  6,6-4-405 aii,CHILD IN ROOM WHERE METH IS MANUFAC'D OR SOLD,4,405,aii,,CR,FEL,FEL,0.00,0.00,CRIMINAL,CLSACV150,,Y,,F,,,2010.07.01,9999.12.31
Title:  6,6-4-405 aiii,CHILD WHERE METH MANUFAC'D & HAZARDOUS WASTE STORED,4,405,aiii,,CR,FEL,FEL,0.00,0.00,CRIMINAL,CLSACV150,,Y,,F,,,2010.07.01,9999.12.31
Title:  6,6-4-405 b,"CHILD WHERE METH STORED, INGESTED OR POSSESSED",4,405,b,,CR,FEL,FEL,0.00,0.00,CRIMINAL,CLSACV150,,Y,,F,,,2010.07.01,9999.12.31
Title:  6,6-4-405 c,ENDANGER CHILD; PENALTY,4,405,c,,CR,FEL,FEL,0.00,0.00,CRIMINAL,CLSACV150,,Y,,F,,,2010.07.01,9999.12.31
Title:  6,6-4-406 a,PERMIT HOUSE PARTIES W/MINORS PRESENT,4,406,a,,CT,OMD,MM,0.00,0.00,CRIMINAL,CLSACV150,,Y,,M,,,2010.07.01,9999.12.31
Title:  6,6-4-502 c,MUTILATE OR DISPOSE A DEAD HUMAN BODY IN A HIDDEN LOCATION TO CONCEAL FELONY OFFENSE,4,502,c,,CR,FEL,FEL,0.00,0.00,CRIMINAL,CLSACV150,,Y,,F,,,2017.07.01,9999.12.31
Title:  6,6-4-601 bi,BESTIALITY: ENGAGES IN SEXUAL ACT WITH ANIMAL,4,601,bi,,CR,OMD,MM,0.00,0.00,CRIMINAL,CLSACV150,,Y,,M,,,2021.07.01,9999.12.31
Title:  6,6-4-601 bii,BESTIALITY: AIDS OR ABETS ANOTHER IN SEXUAL ACT WITH ANIMAL,4,601,bii,,CR,OMD,MM,0.00,0.00,CRIMINAL,CLSACV150,,Y,,M,,,2021.07.01,9999.12.31
Title:  6,6-4-601 biii,BESTIALITY: USES PART OF BODY OR OBJECT TO STIMULATE ANIMAL,4,601,biii,,CR,OMD,MM,0.00,0.00,CRIMINAL,CLSACV150,,Y,,M,,,2021.07.01,9999.12.31
Title:  6,6-4-601 biv,BESTIALITY: RECORDS PERSON IN SEXUAL ACT WITH ANIMAL,4,601,biv,,CR,OMD,MM,0.00,0.00,CRIMINAL,CLSACV150,,Y,,M,,,2021.07.01,9999.12.31
Title:  6,6-5-112 ai,INSTITUTION  EMPLOYEE MISTREAT PERSON,5,112,ai,,CR,FEL,FEL,0.00,0.00,CRIMINAL,CLSACV150,,Y,,F,,,2010.07.01,9999.12.31
Title:  6,6-5-112 aii,INSTITUTION OFFICER FAIL TO PERFORM ACT,5,112,aii,,CR,FEL,FEL,0.00,0.00,CRIMINAL,CLSACV150,,Y,,F,,,2010.07.01,9999.12.31
Title:  6,6-5-117,PUB OFFICER DEMAND KICKBACK,5,117,,,CR,FEL,FEL,0.00,0.00,CRIMINAL,CLSACV150,,Y,,F,,,2010.07.01,9999.12.31
Title:  6,6-5-204 a,INTERFERE W/ PEACE OFFICER,5,204,a,,CT,OMD,MM,0.00,0.00,CRIMINAL,CLSACV150,,Y,,M,,,2010.07.01,9999.12.31
Title:  6,6-5-204 b,CAUSE BODILY INJURY TO PEACE OFFICER,5,204,b,,CR,FEL,FEL,0.00,0.00,CRIMINAL,CLSACV150,,Y,,F,,,2010.07.01,9999.12.31
Title:  6,6-5-303 c,FALSE CERTIFICATION,5,303,c,,CR,FEL,FEL,0.00,0.00,CRIMINAL,CLSACV150,,Y,,F,,,2017.07.01,9999.12.31
Title:  6,6-5-402 ai,BID RIGGING: PROVIDE OR RECEIVE BID INFORMATION FOR COMPETITOR,5,402,ai,,CR,FEL,FEL,0.00,0.00,CRIMINAL,CLSACV150,,Y,,F,,,2021.07.01,9999.12.31
Title:  6,6-5-402 aii,BID RIGGING: SUBMIT BID NOT INTENDED TO BE ACCEPTED,5,402,aii,,CR,FEL,FEL,0.00,0.00,CRIMINAL,CLSACV150,,Y,,F,,,2021.07.01,9999.12.31
Title:  6,6-5-403,BID ROTATING,5,403,,,CR,FEL,FEL,0.00,0.00,CRIMINAL,CLSACV150,,Y,,F,,,2021.07.01,9999.12.31
Title:  6,6-5-404 a,PUBLIC SERVANT OPENS SEALED BID,5,404,a,,CR,FEL,FEL,0.00,0.00,CRIMINAL,CLSACV150,,Y,,F,,,2021.07.01,9999.12.31
Title:  6,6-5-404 b,PUBLIC SERVANT DISCLOSES INFORMATION TO THE TERMS OF A SEALED BID,5,404,b,,CR,FEL,FEL,0.00,0.00,CRIMINAL,CLSACV150,,Y,,F,,,2021.07.01,9999.12.31
Title:  6,6-5-405 a,PUBLIC SERVANT CONVEYS INFORMATION TO INFLUENCE BID,5,405,a,,CR,OMD,MM,0.00,0.00,CRIMINAL,CLSACV150,,Y,,M,,,2021.07.01,9999.12.31
Title:  6,6-5-405 b,PUBLIC SERVANT KNOWINGLY INFORMS BIDDER OFFER WILL BE ACCEPTED IF CERTAIN PERSONS ARE INCLUDED,5,405,b,,CR,FEL,FEL,0.00,0.00,CRIMINAL,CLSACV150,,Y,,F,,,2021.07.01,9999.12.31
Title:  6,6-5-405 c,PUBLIC SERVANT AWARDS CONTRACT ON CRITERIA NOT PUBLICLY DISSEMINATED,5,405,c,,CR,FEL,FEL,0.00,0.00,CRIMINAL,CLSACV150,,Y,,F,,,2021.07.01,9999.12.31
Title:  6,6-5-406 ai,KICKBACKS: PROVIDES ,5,406,ai,,CR,OMD,MM,0.00,0.00,CRIMINAL,CLSACV150,,Y,,M,,,2021.07.01,9999.12.31
Title:  6,6-5-406 aii,KICKBACKS: SOLICITS,5,406,aii,,CR,OMD,MM,0.00,0.00,CRIMINAL,CLSACV150,,Y,,M,,,2021.07.01,9999.12.31
Title:  6,6-5-406 aiii,KICKBACKS: INCLUDES AMOUNT OF KICKBACK IN CONTRACT PRICE,5,406,aiii,,CR,OMD,MM,0.00,0.00,CRIMINAL,CLSACV150,,Y,,M,,,2021.07.01,9999.12.31
Title:  6,6-5-407 ai,INSPECTOR BRIBERY: OFFER BRIBE FOR INTENT TO OBTAIN WRONGFUL CERTIFICATION OR COMPLETION,5,407,ai,,CR,FEL,FEL,0.00,0.00,CRIMINAL,CLSACV150,,Y,,F,,,2021.07.01,9999.12.31
Title:  6,6-5-407 aii,INSPECTOR BRIBERY: CONTRACTOR BRIBE FOR INTENT OF INFLUENCING CERTIFICATION OR COMPLETION,5,407,aii,,CR,FEL,FEL,0.00,0.00,CRIMINAL,CLSACV150,,Y,,F,,,2021.07.01,9999.12.31
Title:  6,6-6-209,MAINTAIN PUB NUISANCE,6,209,,,CT,OMD,MM,0.00,0.00,CRIMINAL,CLSACV150,,Y,,M,,,2010.07.01,9999.12.31
Title:  6,6-6-302 a,OBSTRUCTIVE OR DISRUPTIVE CONDUCT WITHIN GOVERNMENTAL FACILITY,6,302,a,,CT,OMD,MM,0.00,0.00,CRIMINAL,COSTSVC50,,Y,,M,,,2017.07.01,9999.12.31
Title:  6,6-8-104 aiv (1),UNLAWFULLY WEARING OR CARRYING A CONCEALED WEAPON - 1ST OFFENSE,8,104,aiv,1,CR,OMD,MM,0.00,0.00,CLSACV150,,,Y,,M,,N,2014.07.01,9999.12.31
Title:  6,6-8-104 aiv (2),UNLAWFULLY WEARING OR CARRYING A CONCEALED WEAPON - 2ND OFFENSE,8,104,aiv,2,CR,FEL,FEL,0.00,0.00,CLSACV150,,,Y,,F,,N,2014.07.01,9999.12.31
Title:  6,6-8-104 ti (1),CARRY CONCEALED WEAPON: LAW ENFORCEMENT AGENCY - 1ST OFF,8,104,ti,1,CT,OMD,MM,0.00,0.00,CRIMINAL,CLSACV150,,Y,,M,,N,2014.07.01,9999.12.31
Title:  6,6-8-104 ti (2),CARRY CONCEALED WEAPON: LAW ENFORCEMENT AGENCY - 2ND OFF,8,104,ti,2,CR,FEL,FEL,0.00,0.00,CRIMINAL,CLSACV150,,Y,,F,,N,2014.07.01,9999.12.31
Title:  6,6-8-104 tii (1),"CARRY CONCEALED WEAPON: DETENTION FACILITY, PRISON OR JAIL - 1ST OFF",8,104,tii,1,CT,OMD,MM,0.00,0.00,CRIMINAL,CLSACV150,,Y,,M,,N,2014.07.01,9999.12.31
Title:  6,6-8-104 tii (2),"CARRY CONCEALED WEAPON: DETENTION FACILITY, PRISON OR JAIL - 2ND OFF",8,104,tii,2,CR,FEL,FEL,0.00,0.00,CRIMINAL,CLSACV150,,Y,,F,,N,2014.07.01,9999.12.31
Title:  6,6-8-104 tiii (1),CARRY CONCEALED WEAPON: ANY COURTROOM - 1ST OFF,8,104,tiii,1,CT,OMD,MM,0.00,0.00,CRIMINAL,CLSACV150,,Y,,M,,N,2014.07.01,9999.12.31
Title:  6,6-8-104 tiii (2),CARRY CONCEALED WEAPON: ANY COURTROOM - 2ND OFF,8,104,tiii,2,CR,FEL,FEL,0.00,0.00,CRIMINAL,CLSACV150,,Y,,F,,N,2014.07.01,9999.12.31
Title:  6,6-8-104 tiv (1),CARRY CONCEALED WEAPON: MEETING OF GOVERNMENTAL ENTITY - 1ST OFF,8,104,tiv,1,CT,OMD,MM,0.00,0.00,CRIMINAL,CLSACV150,,Y,,M,,N,2014.07.01,9999.12.31
Title:  6,6-8-104 tiv (2),CARRY CONCEALED WEAPON: MEETING OF GOVERNMENTAL ENTITY - 2ND OFF,8,104,tiv,2,CR,FEL,FEL,0.00,0.00,CRIMINAL,CLSACV150,,Y,,F,,N,2014.07.01,9999.12.31
Title:  6,6-8-104 tix (2),CARRY CONCEALED WEAPON: ELEMENTARY OR SECONDARY SCHOOL FACILITY - 2ND OFF,8,104,tix,2,CR,FEL,FEL,0.00,0.00,CRIMINAL,CLSACV150,,Y,,F,,N,2014.07.01,9999.12.31
Title:  6,6-8-104 tv (1),CARRY CONCEALED WEAPON: ANY LEGISLATURE OR COMMITTEE MEETING - 1ST OFF,8,104,tv,1,CT,OMD,MM,0.00,0.00,CRIMINAL,CLSACV150,,Y,,M,,N,2014.07.01,9999.12.31
Title:  6,6-8-104 tv (2),CARRY CONCEALED WEAPON: ANY LEGISLATURE OR COMMITTEE MEETING - 2ND OFF,8,104,tv,2,CR,FEL,FEL,0.00,0.00,CRIMINAL,CLSACV150,,Y,,F,,N,2014.07.01,9999.12.31
Title:  6,6-8-104 tvi (2),"CARRY CONCEALED WEAPON: SCHOOL, COLLEGE, PROF ATHLETIC EVENT - 2ND OFF",8,104,tvi,2,CR,FEL,FEL,0.00,0.00,CRIMINAL,CLSACV150,,Y,,F,,N,2014.07.01,9999.12.31
Title:  6,6-8-104 tvii (2),CARRY CONCEALED WEAPON: ANY LICENSED ESTABLISHMENT DISPENSE ALCOHOL - 2ND OFF,8,104,tvii,2,CR,FEL,FEL,0.00,0.00,CRIMINAL,CLSACV150,,Y,,F,,N,2014.07.01,9999.12.31
Title:  6,6-8-104 tviii (2),CARRY CONCEALED WEAPON: PLACE OF PUBLIC WORSHIP - 2ND OFF,8,104,tviii,2,CR,FEL,FEL,0.00,0.00,CRIMINAL,CLSACV150,,Y,,F,,N,2014.07.01,9999.12.31
Title:  6,6-8-104 tx (2),CARRY CONCEALED WEAPON: COLLEGE OR UNIVERSITY FACILITY - 2ND OFF,8,104,tx,2,CR,FEL,FEL,0.00,0.00,CRIMINAL,CLSACV150,,Y,,F,,N,2014.07.01,9999.12.31
Title:  6,6-8-104 txi (2),CARRY CONCEALED WEAPON: PLACE PROHIBITED BY FEDERAL/STATE LAW - 2ND OFF,8,104,txi,2,CR,FEL,FEL,0.00,0.00,CRIMINAL,CLSACV150,,Y,,F,,N,2014.07.01,9999.12.31
Title:  6,6-8-104 tix (1),CARRY CONCEALED WEAPON: ELEMENTARY OR SECONDARY SCHOOL FACILITY - 1ST OFF,8,1047,tix,1,CT,OMD,MM,0.00,0.00,CRIMINAL,CLSACV150,,Y,,M,,N,2014.07.01,9999.12.31
Title:  6,6-8-104 tvii (1),CARRY CONCEALED WEAPON: ANY LICENSED ESTABLISHMENT DISPENSE ALCOHOL - 1ST OFF,8,1047,tvii,1,CT,OMD,MM,0.00,0.00,CRIMINAL,CLSACV150,,Y,,M,,N,2014.07.01,9999.12.31
Title:  6,6-8-104 tviii (1),CARRY CONCEALED WEAPON: PLACE OF PUBLIC WORSHIP - 1ST OFF,8,1047,tviii,1,CT,OMD,MM,0.00,0.00,CRIMINAL,CLSACV150,,Y,,M,,N,2014.07.01,9999.12.31
Title:  6,6-8-104 txi (1),CARRY CONCEALED WEAPON: PLACE PROHIBITED BY FEDERAL/STATE LAW - 1ST OFF,8,1047,txi,1,CT,OMD,MM,0.00,0.00,CRIMINAL,CLSACV150,,Y,,M,,N,2014.07.01,9999.12.31
Title:  6,6-9-201 ai,SKI ON SLOPE OR TRAIL POSTED AS CLOSED,9,201,ai,,CT,OMD,MM,0.00,0.00,CRIMINAL,CLSACV150,,Y,,M,,,2010.07.01,9999.12.31
Title:  6,6-9-201 aii,ENTER CLOSED PUB OR PRIVATE LANDS,9,201,aii,,CT,OMD,MM,0.00,0.00,CRIMINAL,CLSACV150,,Y,,M,,,2010.07.01,9999.12.31
Title:  6,6-9-201 aiiiA,USE UNSAFE STATE OR FED LEASED LAND,9,201,aiiiA,,CR,OMD,MM,0.00,0.00,CRIMINAL,CLSACV150,,Y,,M,,,2010.07.01,9999.12.31
Title:  6,6-9-201 aiiiB,USE POSTED STATE OR FED LEASED LAND,9,201,aiiiB,,CT,OMD,MM,0.00,0.00,CRIMINAL,CLSACV150,,Y,,M,,,2010.07.01,9999.12.31
Title:  7,7-19-302 n (1),SEX OFFENDER - FAIL TO CHANGE REGISTERED INFORMATION W/IN 3 DAYS - 1ST OFFENSE,19,302, n,1,CR,FEL,FEL,0.00,0.00,CRIMINAL,CLSACOSTS,,Y,,F,,N,2014.07.01,9999.12.31
Title:  7,7-19-302 n (2),SEX OFFENDER - FAIL TO CHANGE REGISTERED INFORMATION W/IN 3 DAYS - SUBSEQUENT,19,302, n,2,CR,FEL,FEL,0.00,0.00,CRIMINAL,CLSACOSTS,,Y,,F,,N,2014.07.01,9999.12.31
Title:  7,7-19-302 a (1),FAIL TO REGIS AS SEX OFFENDER - 1ST OFFENSE,19,302,a,1,CR,FEL,FEL,0.00,0.00,CRIMINAL,CLSACOSTS,,Y,,F,,,2015.07.01,9999.12.31
Title:  7,7-19-302 a (2),FAIL TO REGIS AS SEX OFFENDER - SUBSEQUENT OFFENSE,19,302,a,2,CR,FEL,FEL,0.00,0.00,CRIMINAL,CLSACOSTS,,Y,,F,,,2010.07.01,9999.12.31
Title:  7,7-19-302 d (1),NONRESIDENT FAIL TO REGIS AS SEX OFFENDER IF EMPLOYED OR STUDENT IN STATE - 1ST OFFENSE,19,302,d,1,CR,FEL,FEL,0.00,0.00,CRIMINAL,CLSACOSTS,,Y,,F,,,2019.07.01,9999.12.31
Title:  7,7-19-302 d (2),NONRESIDENT FAIL TO REGIS AS SEX OFFENDER IF EMPLOYED OR STUDENT IN STATE – SUBSEQUENT,19,302,d,2,CR,FEL,FEL,0.00,0.00,CRIMINAL,CLSACOSTS,,Y,,F,,,2019.07.01,9999.12.31
Title:  7,7-19-302 e (1),FAIL TO NOTIFY CHANGE OF ADDRESS - 1ST OFFENSE,19,302,e,1,CR,FEL,FEL,0.00,0.00,CRIMINAL,CLSACOSTS,,Y,,F,,,2015.07.01,9999.12.31
Title:  7,7-19-302 e (2),FAIL TO NOTIFY CHANGE OF ADDRESS - SUBSEQUENT OFFENSE,19,302,e,2,CR,FEL,FEL,0.00,0.00,CRIMINAL,CLSACOSTS,,Y,,F,,,2010.07.01,9999.12.31
Title:  7,7-19-302 f (1),FAIL TO REG/CHG ADDRESS AS SEX OFF - OUT OF STATE - 1ST OFFENSE,19,302,f,1,CR,FEL,FEL,0.00,0.00,CRIMINAL,CLSACOSTS,,Y,,F,,,2015.07.01,9999.12.31
Title:  7,7-19-302 f (2),FAIL TO REG/CHG ADDRESS AS SEX OFF - OUT OF STATE - SUBSEQUENT,19,302,f,2,CR,FEL,FEL,0.00,0.00,CRIMINAL,CLSACOSTS,,Y,,F,,,2010.07.01,9999.12.31
Title:  7,7-19-302 g (1),SEX OFFENDER - FAIL TO REPORT IN PERSON FOR PHOTO - 1ST OFFENSE,19,302,g,1,CR,FEL,FEL,0.00,0.00,CRIMINAL,CLSACOSTS,,Y,,F,,,2015.07.01,9999.12.31
Title:  7,7-19-302 g (2),SEX OFFENDER - FAIL TO REPORT IN PERSON FOR PHOTO - SUBSEQUENT OFFENSE,19,302,g,2,CR,FEL,FEL,0.00,0.00,CRIMINAL,CLSACOSTS,,Y,,F,,,2015.07.01,9999.12.31
Title:  7,7-19-302 h (1),SEX OFFENDER - FAIL TO REPORT EVERY 6 MONTHS - 1ST OFFENSE,19,302,h,1,CR,FEL,FEL,0.00,0.00,CRIMINAL,CLSACOSTS,,Y,,F,,,2015.07.01,9999.12.31
Title:  7,7-19-302 h (2),SEX OFFENDER - FAIL TO REPORT EVERY 6 MONTHS - SUBSEQUENT OFFENSE,19,302,h,2,CR,FEL,FEL,0.00,0.00,CRIMINAL,CLSACOSTS,,Y,,F,,,2015.07.01,9999.12.31
Title:  7,7-19-302 j (1),SEX OFFENDER - FAIL TO REPORT EVERY 3 MONTHS - 1ST OFFENSE,19,302,j,1,CR,FEL,FEL,0.00,0.00,CRIMINAL,CLSACOSTS,,Y,,F,,,2015.07.01,9999.12.31
Title:  7,7-19-302 j (2),SEX OFFENDER - FAIL TO REPORT EVERY 3 MONTHS - SUBSEQUENT OFFENSE,19,302,j,2,CR,FEL,FEL,0.00,0.00,CRIMINAL,CLSACOSTS,,Y,,F,,,2015.07.01,9999.12.31
Title:  7,7-19-302 k (1),SEX OFFENDER - FAIL TO NOTIFY CHG OF EMPLOYMENT/ENROLL STATUS AT EDUCATION INSTITUTION - 1ST OFFENSE,19,302,k,1,CR,FEL,FEL,0.00,0.00,CRIMINAL,CLSACOSTS,,Y,,F,,N,2014.07.01,9999.12.31
Title:  7,7-19-302 k (2),SEX OFFENDER - FAIL TO NOTIFY CHG OF EMPLOYMENT/ENROLL STATUS AT EDUCATION INSTITUTION - SUBSEQUENT,19,302,k,2,CR,FEL,FEL,0.00,0.00,CRIMINAL,CLSACOSTS,,Y,,F,,N,2014.07.01,9999.12.31
Title:  7,7-19-302 m (1),SEX OFFENDER - FAIL TO DISCLOSE CHG OF EMPLOYMENT - 1ST OFFENSE,19,302,m,1,CR,FEL,FEL,0.00,0.00,CRIMINAL,CLSACOSTS,,Y,,F,,,2014.07.01,9999.12.31
Title:  7,7-19-302 m (2),SEX OFFENDER - FAIL TO DISCLOSE CHG OF EMPLOYMENT - SUBSEQUENT OFFENSE,19,302,m,2,CR,FEL,FEL,0.00,0.00,CRIMINAL,CLSACOSTS,,Y,,F,,,2014.07.01,9999.12.31
Title:  7,7-19-302 q (1),SEX OFFENDER - FAIL TO NOTIFY 21 DAYS BEFORE TRAVELING OUTSIDE UNITED STATES - 1ST OFFENSE,19,302,q,1,CR,FEL,FEL,0.00,0.00,CRIMINAL,CLSACOSTS,,Y,,F,,N,2015.07.01,9999.12.31
Title:  7,7-19-302 q (2),SEX OFFENDER - FAIL TO NOTIFY 21 DAYS BEFORE TRAVELING OUTSIDE UNITED STATES - SUBSEQUENT OFFENSE,19,302,q,2,CR,FEL,FEL,0.00,0.00,CRIMINAL,CLSACOSTS,,Y,,F,,N,2015.07.01,9999.12.31
Title:  7,7-19-302 r,SEX OFFENDER - FAIL TO PAY SEX OFFNDR REGISTRATION FEE,19,302,r,,CR,OMD,MM,0.00,0.00,CRIMINAL,CLSACOSTS,,Y,,M,,,2017.07.01,9999.12.31
Title:  9,9-2-1016 j,UNAUTHORIZED USE OF STATE VEH,2,1016,j,,CT,OMD,MF,80.00,80.00,CRIMINAL,CLSACOSTS,,N,C,M,,,2020.07.01,9999.12.31
Title:  9,9-22-102 e,DELEGATE VIOLATES OATH,22,102,e,,CR,FEL,FEL,0.00,0.00,CRIMINAL,CLSACOSTS,,Y,,F,,,2017.07.01,9999.12.31
Title:  9,9-24-106 a (1),KNOWINGLY ACCEPT ONLINE SPORTS WAGER OR OPERATE SPORTS WAGERING BUSINESS W/O PERMIT - MISDEMEANOR,24,106,a,1,CT,OMD,MM,0.00,0.00,CRIMINAL,CLSACOSTS,,Y,,M,,N,2021.07.01,9999.12.31
Title:  9,9-24-106 a (2),KNOWINGLY ACCEPT ONLINE SPORTS WAGER OR OPERATE SPORTS WAGERING BUSINESS W/O PERMIT - FELONY,24,106,a,2,CR,FEL,FEL,0.00,0.00,CRIMINAL,CLSACOSTS,,Y,,F,,N,2021.07.01,9999.12.31
Title:  11,11-1-103 (1),IMPORT DOMESTIC ANIMALS - 1ST OFFENSE,1,103,,1,CT,OMD,MF,180.00,180.00,NON-NRVC,CLSACOSTS,,N,D,M,,,2010.07.01,9999.12.31
Title:  11,11-1-103 (2),IMPORT DOMESTIC ANIMALS - 2ND + OFFENSE,1,103,,2,CT,OMD,MF,380.00,380.00,NON-NRVC,CLSACOSTS,,N,E,M,,,2010.07.01,9999.12.31
Title:  11,11-14-109 aii,DISTRIB UND ANOTHER NAME,14,109,aii,,CT,OMD,MM,0.00,0.00,CRIMINAL,CLSACOSTS,,Y,,M,,,2010.07.01,9999.12.31
Title:  11,11-17-209 v (1),"MANUFACTURE, SELL OR DELIVER ADULTERATED ANIMAL REMEDY 1ST OFFENSE",17,209,v,1,CT,OMD,MM,0.00,0.00,CRIMINAL,CLSACOSTS,,Y,,M,,,2011.07.01,9999.12.31
Title:  11,11-17-209 v (2),"MANUFACTURE, SELL OR DELIVER ADULTERATED ANIMAL REMEDY 2ND OFFENSE",17,209,v,2,CT,OMD,MM,0.00,0.00,CRIMINAL,CLSACOSTS,,Y,,M,,,2011.07.01,9999.12.31
Title:  11,11-18-103 (51002),VACCINATION AGAINST & SURVEILLANCE FOR BRUCELLOSIS,18,103,,51002,CT,OMD,MF,180.00,180.00,NON-NRVC,CLSACOSTS,,N,D,M,,,2010.07.01,9999.12.31
Title:  11,11-18-103 (51003),LVSTK BD IMPORT RULES,18,103,,51003,CT,OMD,MF,180.00,180.00,NON-NRVC,CLSACOSTS,,N,D,M,,,2010.07.01,9999.12.31
Title:  11,11-18-103 (51006),OVINE & CAPRINE SCRAPIE,18,103,,51006,CT,OMD,MF,180.00,180.00,NON-NRVC,CLSACOSTS,,N,D,M,,,2010.07.01,9999.12.31
Title:  11,11-18-103 (51007),CERT OF VETERINARY HEALTH INSPECTION,18,103,,51007,CT,OMD,MF,180.00,180.00,NON-NRVC,CLSACOSTS,,N,D,M,,,2010.07.01,9999.12.31
Title:  11,11-18-103 (51008),TRICHOMONIASIS RULES,18,103,,51008,CT,OMD,MF,180.00,180.00,NON-NRVC,CLSACOSTS,,N,D,M,,,2010.07.01,9999.12.31
Title:  11,11-18-103 (51009),ISSUE & USE BRAND INSPECTION IN STATE MOVEMT PERMITS,18,103,,51009,CT,OMD,MF,180.00,180.00,NON-NRVC,CLSACOSTS,,N,D,M,,,2010.07.01,9999.12.31
Title:  11,11-18-103 (51010),ISSUE & USE BRAND INSPECTION OUT-OF-STATE ACCUSTOMED RANGE PERMITS,18,103,,51010,CT,OMD,MF,180.00,180.00,NON-NRVC,CLSACOSTS,,N,D,M,,,2010.07.01,9999.12.31
Title:  11,11-18-103 (51011),ISSUE & USE SEASONAL BRAND PERMIT,18,103,,51011,CT,OMD,MF,180.00,180.00,NON-NRVC,CLSACOSTS,,N,D,M,,,2010.07.01,9999.12.31
Title:  11,11-18-103 (51012),RULES GOVERNING RE-RECORDING LVSTK BRANDS,18,103,,51012,CT,OMD,MF,180.00,180.00,NON-NRVC,CLSACOSTS,,N,D,M,,,2010.07.01,9999.12.31
Title:  11,11-18-103 av,VIOLATE RULES & REGS,18,103,av,,CT,OMD,MF,180.00,180.00,NON-NRVC,CLSACOSTS,,N,D,M,,,2010.07.01,9999.12.31
Title:  11,11-18-112,REFUSE TO ASSIST FED & STATE AUTHORITIES,18,112,,,CT,OMD,MF,80.00,80.00,NON-NRVC,CLSACOSTS,,N,C,M,,,2010.07.01,9999.12.31
Title:  11,11-19-101 a,CONTAGIOUS DISEASES;  TURN LOOSE INFECTED ANIMALS,19,101,a,,CT,OMD,MF,380.00,380.00,NON-NRVC,CLSACOSTS,,N,E,M,,,2010.07.01,9999.12.31
Title:  11,11-19-101 b,FAIL TO COMPLY W/ ORD OF STATE VET,19,101,b,,CT,OMD,MF,380.00,380.00,NON-NRVC,CLSACOSTS,,N,E,M,,,2010.07.01,9999.12.31
Title:  11,11-19-102,DUTY TO RPT DISEASES,19,102,,,CT,OMD,MF,180.00,180.00,NON-NRVC,CLSACOSTS,,N,D,M,,,2010.07.01,9999.12.31
Title:  11,11-19-111 b,VIOLATE GOV'S PROCLAMATION ON IMPORTING LVSTK,19,111,b,,CT,OMD,MF,180.00,180.00,NON-NRVC,CLSACOSTS,,N,D,M,,,2010.07.01,9999.12.31
Title:  11,11-19-215,INTERFERE OR REFUSE TO GATHER & TEST LIVESTOCK ANIMALS,19,215,,,CT,OMD,MF,80.00,80.00,NON-NRVC,CLSACOSTS,,N,C,M,,,2013.07.01,9999.12.31
Title:  11,11-19-304,IMPORT CATTLE OR BISON INTO ANY TB ACCREDITED-FREE AREA,19,304,,,CT,OMD,MF,80.00,80.00,NON-NRVC,CLSACOSTS,,N,C,M,,,2013.07.01,9999.12.31
Title:  11,11-19-306,VIOLATE STATE VET'S RULES & REGS,19,306,,,CT,OMD,MF,80.00,80.00,NON-NRVC,CLSACOSTS,,N,C,M,,,2010.07.01,9999.12.31
Title:  11,11-19-401,FAIL TO TAG ALL LIVESTOCK ANIMALS THAT REACT TO A CONFIRMATORY TEST FOR BRUCELLOSIS,19,401,,,CT,OMD,MF,80.00,80.00,NON-NRVC,CLSACOSTS,,N,C,M,,,2013.07.01,9999.12.31
Title:  11,11-19-501 a,IMPORTATION NOTICE,19,501,a,,CT,OMD,MF,80.00,80.00,NON-NRVC,CLSACOSTS,,N,C,M,,,2010.07.01,9999.12.31
Title:  11,11-19-501 b,VIOLATE BD'S RULES & REGS,19,501,b,,CT,OMD,MF,80.00,80.00,NON-NRVC,CLSACOSTS,,N,C,M,,,2010.07.01,9999.12.31
Title:  11,11-19-502,UNLOAD SHEEP IN TRANSIT,19,502,,,CT,OMD,MF,80.00,80.00,NON-NRVC,CLSACOSTS,,N,C,M,,,2010.07.01,9999.12.31
Title:  11,11-19-503,IMPORT INFECTED SHEEP,19,503,,,CT,OMD,MF,80.00,80.00,NON-NRVC,CLSACOSTS,,N,C,M,,,2010.07.01,9999.12.31
Title:  11,11-19-504,REFUSE TO GIVE INFO,19,504,,,CT,OMD,MF,80.00,80.00,NON-NRVC,CLSACOSTS,,N,C,M,,,2010.07.01,9999.12.31
Title:  11,11-19-505,OWNER LIABILITY; WHEN ARREST IS NEC,19,505,,,CT,OMD,MF,80.00,80.00,NON-NRVC,CLSACOSTS,,N,C,M,,,2010.07.01,9999.12.31
Title:  11,11-20-102,STK RUNNING AT LARGE TO BE BRANDED,20,102,,,CT,OMD,MF,80.00,80.00,NON-NRVC,CLSACOSTS,,N,C,M,,,2010.07.01,9999.12.31
Title:  11,11-20-110,BILL OF SALE FOR RECORDED BRANDS,20,110,,,CT,OMD,MF,80.00,80.00,NON-NRVC,CLSACOSTS,,N,C,M,,,2010.07.01,9999.12.31
Title:  11,11-20-114,USE UNRECORDED OR ABANDONED BRAND,20,114,,,CT,OMD,MF,180.00,180.00,NON-NRVC,CLSACOSTS,,N,D,M,,,2010.07.01,9999.12.31
Title:  11,11-20-117 a,CLAIMING OWNERSHIP/IDENTIFYING LIVESTOCK WITH UNRECORDED BRAND,20,117,a,,CT,OMD,MF,180.00,180.00,NON-NRVC,CLSACOSTS,,N,D,M,,,2014.07.01,9999.12.31
Title:  11,11-20-118,DROVER'S STK KEPT SEPARATE; RETURN COMMINGLED LIVESTOCK TO OWNER,20,118,,,CT,OMD,MF,80.00,80.00,NON-NRVC,CLSACOSTS,,N,C,M,,,2014.07.01,9999.12.31
Title:  11,11-20-119,DROVER'S TRESPASS LIABILITY,20,119,,,CT,OMD,MF,80.00,80.00,NON-NRVC,CLSACOSTS,,N,C,M,,,2010.07.01,9999.12.31
Title:  11,11-20-120,DRIVE LVSTK FROM HOME RANGE,20,120,,,CT,OMD,MF,80.00,80.00,NON-NRVC,CLSACOSTS,,N,C,M,,,2010.07.01,9999.12.31
Title:  11,11-20-202 (51004),BRAND INSPECTION FEE RULES & REGS,20,202,,51004,CT,OMD,MF,80.00,80.00,NON-NRVC,CLSACOSTS,,N,C,M,,,2010.07.01,9999.12.31
Title:  11,11-20-202 (51005),LVSTK SHIPMTS TO APPROVED OUT-OF-STATE MRKTS (G FORM),20,202,,51005,CT,OMD,MF,80.00,80.00,NON-NRVC,CLSACOSTS,,N,C,M,,,2010.07.01,9999.12.31
Title:  11,11-20-202 a,LVSTK BD'S DUTIES,20,202,a,,CT,OMD,MF,80.00,80.00,NON-NRVC,CLSACOSTS,,N,C,M,,,2010.07.01,9999.12.31
Title:  11,11-20-203 a,"INSPECT BRANDS AT SALE, DLVRY OR REMOVAL TO ANOTHER STATE; CERT REQ'D",20,203,a,,CT,OMD,MF,180.00,180.00,NON-NRVC,CLSACOSTS,,N,D,M,,,2012.11.09,9999.12.31
Title:  11,11-20-203 c,"INSPECT BRANDS AT SALE, DLVRY OR REMOVAL TO ANOTHER COUNTY; CERT REQ'D",20,203,c,,CT,OMD,MF,180.00,180.00,NON-NRVC,CLSACOSTS,,N,D,M,,,2012.11.09,9999.12.31
Title:  11,11-20-204,INSPECTOR NOT TO INSPECT OWN LVSTK,20,204,,,CT,OMD,MF,80.00,80.00,NON-NRVC,CLSACOSTS,,N,C,M,,,2010.07.01,9999.12.31
Title:  11,11-20-205 d,REMOVE ESTRAYS BY INSPECTOR'S ORD,20,205,d,,CT,OMD,MF,80.00,80.00,NON-NRVC,CLSACOSTS,,N,C,M,,,2010.07.01,9999.12.31
Title:  11,11-20-206 a,INSPECTION CERT; IN CARRIER'S POSSESSION,20,206,a,,CT,OMD,MF,80.00,80.00,NON-NRVC,CLSACOSTS,,N,C,M,,,2010.07.01,9999.12.31
Title:  11,11-20-206 b,FAIL TO EXHIBIT INSPECTION CERT,20,206,b,,CT,OMD,MF,80.00,80.00,NON-NRVC,CLSACOSTS,,N,C,M,,,2010.07.01,9999.12.31
Title:  11,11-20-208 b,FALSE PROOF OF PRIOR OWNERSHIP,20,208,b,,CT,OMD,MF,380.00,380.00,NON-NRVC,CLSACOSTS,,N,E,M,,,2020.07.01,9999.12.31
Title:  11,11-20-209,WHEN INSPECTION NOT REQ'D; CARRIER'S CONTINUOUS CUSTODY,20,209,,,CT,OMD,MF,80.00,80.00,NON-NRVC,CLSACOSTS,,N,C,M,,,2010.07.01,9999.12.31
Title:  11,11-20-210,HEALTH & QUARANTINE REGS REQ'D,20,210,,,CT,OMD,MF,80.00,80.00,NON-NRVC,CLSACOSTS,,N,C,M,,,2010.07.01,9999.12.31
Title:  11,11-20-211,INSPECTION NOT REQ'D; CONTIGUOUS RANGE,20,211,,,CT,OMD,MF,80.00,80.00,NON-NRVC,CLSACOSTS,,N,C,M,,,2010.07.01,9999.12.31
Title:  11,11-20-212,INTRASTATE ACCUSTOMED RANGE PERMITS,20,212,,,CT,OMD,MF,80.00,80.00,NON-NRVC,CLSACOSTS,,N,C,M,,,2010.07.01,9999.12.31
Title:  11,11-20-214 a,BRAND INSPECTOR MAY INSPECT AT HIS DISCRETION,20,214,a,,CT,OMD,MF,80.00,80.00,NON-NRVC,CLSACOSTS,,N,C,M,,,2010.07.01,9999.12.31
Title:  11,11-20-216,TRUCK-FLEET SHIPMT PERMIT,20,216,,,CT,OMD,MF,80.00,80.00,NON-NRVC,CLSACOSTS,,N,C,M,,,2010.07.01,9999.12.31
Title:  11,11-20-217 b,CERT & AGREEMT IN LIEU OF INSPECTION  (G FORM),20,217,b,,CT,OMD,MF,80.00,80.00,NON-NRVC,CLSACOSTS,,N,C,M,,,2010.07.01,9999.12.31
Title:  11,11-20-219 a,CERT & AGREEMT SHALL ACCOMPANY SHIPMT (G FORM),20,219,a,,CT,OMD,MF,80.00,80.00,NON-NRVC,CLSACOSTS,,N,C,M,,,2010.07.01,9999.12.31
Title:  11,11-20-219 b,CERT & AGREEMT - DLVR AT DESTINATION (G FORM),20,219,b,,CT,OMD,MF,80.00,80.00,NON-NRVC,CLSACOSTS,,N,C,M,,,2010.07.01,9999.12.31
Title:  11,11-20-219 c,CERT & AGREEMT - SHOW UPON REQUEST (G FORM),20,219,c,,CT,OMD,MF,80.00,80.00,NON-NRVC,CLSACOSTS,,N,C,M,,,2010.07.01,9999.12.31
Title:  11,11-20-220,NOTICE OF DIVERTED SHIPMTS,20,220,,,CT,OMD,MF,180.00,180.00,NON-NRVC,CLSACOSTS,,N,D,M,,,2010.07.01,9999.12.31
Title:  11,11-20-221,TRANSPORT W/O CERT,20,221,,,CT,OMD,MF,180.00,180.00,NON-NRVC,CLSACOSTS,,N,D,M,,,2010.07.01,9999.12.31
Title:  11,11-20-222,UNBRANDED CALVES; INSPECTION,20,222,,,CT,OMD,MF,80.00,80.00,NON-NRVC,CLSACOSTS,,N,C,M,,,2010.07.01,9999.12.31
Title:  11,11-20-223 a,INTERSTATE ACCUSTOMED RANGE PERMIT; RULES & REGS,20,223,a,,CT,OMD,MF,80.00,80.00,NON-NRVC,CLSACOSTS,,N,C,M,,,2010.07.01,9999.12.31
Title:  11,11-20-224,PERMANENT BRAND INSPECTION CERT (L FORM),20,224,,,CT,OMD,MF,80.00,80.00,NON-NRVC,CLSACOSTS,,N,C,M,,,2010.07.01,9999.12.31
Title:  11,11-20-225 a,ANNUAL BRAND INSPECTION CERT (H FORM),20,225,a,,CT,OMD,MF,80.00,80.00,NON-NRVC,CLSACOSTS,,N,C,M,,,2010.07.01,9999.12.31
Title:  11,11-20-226,CERTS TO BE SIGNED & IN POSSESSION; SHOW UPON REQUEST (L & H FORMS),20,226,,,CT,OMD,MF,80.00,80.00,NON-NRVC,CLSACOSTS,,N,C,M,,,2010.07.01,9999.12.31
Title:  11,11-20-227,FRAUDULENT USE OF INSPECTION CERT,20,227,,,CT,OMD,MF,80.00,80.00,NON-NRVC,CLSACOSTS,,N,C,M,,,2010.07.01,9999.12.31
Title:  11,11-21-102,DISPLAY PERMIT TO TRANSPORT,21,102,,,CT,OMD,MF,80.00,80.00,NON-NRVC,CLSACOSTS,,N,C,M,,,2010.07.01,9999.12.31
Title:  11,11-21-104,"PROHIB'D ACTS: FALSE OR FORGED PERMIT, ETC.",21,104,,,CT,OMD,MF,80.00,80.00,NON-NRVC,CLSACOSTS,,N,C,M,,,2010.07.01,9999.12.31
Title:  11,11-22-102 (51001),VIOLATE LVST BD RULES & REGS,22,102,,51001,CT,OMD,MF,180.00,180.00,NON-NRVC,CLSACOSTS,,N,D,M,,,2010.07.01,9999.12.31
Title:  11,11-22-104,LVSTK MRKT LIC,22,104,,,CT,OMD,MF,380.00,380.00,NON-NRVC,CLSACOSTS,,N,E,M,,,2010.07.01,9999.12.31
Title:  11,11-22-106 a,"GOUNDS FOR MRKT LIC FINES, SUSPENSION OR CANCELLATION",22,106,a,,CT,OMD,MF,80.00,80.00,NON-NRVC,CLSACOSTS,,N,C,M,,,2013.07.01,9999.12.31
Title:  11,11-22-106 ai,LICENSEE VIOLATED RULE OR REG,22,106,ai,,CT,OMD,MF,80.00,80.00,NON-NRVC,CLSACOSTS,,N,C,M,,,2010.07.01,9999.12.31
Title:  11,11-22-106 aii,"FRAUD RE TITLES, BRANDS, ETC.",22,106,aii,,CT,OMD,MF,80.00,80.00,NON-NRVC,CLSACOSTS,,N,C,M,,,2010.07.01,9999.12.31
Title:  11,11-22-106 aiii,"BUY, ETC. DISEASED LVSTK",22,106,aiii,,CT,OMD,MF,80.00,80.00,NON-NRVC,CLSACOSTS,,N,C,M,,,2010.07.01,9999.12.31
Title:  11,11-22-106 aiv,SANITATION & INSPECTION MEASURES,22,106,aiv,,CT,OMD,MF,80.00,80.00,NON-NRVC,CLSACOSTS,,N,C,M,,,2010.07.01,9999.12.31
Title:  11,11-22-106 aix,FALSE STATEMT IN FILED APP,22,106,aix,,CT,OMD,MF,80.00,80.00,NON-NRVC,CLSACOSTS,,N,C,M,,,2010.07.01,9999.12.31
Title:  11,11-22-106 av,FAIL TO KEEP REQ'D RECORDS,22,106,av,,CT,OMD,MF,80.00,80.00,NON-NRVC,CLSACOSTS,,N,C,M,,,2010.07.01,9999.12.31
Title:  11,11-22-106 avi,FAIL TO W/HOLD SALE PROCEEDS,22,106,avi,,CT,OMD,MF,80.00,80.00,NON-NRVC,CLSACOSTS,,N,C,M,,,2010.07.01,9999.12.31
Title:  11,11-22-106 avii,OPERATE W/O SURETY BOND,22,106,avii,,CT,OMD,MF,80.00,80.00,NON-NRVC,CLSACOSTS,,N,C,M,,,2010.07.01,9999.12.31
Title:  11,11-22-106 aviii,LIABILITIES EXCEED ASSETS,22,106,aviii,,CT,OMD,MF,80.00,80.00,NON-NRVC,CLSACOSTS,,N,C,M,,,2010.07.01,9999.12.31
Title:  11,11-22-106 ax,NEGLIGENTLY REMIT SALE PROCEEDS,22,106,ax,,CT,OMD,MF,80.00,80.00,NON-NRVC,CLSACOSTS,,N,C,M,,,2010.07.01,9999.12.31
Title:  11,11-22-107 a,"$25,000 BOND REQ'D",22,107,a,,CT,OMD,MF,80.00,80.00,NON-NRVC,CLSACOSTS,,N,C,M,,,2010.07.01,9999.12.31
Title:  11,11-22-107 b,"$25,000 BOND STATEMT IN LIEU OF BOND",22,107,b,,CT,OMD,MF,80.00,80.00,NON-NRVC,CLSACOSTS,,N,C,M,,,2010.07.01,9999.12.31
Title:  11,11-22-108,MRKT LIC POSTING,22,108,,,CT,OMD,MF,80.00,80.00,NON-NRVC,CLSACOSTS,,N,C,M,,,2010.07.01,9999.12.31
Title:  11,11-22-110,LVSTK MRKT: SANITARY CONDITION ,22,110,,,CT,OMD,MF,80.00,80.00,NON-NRVC,CLSACOSTS,,N,C,M,,,2010.07.01,9999.12.31
Title:  11,11-22-111,"LVSTK MRKT: SCALES, INSPECTION & TESTING",22,111,,,CT,OMD,MF,80.00,80.00,NON-NRVC,CLSACOSTS,,N,C,M,,,2010.07.01,9999.12.31
Title:  11,11-22-112,LVSTK MRKT: RECEIPT & SALES RECORDS,22,112,,,CT,OMD,MF,80.00,80.00,NON-NRVC,CLSACOSTS,,N,C,M,,,2010.07.01,9999.12.31
Title:  11,11-22-113 a,LVSTK HEALTH & BRAND INSPECTION,22,113,a,,CT,OMD,MF,80.00,80.00,NON-NRVC,CLSACOSTS,,N,C,M,,,2010.07.01,9999.12.31
Title:  11,11-22-113 b,REQ'D REPORT OF BRANDED/UNBRANDED LIVESTOCK SOLD AT LIVESTOCK AUCTION,22,113,b,,CT,OMD,MF,80.00,80.00,NON-NRVC,CLSACOSTS,,N,C,M,,,2014.07.01,9999.12.31
Title:  11,11-22-114,LVSTK REMOVAL PURSUANT TO RULES & REGS,22,114,,,CT,OMD,MF,80.00,80.00,NON-NRVC,CLSACOSTS,,N,C,M,,,2010.07.01,9999.12.31
Title:  11,11-22-115,REMOVE VET,22,115,,,CT,OMD,MF,80.00,80.00,NON-NRVC,CLSACOSTS,,N,C,M,,,2010.07.01,9999.12.31
Title:  11,11-22-116,WARRANT TITLE OF LVSTK; DISPOSE OF SALE PROCEEDS ,22,116,,,CT,OMD,MF,80.00,80.00,NON-NRVC,CLSACOSTS,,N,C,M,,,2010.07.01,9999.12.31
Title:  11,11-22-117,DISPERSAL SALES AT LVSTK MRKTS,22,117,,,CT,OMD,MF,80.00,80.00,NON-NRVC,CLSACOSTS,,N,C,M,,,2010.07.01,9999.12.31
Title:  11,11-23-101,SELL CARCASS W/O INSPECTION,23,101,,,CT,OMD,MF,775.00,775.00,NON-NRVC,CLSACOSTS,,N,845.00,M,,,2020.07.01,9999.12.31
Title:  11,11-23-102 a,UNINSPECTED LVSTK SLAUGHTER,23,102,a,,CT,OMD,MF,775.00,775.00,NON-NRVC,CLSACOSTS,,N,845.00,M,,,2020.07.01,9999.12.31
Title:  11,11-23-102 b,SLAUGHTERED LVSTK RECORDS,23,102,b,,CT,OMD,MF,775.00,775.00,NON-NRVC,CLSACOSTS,,N,845.00,M,,,2020.07.01,9999.12.31
Title:  11,11-23-103,UNSTAMPED CARCASS PUR,23,103,,,CT,OMD,MF,775.00,775.00,NON-NRVC,CLSACOSTS,,N,845.00,M,,,2020.07.01,9999.12.31
Title:  11,11-23-104,EXHIBIT BEEF CATTLE HIDES OR CERT UPON DEMAND,23,104,,,CT,OMD,MF,775.00,775.00,NON-NRVC,CLSACOSTS,,N,845.00,M,,,2020.07.01,9999.12.31
Title:  11,11-23-106 d,COLD STORAGE LOCKER PLANT CERT: FALSE STATEMT,23,106,d,,CT,OMD,MF,80.00,80.00,NON-NRVC,CLSACOSTS,,N,C,M,,,2010.07.01,9999.12.31
Title:  11,11-23-107 a,KILL HORSES FOR MEAT; PRODUCE UNMUTILATED HIDE OR INSPECTION CERT,23,107,a,,CT,OMD,MF,775.00,775.00,NON-NRVC,CLSACOSTS,,N,845.00,M,,,2020.07.01,9999.12.31
Title:  11,11-23-108 a,"MUTILATE HORSE, ETC. HIDE",23,108,a,,CT,OMD,MF,775.00,775.00,NON-NRVC,CLSACOSTS,,N,845.00,M,,,2020.07.01,9999.12.31
Title:  11,11-23-202,HIDE BUYER: BILL OF SALE REQ'D,23,202,,,CT,OMD,MF,80.00,80.00,NON-NRVC,CLSACOSTS,,N,C,M,,,2010.07.01,9999.12.31
Title:  11,11-23-203,HIDE BUYER: KEEP PUR RECORDS,23,203,,,CT,OMD,MF,80.00,80.00,NON-NRVC,CLSACOSTS,,N,C,M,,,2010.07.01,9999.12.31
Title:  11,11-23-204,HIDE BUYER: INSPECT FOR INTERSTATE COMMERCE; CERT,23,204,,,CT,OMD,MF,80.00,80.00,NON-NRVC,CLSACOSTS,,N,C,M,,,2010.07.01,9999.12.31
Title:  11,11-23-206,HIDE INSPECTION FOR STK KILLED BY TRANSPORTATION COMPANY,23,206,,,CT,OMD,MF,80.00,80.00,NON-NRVC,CLSACOSTS,,N,C,M,,,2010.07.01,9999.12.31
Title:  11,11-23-301,INTRASTATE REMOVAL OF CARCASSES,23,301,,,CT,OMD,MF,80.00,80.00,NON-NRVC,CLSACOSTS,,N,C,M,,,2010.07.01,9999.12.31
Title:  11,11-23-302,TRANSPORT CARCASSES INTERSTATE W/O INSPECTION,23,302,,,CT,OMD,MF,80.00,80.00,NON-NRVC,CLSACOSTS,,N,C,M,,,2010.07.01,9999.12.31
Title:  11,11-23-303,HIDE INSPECTION CERT REQ'D,23,303,,,CT,OMD,MF,80.00,80.00,NON-NRVC,CLSACOSTS,,N,C,M,,,2010.07.01,9999.12.31
Title:  11,11-23-304,INSPECTION FEE: COLLECT & DISPOSE,23,304,,,CT,OMD,MF,80.00,80.00,NON-NRVC,CLSACOSTS,,N,C,M,,,2010.07.01,9999.12.31
Title:  11,11-24-103,TAKE UP ESTRAYS,24,103,,,CT,OMD,MF,80.00,80.00,NON-NRVC,CLSACOSTS,,N,C,M,,,2010.07.01,9999.12.31
Title:  11,11-24-105 a,UNCLAIMED HORSES PERMIT,24,105,a,,CT,OMD,MF,80.00,80.00,NON-NRVC,CLSACOSTS,,N,C,M,,,2010.07.01,9999.12.31
Title:  11,11-24-105 b,DISPOSE OF UNCLAIMED HORSES,24,105,b,,CT,OMD,MF,80.00,80.00,NON-NRVC,CLSACOSTS,,N,C,M,,,2010.07.01,9999.12.31
Title:  11,11-24-108 a,LVSTK AT LARGE ON PUB HWYS,24,108,a,,CT,OMD,MF,380.00,380.00,NON-NRVC,CLSACOSTS,,N,E,M,,,2010.07.01,9999.12.31
Title:  11,11-25-109 c,PARI-MUTUEL EVENTS:  BETTING BY MINORS,25,109,c,,CT,OMD,MM,0.00,0.00,CRIMINAL,CLSACOSTS,,Y,,M,,,2010.07.01,9999.12.31
Title:  11,11-26-101 a (1),SWINE RUN AT LARGE,26,101,a,1,CT,OMD,MF,80.00,80.00,NON-NRVC,CLSACOSTS,,N,C,M,,,2010.07.01,9999.12.31
Title:  11,11-26-101 a (2),GOATS RUN AT LARGE,26,101,a,2,CT,OMD,MF,80.00,80.00,NON-NRVC,CLSACOSTS,,N,C,M,,,2010.07.01,9999.12.31
Title:  11,11-26-101 a (3),DOMESTIC ELK RUN AT LARGE,26,101,a,3,CT,OMD,MF,80.00,80.00,NON-NRVC,CLSACOSTS,,N,C,M,,,2010.07.01,9999.12.31
Title:  11,11-26-101 a (4),EXOTIC LIVESTOCK RUN AT LARGE,26,101,a,4,CT,OMD,MF,80.00,80.00,NON-NRVC,CLSACOSTS,,N,C,M,,N,2013.07.01,9999.12.31
Title:  11,11-27-104 a,FEEDING PERMIT REQ'D,27,104,a,,CT,OMD,MF,80.00,80.00,NON-NRVC,CLSACOSTS,,N,C,M,,,2010.07.01,9999.12.31
Title:  11,11-27-105,REVOKE OR REFUSE TO ISSUE PERMIT,27,105,,,CT,OMD,MF,80.00,80.00,NON-NRVC,CLSACOSTS,,N,C,M,,,2010.07.01,9999.12.31
Title:  11,11-27-106,TREAT GARBAGE BEFORE FEEDING,27,106,,,CT,OMD,MF,80.00,80.00,NON-NRVC,CLSACOSTS,,N,C,M,,,2010.07.01,9999.12.31
Title:  11,11-27-107,VIOLATE AGENCY RULES & REGS,27,107,,,CT,OMD,MF,80.00,80.00,NON-NRVC,CLSACOSTS,,N,C,M,,,2010.07.01,9999.12.31
Title:  11,11-28-103 a (1),CONSTRUCT UNLAWFUL WIRE FENCE  - 1ST OFFENSE,28,103,a,1,CT,OMD,MF,15.00,15.00,NON-NRVC,CLSACOSTS,,N,A,M,,,2010.07.01,9999.12.31
Title:  11,11-28-103 a (2),CONSTRUCT UNLAWFUL WIRE FENCE - SUBSEQUENT OFFENSE,28,103,a,2,CT,OMD,MF,80.00,80.00,NON-NRVC,CLSACOSTS,,N,C,M,,,2010.07.01,9999.12.31
Title:  11,11-28-103 b (1),RECONSTRUCT UNLAWFUL WIRE FENCE W/I 30 DAYS - 1ST OFFENSE,28,103,b,1,CT,OMD,MF,15.00,15.00,NON-NRVC,CLSACOSTS,,N,A,M,,,2010.07.01,9999.12.31
Title:  11,11-28-103 b (2),RECONSTRUCT UNLAWFUL WIRE FENCE W/I 30 DAYS - 2ND OFFENSE,28,103,b,2,CT,OMD,MF,80.00,80.00,NON-NRVC,CLSACOSTS,,N,C,M,,,2010.07.01,9999.12.31
Title:  11,11-28-104,FENCE ACROSS RDS,28,104,,,CT,OMD,MF,80.00,80.00,NON-NRVC,CLSACOSTS,,N,C,M,,,2010.07.01,9999.12.31
Title:  11,11-28-107,"LEAVE OPEN, DESTROY LAWFUL FENCE",28,107,,,CT,OMD,MF,80.00,80.00,NON-NRVC,CLSACOSTS,,N,C,M,,,2010.07.01,9999.12.31
Title:  11,11-29-103 a (1),FEED IMPOUNDED ANIMALS,29,103,a,1,CT,OMD,MF,180.00,180.00,NON-NRVC,CLSACOSTS,,N,D,M,,,2020.07.01,9999.12.31
Title:  11,11-29-106,INTERFERE W/ LVSTK BD OFFICER OR AGENT,29,106,,,CT,OMD,MF,380.00,380.00,NON-NRVC,CLSACOSTS,,N,E,M,,,2020.07.01,9999.12.31
Title:  11,11-30-106 a,"REMOVE SKINS, HIDE, OR PELT  FROM CARCASSES W/O PERMISSION",30,106,a,,CT,OMD,MF,80.00,80.00,NON-NRVC,CLSACOSTS,,N,C,M,,,2010.07.01,9999.12.31
Title:  11,11-30-108,HERDER DESERT & ABANDON SHEEP,30,108,,,CT,OMD,MF,380.00,380.00,NON-NRVC,CLSACOSTS,,N,E,M,,,2020.07.01,9999.12.31
Title:  11,11-30-109,TAKE HORSES & EQUIPMT W/O CONSENT,30,109,,,CT,OMD,MF,80.00,80.00,NON-NRVC,CLSACOSTS,,N,C,M,,,2010.07.01,9999.12.31
Title:  11,11-30-110 a,APPROPRIATE HORSE OR MULE ON OPEN RANGE W/O PERMISSION,30,110,a,,CT,OMD,MF,80.00,80.00,NON-NRVC,CLSACOSTS,,N,C,M,,,2010.07.01,9999.12.31
Title:  11,11-30-112,ABUSE OR NEGLIGENT TREATMT BY BAILEE,30,112,,,CT,OMD,MF,180.00,180.00,NON-NRVC,CLSACOSTS,,N,D,M,,,2020.07.01,9999.12.31
Title:  11,11-30-114 a,TAMPER W/ OR SABOTAGE EXHIBITION LVSTK,30,114,a,,CT,OMD,MF,80.00,80.00,NON-NRVC,CLSACOSTS,,N,C,M,,,2010.07.01,9999.12.31
Title:  11,11-30-114 b,UNAPPROVED DRUGS ON EXHIBITION LVSTK,30,114,b,,CT,OMD,MF,80.00,80.00,NON-NRVC,CLSACOSTS,,N,C,M,,,2010.07.01,9999.12.31
Title:  11,11-31-104,POISON OR KILL DOG W/GROUND GLASS,31,104,,,CT,OMD,MF,180.00,180.00,NON-NRVC,CLSACOSTS,,N,D,M,,,2020.07.01,9999.12.31
Title:  11,11-31-108,PERMIT DOG TO RUN LVSTK,31,108,,,CT,OMD,MF,80.00,80.00,NON-NRVC,CLSACOSTS,,N,C,M,,,2010.07.01,9999.12.31
Title:  11,11-31-213,REGISTRATION; VACCINATION CERTIFICATE,31,213,,,CT,OMD,MF,80.00,80.00,NON-NRVC,CLSACOSTS,,N,C,M,,,2014.07.01,9999.12.31
Title:  11,11-31-301 c (1),ANIMAL RUN AT LARGE - 1ST OFFENSE,31,301,c,1,CT,OMD,MF,30.00,30.00,NON-NRVC,CLSACOSTS,,N,B,M,,,2010.07.01,9999.12.31
Title:  11,11-31-301 c (2),ANIMAL RUN AT LARGE - 2ND OFFENSE,31,301,c,2,CT,OMD,MF,80.00,80.00,NON-NRVC,CLSACOSTS,,N,C,M,,,2010.07.01,9999.12.31
Title:  11,11-31-301 c (3),ANIMAL ATTACK PERSON - 1ST OFFENSE,31,301,c,3,CT,OMD,MF,30.00,30.00,NON-NRVC,CLSACOSTS,,N,B,M,,,2010.07.01,9999.12.31
Title:  11,11-31-301 c (4),ANIMAL ATTACK PERSON - 2ND OFFENSE,31,301,c,4,CT,OMD,MF,80.00,80.00,NON-NRVC,CLSACOSTS,,N,C,M,,,2010.07.01,9999.12.31
Title:  11,11-31-301 e,DOG ATTACK PERSON IN VICIOUS MANNER,31,301,e,,CT,OMD,MF,80.00,80.00,NON-NRVC,CLSACOSTS,,N,C,M,,,2010.07.01,9999.12.31
Title:  11,11-31-301 h,FAILURE TO PURCHASE COUNTY LICENSE OR TAG,31,301,h,,CT,OMD,MF,15.00,15.00,NON-NRVC,CLSACOSTS,,N,A,M,,,2014.07.01,9999.12.31
Title:  11,11-32-102,RULES & REGS RE POULTRY,32,102,,,CT,OMD,MF,80.00,80.00,NON-NRVC,CLSACOSTS,,N,C,M,,,2010.07.01,9999.12.31
Title:  11,11-32-103 ai,"LABEL POULTRY SHIPMTS W/ NO., BREED, SEX, HATCH DATE",32,103,ai,,CT,OMD,MF,80.00,80.00,NON-NRVC,CLSACOSTS,,N,C,M,,,2010.07.01,9999.12.31
Title:  11,11-32-103 aii,LABEL POULTRY SHIPMTS W/ HATCHERY NAME,32,103,aii,,CT,OMD,MF,80.00,80.00,NON-NRVC,CLSACOSTS,,N,C,M,,,2010.07.01,9999.12.31
Title:  11,11-32-103 aiii,LABEL POULTRY SHIPMTS W/HATCHERY NAME,32,103,aiii,,CT,OMD,MF,80.00,80.00,NON-NRVC,CLSACOSTS,,N,C,M,,,2010.07.01,9999.12.31
Title:  11,11-32-103 aiv,LABEL POULTRY SHIPMTS W/ PULLORUM CLASS & DATE,32,103,aiv,,CT,OMD,MF,80.00,80.00,NON-NRVC,CLSACOSTS,,N,C,M,,,2010.07.01,9999.12.31
Title:  11,11-32-103 b,LABEL IMPORTED POULTRY,32,103,b,,CT,OMD,MF,80.00,80.00,NON-NRVC,CLSACOSTS,,N,C,M,,,2010.07.01,9999.12.31
Title:  11,11-32-104,VIOLATE RULES & REGS RE POULTRY,32,104,,,CT,OMD,MF,80.00,80.00,NON-NRVC,CLSACOSTS,,N,C,M,,,2010.07.01,9999.12.31
Title:  11,11-34-130,TRESPASS UPON FARM LOAN BD LAND,34,130,,,CT,OMD,MM,0.00,0.00,CRIMINAL,CLSACOSTS,,Y,,M,,,2010.07.01,9999.12.31
Title:  11,11-6-210 a,PREDATORY ANIMAL FEE AT BRAND INSPECTION,6,210,a,,CT,OMD,MF,180.00,180.00,NON-NRVC,CLSACOSTS,,N,D,M,,,2010.07.01,9999.12.31
Title:  11,11-6-210 f,PREDATORY ANIMAL FEE FOR COMMERCIAL FEED LOT CONFINEMT,6,210,f,,CT,OMD,MF,180.00,180.00,NON-NRVC,CLSACOSTS,,N,D,M,,,2010.07.01,9999.12.31
Title:  12,12-4-103,UNAUTHORIZED HOLDER OF LOCAL LIQUOR LICENSE,4,103,,,CT,OMD,MM,,,CRIMINAL,CLSACOSTS,,Y,,M,,,2015.07.01,9999.12.31
Title:  12,12-4-404,RESORT OFF PREM SALE,4,404,,,CT,OMD,MM,0.00,0.00,CRIMINAL,CLSACOSTS,,Y,,M,,,2010.07.01,9999.12.31
Title:  12,12-4-409,TRANSFER RESTAURANT LIQ LIC,4,409,,,CT,OMD,MM,0.00,0.00,CRIMINAL,CLSACOSTS,,Y,,M,,,2010.07.01,9999.12.31
Title:  12,12-4-410 b (3),PERSON UND 18 IN DISPENSING ROOM,4,410,b,3,CT,OMD,MM,0.00,0.00,CRIMINAL,CLSACOSTS,,Y,,M,,,2010.07.01,9999.12.31
Title:  12,12-4-410 d,PROMOTE RESTAURANT AS BAR,4,410,d,,CT,OMD,MM,0.00,0.00,CRIMINAL,CLSACOSTS,,Y,,M,,,2010.07.01,9999.12.31
Title:  12,12-4-502 a (1),SELL OR CONSUME MALT BEV OFF PREM,4,502,a,1,CT,OMD,MM,0.00,0.00,CRIMINAL,CLSACOSTS,,Y,,M,,,2010.07.01,9999.12.31
Title:  12,12-5-101,HRS OF OPERATION,5,101,,,CT,OMD,MM,0.00,0.00,CRIMINAL,CLSACOSTS,,Y,,M,,,2010.07.01,9999.12.31
Title:  12,12-5-201 a,DISPENSING ROOM LOCATION,5,201,a,,CT,OMD,MM,0.00,0.00,CRIMINAL,CLSACOSTS,,Y,,M,,,2010.07.01,9999.12.31
Title:  12,12-5-201 b,CONVENTION FACILITY DISPENSING ROOM,5,201,b,,CT,OMD,MM,0.00,0.00,CRIMINAL,CLSACOSTS,,Y,,M,,,2010.07.01,9999.12.31
Title:  12,12-6-101 g,"AID, ABET, INCITE VIOLATION",6,101,g,,CT,OMD,MM,0.00,0.00,CRIMINAL,CLSACOSTS,,Y,,M,,,2011.07.01,9999.12.31
Title:  14,14-2-309,TERM OF PARENTAL RIGHTS,2,309,,,CT,TPR,TPR,0.00,0.00,,NONE,,Y,,,,,2007.02.01,9999.12.31
Title:  14,14-2-309 ai,TPR-NON-PARENT W/O SUPPORT MORE THAN ONE YEAR,2,309,ai,,CT,TPR,TPR,0.00,0.00,,NONE,,Y,,,,,2007.02.01,9999.12.31
Title:  14,14-2-309 aii,TPR-ABANDONED NO ID FOR 3 MONTHS,2,309,aii,,CT,TPR,TPR,0.00,0.00,,NONE,,Y,,,,,2007.02.01,9999.12.31
Title:  14,14-2-309 aiii,TPR-ABUSE & NEGL W/O SUCCESSFUL REUNIFICATION,2,309,aiii,,CT,TPR,TPR,0.00,0.00,,NONE,,Y,,A,,,2007.02.01,9999.12.31
Title:  14,14-2-309 aiv,TRP-PARENT INCARCERATED FOR FELONY,2,309,aiv,,CT,TPR,TPR,0.00,0.00,,NONE,,Y,,,,,2007.02.01,9999.12.31
Title:  14,14-2-309 av,TPR-STATE CUSTODY FOR 15 OF LAST 22 MONTHS,2,309,av,,CT,TPR,TPR,0.00,0.00,,NONE,,Y,,,,,2007.02.01,9999.12.31
Title:  14,14-2-309 avi,TPR-ABANDONED AT LESS THAN ONE YEAR FOR MORE THAN 6 MONTHS,2,309,avi,,CT,TPR,TPR,0.00,0.00,,NONE,,Y,,,,,2007.02.01,9999.12.31
Title:  14,14-2-309 avii,TPR-SAFE HAVEN W/O CONTACT FOR 3 MONTHS,2,309,avii,,CT,TPR,TPR,0.00,0.00,,NONE,,Y,,,,,2007.02.01,9999.12.31
Title:  14,14-2-309 bi,TPR-PARENT CONVICTED OF MURDER OR MANSLAUGHTER,2,309,bi,,CR,TPR,TPR,0.00,0.00,,NONE,,Y,,,,,2007.02.01,9999.12.31
Title:  14,14-2-309 bii,TPR-PARENT CONVICTED OF FELONY ASSAULT,2,309,bii,,CR,TPR,TPR,0.00,0.00,,NONE,,Y,,,,,2007.02.01,9999.12.31
Title:  14,14-2-309 ci,TPR-INVOLUNTARY TERMINATION OF ADDITIONAL CHILD,2,309,ci,,CR,TPR,TPR,0.00,0.00,,NONE,,Y,,,,,2007.02.01,9999.12.31
Title:  14,14-2-309 cii,"TPR-ABANDONED, ABUSED OR TORTURED CHILD",2,309,cii,,CR,TPR,TPR,0.00,0.00,,NONE,,Y,,A,,,2007.02.01,9999.12.31
Title:  14,14-2-309 ciii,TPR-AGGRAVATING CIRCUMSTANCES,2,309,ciii,,CR,TPR,TPR,0.00,0.00,,NONE,,Y,,,,,2007.02.01,9999.12.31
Title:  14,14-3-205 d,FALSE REPORT OF CHILD ABUSE/NEGLECT,3,205,d,,CR,OMD,MM,0.00,0.00,CRIMINAL,CLSACOSTS,,Y,,M,,,2010.07.01,9999.12.31
Title:  14,14-3-302 a(bi),INDIVIDUAL SELL OR DLVR NICOTINE TO UND 21 - 1ST OFFENSE,3,302,a(bi),,CT,OMD,MF,250.00,250.00,NON-NRVC,CLSACOSTS,,N,320.00,M,,,2020.07.01,9999.12.31
Title:  14,14-3-302 a(bii),INDIVIDUAL SELL OR DLVR NICOTINE TO UND 21 - 2ND OFFENSE,3,302,a(bii),,CT,OMD,MM,0.00,0.00,CRIMINAL,CLSACOSTS,,Y,,M,,,2020.07.01,9999.12.31
Title:  14,14-3-302 a(biii),INDIVIDUAL SELL OR DLVR NICOTINE TO UND 21 - 3RD + OFFENSE,3,302,a(biii),,CT,OMD,MM,0.00,0.00,CRIMINAL,CLSACOSTS,,Y,,M,,,2020.07.01,9999.12.31
Title:  14,14-3-302 c(di),RETAILER SELL OR DLVR NICOTINE TO UND 21 - 1ST OFFENSE,3,302,c(di),,CT,OMD,MM,0.00,0.00,CRIMINAL,CLSACOSTS,,Y,,M,,,2020.07.01,9999.12.31
Title:  14,14-3-302 c(dii),RETAILER SELL OR DLVR NICOTINE TO UND 21 - 2ND OFFENSE,3,302,c(dii),,CT,OMD,MM,0.00,0.00,CRIMINAL,CLSACOSTS,,Y,,M,,,2020.07.01,9999.12.31
Title:  14,14-3-302 c(diii),RETAILER SELL OR DLVR NICOTINE TO UND 21 - 3RD + OFFENSE,3,302,c(diii),,CT,OMD,MM,0.00,0.00,CRIMINAL,CLSACOSTS,,Y,,M,,,2020.07.01,9999.12.31
Title:  14,14-3-303 a(ci),VENDING MACHINE SIGNAGE SPECIFICATIONS FOR NICOTINE PRODUCTS - 1ST OFFENSE,3,303,a(ci),,CT,OMD,MF,250.00,250.00,NON-NRVC,CLSACOSTS,,N,320.00,M,,,2020.07.01,9999.12.31
Title:  14,14-3-303 a(cii),VENDING MACHINE SIGNAGE SPECIFICATIONS FOR NICOTINE PRODUCTS - 2ND OFFENSE,3,303,a(cii),,CT,OMD,MM,0.00,0.00,CRIMINAL,CLSACOSTS,,Y,,M,,,2020.07.01,9999.12.31
Title:  14,14-3-303 a(ciii),VENDING MACHINE SIGNAGE SPECIFICATIONS FOR NICOTINE PRODUCTS - 3RD +  OFFENSE,3,303,a(ciii),,CT,OMD,MM,0.00,0.00,CRIMINAL,CLSACOSTS,,Y,,M,,,2020.07.01,9999.12.31
Title:  14,14-3-303 bi(ci),VENDING MACHINE LOCATION FOR NICOTINE PRODUCTS - 1ST OFFENSE,3,303,bi(ci),,CT,OMD,MF,250.00,250.00,NON-NRVC,CLSACOSTS,,N,320.00,M,,,2020.07.01,9999.12.31
Title:  14,14-3-303 bi(cii),VENDING MACHINE LOCATION FOR NICOTINE PRODUCTS - 2ND OFFENSE,3,303,bi(cii),,CT,OMD,MM,0.00,0.00,CRIMINAL,CLSACOSTS,,Y,,M,,,2020.07.01,9999.12.31
Title:  14,14-3-303 bi(ciii),VENDING MACHINE LOCATION FOR NICOTINE PRODUCTS - 3RD + OFFENSE,3,303,bi(ciii),,CT,OMD,MM,0.00,0.00,CRIMINAL,CLSACOSTS,,Y,,M,,,2020.07.01,9999.12.31
Title:  14,14-3-303 bii(ci),SELF-SERVICE DISPLAY OF NICOTINE PRODUCTS - 1ST OFFENSE,3,303,bii(ci),,CT,OMD,MF,250.00,250.00,NON-NRVC,CLSACOSTS,,N,320.00,M,,,2020.07.01,9999.12.31
Title:  14,14-3-303 bii(cii),SELF-SERVICE DISPLAY OF NICOTINE PRODUCTS - 2ND OFFENSE,3,303,bii(cii),,CT,OMD,MM,0.00,0.00,CRIMINAL,CLSACOSTS,,Y,,M,,,2020.07.01,9999.12.31
Title:  14,14-3-303 bii(ciii),SELF-SERVICE DISPLAY OF NICOTINE PRODUCTS - 3RD + OFFENSE,3,303,bii(ciii),,CT,OMD,MM,0.00,0.00,CRIMINAL,CLSACOSTS,,Y,,M,,,2020.07.01,9999.12.31
Title:  14,14-3-304 a,PURCHASE OF NICOTINE BY PERSON UNDER 21 ,3,304,a,,CT,OMD,MF,25.00,25.00,NON-NRVC,NONE,,N,25.00,M,,,2020.07.01,9999.12.31
Title:  14,14-3-305 a,POSSESSION OR USE OF NICOTINE BY PERSON UNDER AGE OF 21,3,305,a,,CT,OMD,MF,25.00,25.00,NON-NRVC,NONE,,N,25.00,M,,,2020.07.01,9999.12.31
Title:  14,14-3-309 a (1),3RD PARTY AGE VERIFICATION REQUIRED FOR REMOTE SALES OF NICOTINE PRODUCTS - 1ST OFFENSE,3,309,a,1,CT,OMD,MF,250.00,250.00,NON-NRVC,CLSACOSTS,,N,320.00,M,,,2020.07.01,9999.12.31
Title:  14,14-3-309 a (2),3RD PARTY AGE VERIFICATION REQUIRED FOR REMOTE SALES OF NICOTINE PRODUCTS - 2ND OFFENSE,3,309,a,2,CT,OMD,MM,0.00,0.00,CRIMINAL,CLSACOSTS,,Y,,M,,,2020.07.01,9999.12.31
Title:  14,14-3-309 a (3),3RD PARTY AGE VERIFICATION REQUIRED FOR REMOTE SALES OF NICOTINE PRODUCTS - 3RD + OFFENSE,3,309,a,3,CT,OMD,MM,0.00,0.00,CRIMINAL,CLSACOSTS,,Y,,M,,,2020.07.01,9999.12.31
Title:  14,14-3-309 b (1),USE OF DELIVERY METHOD REQUIRING SIGNATURE OF PERSON =>21 YEARS - 1ST OFFENSE,3,309,b,1,CT,OMD,MF,250.00,250.00,NON-NRVC,CLSACOSTS,,N,320.00,M,,,2020.07.01,9999.12.31
Title:  14,14-3-309 b (2),USE OF DELIVERY METHOD REQUIRING SIGNATURE OF PERSON =>21 YEARS - 2ND OFFENSE,3,309,b,2,CT,OMD,MM,0.00,0.00,CRIMINAL,CLSACOSTS,,Y,,M,,,2020.07.01,9999.12.31
Title:  14,14-3-309 b (3),USE OF DELIVERY METHOD REQUIRING SIGNATURE OF PERSON =>21 YEARS - 3RD + OFFENSE,3,309,b,3,CT,OMD,MM,0.00,0.00,CRIMINAL,CLSACOSTS,,Y,,M,,,2020.07.01,9999.12.31
Title:  14,14-3-401,CHILD PROTECTION ACT (CPA),3,401,,,CT,DEP,DEP,0.00,0.00,,NONE,,Y,,A,,,2007.02.01,9999.12.31
Title:  14,14-3-402 axiiA,CPA-NEGLECT,3,402,axiiA,,CT,DEP,DEP,0.00,0.00,,NONE,,Y,,A,,,2007.02.01,9999.12.31
Title:  14,14-3-402 axiiB,CPA-ABUSE,3,402,axiiB,,CT,DEP,DEP,0.00,0.00,,NONE,,Y,,A,,,2007.02.01,9999.12.31
Title:  14,14-6-201,JUVENILE JUSTICE ACT (JJA),6,201,,,CT,DEL,DEL,0.00,0.00,,NONE,,Y,,,,,2007.02.01,9999.12.31
Title:  14,14-6-201 aix,JJA-DELINQUENT ACT,6,201,aix,,CT,DEL,JV,0.00,0.00,,NONE,,Y,,,,,2007.02.01,9999.12.31
Title:  14,14-6-201 ax,JJA-DELINQUENT CHILD,6,201,ax,,CT,DEL,DEL,0.00,0.00,,NONE,,Y,,,,,2007.02.01,9999.12.31
Title:  14,14-6-401,CHINS ACTS,6,401,,,CT,CHN,CHN,0.00,0.00,,NONE,,Y,,,,,2007.02.01,9999.12.31
Title:  14,14-6-402 aiv,CHILD IN NEED OF SUPERVISION,6,402,aiv,,CT,CHN,CHN,0.00,0.00,,NONE,,Y,,,,,2007.02.01,9999.12.31
Title:  17,17-4-101 aii,SECURITIES: UNTRUE STATEMENT IN SECURITY SALE,4,101,aii,,CR,FEL,FEL,0.00,0.00,CRIMINAL,CLSACOSTS,,Y,,F,,,2012.07.01,9999.12.31
Title:  18,18-2-115 a,NUISANCE ABATEMENT,2,115,a,,CT,OMD,MM,0.00,0.00,CRIMINAL,CLSACOSTS,,Y,,M,,N,2013.07.01,9999.12.31
Title:  18,18-3-205 b,FAIL TO RETURN TAXABLE PROP,3,205,b,,CT,OMD,MM,0.00,0.00,CRIMINAL,CLSACOSTS,,Y,,M,,,2010.07.01,2021.06.30
Title:  18,18-3-504 ai,VIOLATE ORDERS CONCERNING THE PROPERTY OF THE COUNTY,3,504,ai,,CT,OMD,MM,,,CRIMINAL,CLSACOSTS,,Y,,M,,N,2015.07.01,9999.12.31
Title:  18,18-9-201 ai (Alcova),NATRONA COUNTY: PUB RECREATION & PLAYGROUND RULES,9,201,ai,Alcova,CT,OMD,MF,30.00,30.00,NON-NRVC,CLSACOSTS,,N,B,M,,,2010.07.01,9999.12.31
Title:  18,18-9-201 ai (Archery Range),NATRONA COUNTY: PUB RECREATION & PLAYGROUND RULES,9,201,ai,Archery Range,CT,OMD,MF,30.00,30.00,NON-NRVC,CLSACOSTS,,N,B,M,,,2010.07.01,9999.12.31
Title:  18,18-9-201 ai (Beartrap Meadow Park),NATRONA COUNTY: PUB RECREATION & PLAYGROUND RULES,9,201,ai,Beartrap Meadow Park,CT,OMD,MF,30.00,30.00,NON-NRVC,CLSACOSTS,,N,B,M,,,2010.07.01,9999.12.31
Title:  18,18-9-201 ai (Bridal Trail),NATRONA COUNTY: PUB RECREATION & PLAYGROUND RULES,9,201,ai,Bridal Trail,CT,OMD,MF,30.00,30.00,NON-NRVC,CLSACOSTS,,N,B,M,,,2010.07.01,9999.12.31
Title:  18,18-9-201 ai (Casper Mountain Park),NATRONA COUNTY: PUB RECREATION & PLAYGROUND RULES,9,201,ai,Casper Mountain Park,CT,OMD,MF,30.00,30.00,NON-NRVC,CLSACOSTS,,N,B,M,,,2010.07.01,9999.12.31
Title:  18,18-9-201 ai (Centennial - Alcova),NATRONA COUNTY: PUB RECREATION & PLAYGROUND RULES,9,201,ai,Centennial - Alcova,CT,OMD,MF,30.00,30.00,NON-NRVC,CLSACOSTS,,N,B,M,,,2010.07.01,9999.12.31
Title:  18,18-9-201 ai (Crimson Dawn),NATRONA COUNTY: PUB RECREATION & PLAYGROUND RULES,9,201,ai,Crimson Dawn,CT,OMD,MF,30.00,30.00,NON-NRVC,CLSACOSTS,,N,B,M,,,2010.07.01,9999.12.31
Title:  18,18-9-201 ai (Gray Reef),NATRONA COUNTY: PUB RECREATION & PLAYGROUND RULES,9,201,ai,Gray Reef,CT,OMD,MF,30.00,30.00,NON-NRVC,CLSACOSTS,,N,B,M,,,2010.07.01,9999.12.31
Title:  18,18-9-201 ai (Hell's Half Acre),NATRONA COUNTY: PUB RECREATION & PLAYGROUND RULES,9,201,ai,Hell's Half Acre,CT,OMD,MF,30.00,30.00,NON-NRVC,CLSACOSTS,,N,B,M,,,2010.07.01,9999.12.31
Title:  18,18-9-201 ai (Pathfinder),NATRONA COUNTY: PUB RECREATION & PLAYGROUND RULES,9,201,ai,Pathfinder,CT,OMD,MF,30.00,30.00,NON-NRVC,CLSACOSTS,,N,B,M,,,2010.07.01,9999.12.31
Title:  18,18-9-201 ai (Poison Spider Rifle Range),NATRONA COUNTY: PUB RECREATION & PLAYGROUND RULES,9,201,ai,Poison Spider Rifle Range,CT,OMD,MF,30.00,30.00,NON-NRVC,CLSACOSTS,,N,B,M,,,2010.07.01,9999.12.31
Title:  18,18-9-201 ai (Ponderosa Park),NATRONA COUNTY: PUB RECREATION & PLAYGROUND RULES,9,201,ai,Ponderosa Park,CT,OMD,MF,30.00,30.00,NON-NRVC,CLSACOSTS,,N,B,M,,,2010.07.01,9999.12.31
Title:  18,18-9-201 ai (Rotary Park),NATRONA COUNTY: PUB RECREATION & PLAYGROUND RULES,9,201,ai,Rotary Park,CT,OMD,MF,30.00,30.00,NON-NRVC,CLSACOSTS,,N,B,M,,,2010.07.01,9999.12.31
Title:  18,18-9-201 ai (Vista West Park),NATRONA COUNTY: PUB RECREATION & PLAYGROUND RULES,9,201,ai,Vista West Park,CT,OMD,MF,30.00,30.00,NON-NRVC,CLSACOSTS,,N,B,M,,,2010.07.01,9999.12.31
Title:  22,22-24-123 a,SIGN ANOTHER'S NAME OR MORE THAN ONCE,24,123,a,,CT,OMD,MM,0.00,0.00,CRIMINAL,CLSACOSTS,,Y,,M,,,2010.07.01,9999.12.31
Title:  22,22-26-102 ai(b),REGISTRATION:  NONQUALIFIED ELECTOR OR FALSE NAME OR FALSE ADDRESS,26,102,ai,b,CT,OMD,MM,0.00,0.00,CRIMINAL,CLSACOSTS,,Y,,M,,,2018.07.01,9999.12.31
Title:  22,22-26-102 ai(c),INTENT TO DECIEVE REGISTRATION:  NONQUALIFIED ELECTOR OR FALSE NAME OR FALSE ADDRESS - 1ST OFFENSE,26,102,ai,c,CT,OMD,MM,0.00,0.00,CRIMINAL,CLSACOSTS,,Y,,M,,,2018.07.01,9999.12.31
Title:  22,22-26-102 ai(d),INTENT TO DECIEVE REGISTRATION:  NONQUALIFIED ELECTOR OR FALSE NAME OR FALSE ADDRESS - SUBSEQUENT OFFENSE,26,102,ai,d,CR,FEL,FEL,0.00,0.00,CRIMINAL,CLSACOSTS,,Y,,F,,,2018.07.01,9999.12.31
Title:  22,22-26-102 aii(b),SOLICIT OR ATTEMT TO SOLICIT FALSE REGISTRATION,26,102,aii,b,CT,OMD,MM,0.00,0.00,CRIMINAL,CLSACOSTS,,Y,,M,,,2018.07.01,9999.12.31
Title:  22,22-26-102 aii(c),INTENT TO DECIEVE BY SOLICITING OR ATTEMTING TO SOLICIT FALSE REGISTRATION - 1ST OFFENSE,26,102,aii,c,CT,OMD,MM,0.00,0.00,CRIMINAL,CLSACOSTS,,Y,,M,,,2018.07.01,9999.12.31
Title:  22,22-26-102 aii(d),INTENT TO DECIEVE BY SOLICITING OR ATTEMTING TO SOLICIT FALSE REGISTRATION - SUBSEQUENT OFFENSE,26,102,aii,d,CR,FEL,FEL,0.00,0.00,CRIMINAL,CLSACOSTS,,Y,,F,,,2018.07.01,9999.12.31
Title:  22,22-26-102 aiii(b),DESTROY OR ALTER REGISTRATIONS RECORDS,26,102,aiii,b,CT,OMD,MM,0.00,0.00,CRIMINAL,CLSACOSTS,,Y,,M,,,2018.07.01,9999.12.31
Title:  22,22-26-102 aiii(c),INTENT TO DECIEVE BY DESTROYING OR ALTERING REGISTRATIONS RECORDS - 1ST OFFENSE,26,102,aiii,c,CT,OMD,MM,0.00,0.00,CRIMINAL,CLSACOSTS,,Y,,M,,,2018.07.01,9999.12.31
Title:  22,22-26-102 aiii(d),INTENT TO DECIEVE BY DESTROYING OR ALTERING REGISTRATIONS RECORDS - SUBSEQUENT OFFENSE,26,102,aiii,d,CR,FEL,FEL,0.00,0.00,CRIMINAL,CLSACOSTS,,Y,,F,,,2018.07.01,9999.12.31
Title:  22,22-26-102 aiv(b),REGISTRATION:  FALSE SWEARING AFTER CHALLENGE,26,102,aiv,b,CT,OMD,MM,0.00,0.00,CRIMINAL,CLSACOSTS,,Y,,M,,,2018.07.01,9999.12.31
Title:  22,22-26-102 aiv(c),INTENT TO DECIEVE REGISTRATION:  FALSE SWEARING AFTER CHALLENGE - 1ST OFFENSE,26,102,aiv,c,CT,OMD,MM,0.00,0.00,CRIMINAL,CLSACOSTS,,Y,,M,,,2018.07.01,9999.12.31
Title:  22,22-26-102 aiv(d),INTENT TO DECIEVE REGISTRATION:  FALSE SWEARING AFTER CHALLENGE - SUBSEQUENT OFFENSE,26,102,aiv,d,CR,FEL,FEL,0.00,0.00,CRIMINAL,CLSACOSTS,,Y,,F,,,2018.07.01,9999.12.31
Title:  22,22-26-106 ai(b),FALSE VOTING:  UNQUALIFIED ELECTOR,26,106,ai,b,CT,OMD,MM,0.00,0.00,CRIMINAL,CLSACOSTS,,Y,,M,,,2018.07.01,9999.12.31
Title:  22,22-26-106 ai(c),FALSE VOTING:  KNOWINGLY VOTE WHEN UNQUALIFIED ELECTOR - 1ST OFFENSE,26,106,ai,c,CT,OMD,MM,0.00,0.00,CRIMINAL,CLSACOSTS,,Y,,M,,,2018.07.01,9999.12.31
Title:  22,22-26-106 ai(d),FALSE VOTING:  KNOWINGLY VOTE WHEN UNQUALIFIED ELECTOR - SUBSEQUENT OFFENSE,26,106,ai,d,CR,FEL,FEL,0.00,0.00,CRIMINAL,CLSACOSTS,,Y,,F,,,2018.07.01,9999.12.31
Title:  22,22-26-106 aii(b),FALSE VOTING:  NAME OF ANOTHER OR FALSE NAME,26,106,aii,b,CT,OMD,MM,0.00,0.00,CRIMINAL,CLSACOSTS,,Y,,M,,,2018.07.01,9999.12.31
Title:  22,22-26-106 aii(c),FALSE VOTING:  KNOWINGLY VOTE IN THE NAME OF ANOTHER OR FALSE NAME - 1ST OFFENSE,26,106,aii,c,CT,OMD,MM,0.00,0.00,CRIMINAL,CLSACOSTS,,Y,,M,,,2018.07.01,9999.12.31
Title:  22,22-26-106 aii(d),FALSE VOTING:  KNOWINGLY VOTE IN THE NAME OF ANOTHER OR FALSE NAME - SUBSEQUENT OFFENSE,26,106,aii,d,CR,FEL,FEL,0.00,0.00,CRIMINAL,CLSACOSTS,,Y,,F,,,2018.07.01,9999.12.31
Title:  22,22-26-106 aiii(b),FALSE VOTING:  ANOTHER PRECINCT,26,106,aiii,b,CT,OMD,MM,0.00,0.00,CRIMINAL,CLSACOSTS,,Y,,M,,,2018.07.01,9999.12.31
Title:  22,22-26-106 aiii(c),FALSE VOTING:  KNOWINGLY  VOTE IN ANOTHER PRECINCT - 1ST OFFENSE,26,106,aiii,c,CT,OMD,MM,0.00,0.00,CRIMINAL,CLSACOSTS,,Y,,M,,,2018.07.01,9999.12.31
Title:  22,22-26-106 aiii(d),FALSE VOTING:  KNOWINGLY  VOTE IN ANOTHER PRECINCT - SUBSEQUENT OFFENSE,26,106,aiii,d,CR,FEL,FEL,0.00,0.00,CRIMINAL,CLSACOSTS,,Y,,F,,,2018.07.01,9999.12.31
Title:  22,22-26-106 aiv(b),FALSE VOTING:  VOTING MORE THAN ONCE,26,106,aiv,b,CT,OMD,MM,0.00,0.00,CRIMINAL,CLSACOSTS,,Y,,M,,,2018.07.01,9999.12.31
Title:  22,22-26-106 aiv(c),FALSE VOTING:  KNOWINGLY VOTE MORE THAN ONCE - 1ST OFFENSE,26,106,aiv,c,CT,OMD,MM,0.00,0.00,CRIMINAL,CLSACOSTS,,Y,,M,,,2018.07.01,9999.12.31
Title:  22,22-26-106 aiv(d),FALSE VOTING:  KNOWINGLY VOTE MORE THAN ONCE - SUBSEQUENT OFFENSE,26,106,aiv,d,CR,FEL,FEL,0.00,0.00,CRIMINAL,CLSACOSTS,,Y,,F,,,2018.07.01,9999.12.31
Title:  23,23-1-703 b (222),"APPLY FOR OR RECEIVE MOOSE, SHEEP LIC W/I  5 YRS",1,703,b,222,CT,GNF,MF,380.00,380.00,NON-NRVC,CLSACOSTS,,N,E,M,,,2020.07.01,9999.12.31
Title:  23,23-1-703 c (246),"APPLY FOR OR RECEIVE GRIZ BEAR, MTN GOAT LIC MORE THAN ONCE PER LIFETIME",1,703,c,246,CT,GNF,MF,380.00,380.00,NON-NRVC,CLSACOSTS,,N,E,M,,,2020.07.01,9999.12.31
Title:  23,23-2-101 c (822),LANDOWNER SIGNATURE ON LIC AS PROOF OF PERMISSION,2,101,c,822,CT,GNF,MF,80.00,80.00,NON-NRVC,CLSACOSTS,,N,C,M,,,2020.07.01,9999.12.31
Title:  23,23-2-102 a (233),VIOLATE AGE LIMIT FOR BIG OR TROPHY GAME LIC,2,102,a,233,CT,GNF,MF,80.00,80.00,NON-NRVC,CLSACOSTS,,N,C,M,,,2020.07.01,9999.12.31
Title:  23,23-2-102 b (601),TAKE SMALL GAME W/O LIC  -  AGE LIMITS,2,102,b,601,CT,GNF,MF,80.00,80.00,NON-NRVC,CLSACOSTS,,N,C,M,,,2020.07.01,9999.12.31
Title:  23,23-2-102 c (413),VIOLATE AGE LIMIT TO HUNT GAME BIRDS,2,102,c,413,CT,GNF,MF,80.00,80.00,NON-NRVC,CLSACOSTS,,N,C,M,,,2020.07.01,9999.12.31
Title:  23,23-2-104 c (701),TAKE GAME DURING SPEC ARCHERY PRE-SEASON W/O LIC,2,104,c,701,CT,GNF,MF,80.00,80.00,NON-NRVC,CLSACOSTS,,N,C,M,,,2020.07.01,9999.12.31
Title:  23,23-2-104 d (702) (1),ARCHER USE FIREARM DURING SPEC ARCHERY SEASON TO TAKE BIG OR TROPHY GAME,2,104,d,702 1,CT,GNF,MF,180.00,180.00,NON-NRVC,CLSACOSTS,,N,D,H,,,2020.07.01,9999.12.31
Title:  23,23-2-104 e (703),VIOLATE ARCHERY EQUIP SPEC,2,104,e,703,CT,GNF,MF,80.00,80.00,NON-NRVC,CLSACOSTS,,N,C,M,,,2020.07.01,9999.12.31
Title:  23,23-2-105 b (511),HUNT WITH FALCON W/O A LIC,2,105,b,511,CT,GNF,MF,80.00,80.00,NON-NRVC,CLSACOSTS,,N,C,M,,,2020.07.01,9999.12.31
Title:  23,23-2-105 c (501),TAKE OR EXPORT FALCON W/O LIC OR PERMIT,2,105,c,501,CT,GNF,MF,380.00,380.00,NON-NRVC,CLSACOSTS,,N,E,M,,,2020.07.01,9999.12.31
Title:  23,23-2-106 a (818),FAIL TO PRODUCE HUNTER SAFETY CARD,2,106,a,818,CT,GNF,MF,30.00,30.00,NON-NRVC,CLSACOSTS,,N,B,M,,,2020.07.01,9999.12.31
Title:  23,23-2-106 a (819),FAIL TO TAKE HUNTER SAFETY COURSE,2,106,a,819,CT,GNF,MF,30.00,30.00,NON-NRVC,CLSACOSTS,,N,B,M,,,2020.07.01,9999.12.31
Title:  23,23-2-106 c (812),VIOLATION OF HUNTER MENTOR PROGRAM,2,106,c,812,CT,GNF,MF,30.00,30.00,NON-NRVC,CLSACOSTS,,N,B,M,,,2020.07.01,9999.12.31
Title:  23,23-2-107 a (245) (1),VIOLATE AGE RESTRICTION TO TAKE WILD BISON,2,107,a,245 1,CT,GNF,MF,80.00,80.00,NON-NRVC,CLSACOSTS,,N,C,M,,,2020.07.01,9999.12.31
Title:  23,23-2-107 f (275),VIOLATION OF WILD BISON LICENSE ISSUANCE,2,107,f,275,CT,GNF,MF,380.00,380.00,NON-NRVC,CLSACOSTS,,N,E,M,,N,2020.07.01,9999.12.31
Title:  23,23-2-109 (247),MULTIPLE APPS FOR LIMITED LICS,2,109,,247,CT,GNF,MF,380.00,380.00,NON-NRVC,CLSACOSTS,,N,E,M,,,2020.07.01,9999.12.31
Title:  23,23-2-202 (101),FISH W/O LIC BY A PERSON 14 YRS & OLDER,2,202,,101,CT,GNF,MF,180.00,180.00,NON-NRVC,CLSACOSTS,,N,D,M,,,2020.07.01,9999.12.31
Title:  23,23-2-202 (102),FISH W/O LIC BY A PERSON UND 14 YRS,2,202,,102,CT,GNF,MF,30.00,30.00,NON-NRVC,CLSACOSTS,,N,B,M,,,2020.07.01,9999.12.31
Title:  23,23-2-206 a (140),TAKE GAME FISH W/ SPEARGUN WHILE NOT SUBMERGED,2,206,a,140,CT,GNF,MF,80.00,80.00,NON-NRVC,CLSACOSTS,,N,C,M,,,2020.07.01,9999.12.31
Title:  23,23-2-208 (142),LANDOWNER FAIL TO PROVIDE WRITTEN STATEMT FOR FISH,2,208,,142,CT,GNF,MF,80.00,80.00,NON-NRVC,CLSACOSTS,,N,C,M,,,2020.07.01,9999.12.31
Title:  23,23-2-302 f (338),TAXIDERMIST - FAIL TO SUBMIT RECORDS IN TIMELY MANNER,2,302,f,338,CT,GNF,MF,380.00,380.00,NON-NRVC,CLSACOSTS,,N,E,M,,N,2020.07.01,9999.12.31
Title:  23,23-2-303 d (605),FAIL TO CHECK STEEL-JAWED LEGHOLD TRAPS W/I 72 HRS,2,303,d,605,CT,GNF,MF,180.00,180.00,NON-NRVC,CLSACOSTS,,N,D,M,,,2020.07.01,9999.12.31
Title:  23,23-2-303 d (606),FAIL TO TAG LEGHOLD TRAPS OR SNARES,2,303,d,606,CT,GNF,MF,80.00,80.00,NON-NRVC,CLSACOSTS,,N,C,M,,,2020.07.01,9999.12.31
Title:  23,23-2-303 d (615),FAIL TO CHECK SNARE OR QUICK KILL BODY GRIP TRAP AT LEAST ONCE EACH WEEK,2,303,d,615,CT,GNF,MF,80.00,80.00,NON-NRVC,CLSACOSTS,,N,C,M,,,2020.07.01,9999.12.31
Title:  23,23-2-303 d (616),SET TRAP OR SNARE W/I 30 FT OF EXPOSED BAIT OR CARCASS OVER 5 LBS IN WEIGHT,2,303,d,616,CT,GNF,MF,80.00,80.00,NON-NRVC,CLSACOSTS,,N,C,M,,,2020.07.01,9999.12.31
Title:  23,23-2-303 d (618),SNARE W/O BREAK-AWAY LOCK,2,303,d,618,CT,GNF,MF,180.00,180.00,NON-NRVC,CLSACOSTS,,N,D,M,,,2020.07.01,9999.12.31
Title:  23,23-2-303 d (619),SNARE W/ BREAK-AWAY LOCK OVER 295 LBS,2,303,d,619,CT,GNF,MF,180.00,180.00,NON-NRVC,CLSACOSTS,,N,D,M,,,2020.07.01,9999.12.31
Title:  23,23-2-303 d (620),SNARE SET W/ LOOP IN EXCESS OF 12 IN.,2,303,d,620,CT,GNF,MF,80.00,80.00,NON-NRVC,CLSACOSTS,,N,C,M,,,2020.07.01,9999.12.31
Title:  23,23-2-303 d (621),FAIL TO IMMEDIATELY REMOVE WILDLIFE CAUGHT IN ANY TRAP OR SNARE,2,303,d,621,CT,GNF,MF,80.00,80.00,NON-NRVC,CLSACOSTS,,N,C,M,,,2020.07.01,9999.12.31
Title:  23,23-2-303 gi (622),UNLAWFUL TAMPERING OR REMOVAL OF A TRAP OR SNARE,2,303,gi,622,CT,GNF,MF,180.00,180.00,NON-NRVC,CLSACOSTS,,N,D,M,,,2020.07.01,9999.12.31
Title:  23,23-2-303 gii (623),UNLAWFULLY RELEASE OR REMOVE FURBEARER OR PREDATOR FROM TRAP OR SNARE,2,303,gii,623,CT,GNF,MF,180.00,180.00,NON-NRVC,CLSACOSTS,,N,D,M,,,2020.07.01,9999.12.31
Title:  23,23-2-304 a (307),FUR DEALER: OPERATE W/O LIC,2,304,a,307,CT,GNF,MF,380.00,380.00,NON-NRVC,CLSACOSTS,,N,E,M,,,2020.07.01,9999.12.31
Title:  23,23-2-304 b (332),FUR DEALER: FAIL TO KEEP RECORDS FOR CLOVEN HOOFED ANIMAL HIDES,2,304,b,332,CT,GNF,MF,380.00,380.00,NON-NRVC,CLSACOSTS,,N,E,M,,,2020.07.01,9999.12.31
Title:  23,23-2-304 d (324),"FUR DEALER: REMOVE TAG, TATTOO OR MRK",2,304,d,324,CT,GNF,MF,180.00,180.00,NON-NRVC,CLSACOSTS,,N,D,M,,,2020.07.01,9999.12.31
Title:  23,23-2-305 (326),PROPAGATE OR DOMESTICATE FURBEARERS W/O LIC,2,305,,326,CT,GNF,MF,380.00,380.00,NON-NRVC,CLSACOSTS,,N,E,M,,,2020.07.01,9999.12.31
Title:  23,23-2-306 a (815),FAIL TO PUR CONSERVATION STAMP,2,306,a,815,CT,GNF,MF,30.00,30.00,NON-NRVC,CLSACOSTS,,N,B,M,,,2020.07.01,9999.12.31
Title:  23,23-2-306 a (816),FAIL TO PRODUCE CONSERVATION STAMP,2,306,a,816,CT,GNF,MF,30.00,30.00,NON-NRVC,CLSACOSTS,,N,B,M,,,2020.07.01,9999.12.31
Title:  23,23-2-401 a (304),NON-RESIDENT HUNTING W/O GUIDE IN WILDERNESS,2,401,a,304,CT,GNF,MF,80.00,80.00,NON-NRVC,CLSACOSTS,,N,C,M,,,2020.07.01,9999.12.31
Title:  23,23-2-407 a (301),OUTFITTING W/O LIC,2,407,a,301,CT,GNF,MF,"1,460.00","1,460.00",NON-NRVC,CLSACOSTS,,N,1530.00,M,,,2020.07.01,9999.12.31
Title:  23,23-2-407 a (302),PROFESSIONAL GUIDE W/O LIC,2,407,a,302,CT,GNF,MF,750.00,750.00,NON-NRVC,CLSACOSTS,,N,820.00,M,,,2020.07.01,9999.12.31
Title:  23,23-2-410 aii (391),VIOLATE STATE OUTFITTER BD  RULES & REGS,2,410,aii,391,CT,GNF,MF,80.00,80.00,NON-NRVC,CLSACOSTS,,N,C,M,,,2020.07.01,9999.12.31
Title:  23,23-2-410 cv (306),OUTFIT W/O AREA  AUTHORIZATION,2,410,cv,306,CT,GNF,MF,80.00,80.00,NON-NRVC,CLSACOSTS,,N,C,M,,,2020.07.01,9999.12.31
Title:  23,23-2-412 ai (392),VIOLATE AGE REQUIREMTS FOR GUIDE'S LIC,2,412,ai,392,CT,GNF,MF,80.00,80.00,NON-NRVC,CLSACOSTS,,N,C,M,,,2020.07.01,9999.12.31
Title:  23,23-2-412 aii (393),OUTFITTER EMPLOYMT REQUIREMTS FOR PROFESSIONAL GUIDE,2,412,aii,393,CT,GNF,MF,80.00,80.00,NON-NRVC,CLSACOSTS,,N,C,M,,,2020.07.01,9999.12.31
Title:  23,23-2-416 ai (394),FRAUD OR MSREPRESENTATION IN OBTAINING OUTFITTER OR GUIDE LIC,2,416,ai,394,CT,GNF,MF,380.00,380.00,NON-NRVC,CLSACOSTS,,N,E,M,,,2020.07.01,9999.12.31
Title:  23,23-2-416 aix (395),ENDANGER HEALTH & SAFETY OF CLIENT,2,416,aix,395,CT,GNF,MF,80.00,80.00,NON-NRVC,CLSACOSTS,,N,C,M,,,2020.07.01,9999.12.31
Title:  23,23-2-416 av (396),UNETHICAL CONDUCT BY OUTFITTER OR GUIDE,2,416,av,396,CT,GNF,MF,80.00,80.00,NON-NRVC,CLSACOSTS,,N,C,M,,,2020.07.01,9999.12.31
Title:  23,23-2-416 avi (397),SUBSTANTIAL BREACH/CONTRACT BY OUTFITTER OR GUIDE,2,416,avi,397,CT,GNF,MF,80.00,80.00,NON-NRVC,CLSACOSTS,,N,C,M,,,2020.07.01,9999.12.31
Title:  23,23-2-416 avii (398),VIOLATE TERMS OF LIC BY OUTFITTER OR GUIDE,2,416,avii,398,CT,GNF,MF,80.00,80.00,NON-NRVC,CLSACOSTS,,N,C,M,,,2020.07.01,9999.12.31
Title:  23,23-2-416 aviii (399),INHUMANE TREATMT OF ANIMAL BY OUTFITTER OR GUIDE,2,416,aviii,399,CT,GNF,MF,80.00,80.00,NON-NRVC,CLSACOSTS,,N,C,M,,,2020.07.01,9999.12.31
Title:  23,23-3-103 c (401),TAKE GAME BIRDS W/O  LIC,3,103,c,401,CT,GNF,MF,80.00,80.00,NON-NRVC,CLSACOSTS,,N,C,M,,,2020.07.01,9999.12.31
Title:  23,23-3-103 c (604),TAKE  FURBEARER  ANIMAL W/O LIC,3,103,c,604,CT,GNF,MF,380.00,380.00,NON-NRVC,CLSACOSTS,,N,E,M,,,2020.07.01,9999.12.31
Title:  23,23-3-104 (201),FAIL TO TAG BIG OR TROPHY GAME ANIMAL,3,104,,201,CT,GNF,MF,180.00,180.00,NON-NRVC,CLSACOSTS,,N,D,M,,,2020.07.01,9999.12.31
Title:  23,23-3-104 (414),FAIL TO TAG TURKEY,3,104,,414,CT,GNF,MF,80.00,80.00,NON-NRVC,CLSACOSTS,,N,C,M,,,2020.07.01,9999.12.31
Title:  23,23-3-105 b (230),LANDOWNER'S COUPONS - FALSE CLAIM FOR REIMBURSEMT,3,105,b,230,CT,GNF,MF,380.00,380.00,NON-NRVC,CLSACOSTS,,N,E,M,,,2020.07.01,9999.12.31
Title:  23,23-3-105 b (231),HUNTER TURN COUPON INTO WRONG LANDOWNER,3,105,b,231,CT,GNF,MF,380.00,380.00,NON-NRVC,CLSACOSTS,,N,E,M,,,2020.07.01,9999.12.31
Title:  23,23-3-106 a (218),SHIP/TRANSPORT W/O GAME TAG W/I WY,3,106,a,218,CT,GNF,MF,80.00,80.00,NON-NRVC,CLSACOSTS,,N,C,M,,,2020.07.01,9999.12.31
Title:  23,23-3-106 b (219),SHIP/TRANSPORT GAME W/O GAME TAG OUTSIDE WY,3,106,b,219,CT,GNF,MF,80.00,80.00,NON-NRVC,CLSACOSTS,,N,C,M,,,2020.07.01,9999.12.31
Title:  23,23-3-108 a (409),DESTROY NEST OR EGGS OF NONPREDATIOUS BIRD,3,108,a,409,CT,GNF,MF,80.00,80.00,NON-NRVC,CLSACOSTS,,N,C,M,,,2020.07.01,9999.12.31
Title:  23,23-3-109 a (837),"USE DOG TO HUNT, RUN, HARASS BIG OR TROPHY GAME",3,109,a,837,CT,GNF,MF,180.00,180.00,NON-NRVC,CLSACOSTS,,N,D,M,,,2020.07.01,9999.12.31
Title:  23,23-3-109 c (838),DOG(S) CHASE BIG GAME,3,109,c,838,CT,GNF,MF,80.00,80.00,NON-NRVC,CLSACOSTS,,N,C,M,,,2020.07.01,9999.12.31
Title:  23,23-3-109 d (278),VIOL OF REQUIREMENTS FOR USE OF BLOOD-TRAILING DOG TO TRACK WOUNDED/KILLED BIG GAME,3,109,d,278,CT,GNF,MF,180.00,180.00,NON-NRVC,CLSACOSTS,,N,D,M,,,2020.07.01,9999.12.31
Title:  23,23-3-110 (410),VIOLATION OF FIREARM AND AMUNITION SPECIFICATION FOR GAME BIRDS/TURKEYS,3,110,,410,CT,GNF,MF,80.00,80.00,NON-NRVC,CLSACOSTS,,N,C,M,,,2020.07.01,9999.12.31
Title:  23,23-3-111 a (220),ILLEGAL FIREARM FOR TAKING BIG OR TROPHY GAME,3,111,a,220,CT,GNF,MF,180.00,180.00,NON-NRVC,CLSACOSTS,,N,D,M,,,2020.07.01,9999.12.31
Title:  23,23-3-112 ciii (874),USE OF SILENCER/TRESPASS/TAKE BIG OR TROPHY GAME ANIMAL,3,112,ciii,874,CT,GNF,MF,750.00,750.00,NON-NRVC,CLSACOSTS,,N,820.00,M,,N,2020.07.01,9999.12.31
Title:  23,23-3-113 a (203),FAIL TO WEAR FLUORESCENT ORANGE/PINK CLOTHING,3,113,a,203,CT,GNF,MF,30.00,30.00,NON-NRVC,CLSACOSTS,,N,B,M,,,2020.07.01,9999.12.31
Title:  23,23-3-115 (841),"DAMAGE - FAIL TO NOTIFY KILLING BEAR, LION, BOBCAT",3,115,,841,CT,GNF,MF,80.00,80.00,NON-NRVC,CLSACOSTS,,N,C,M,,,2020.07.01,9999.12.31
Title:  23,23-3-115 c (271),DAMAGE - FAIL TO NOTIFY KILLING GRAY WOLF,3,115,c,271,CT,GNF,MF,180.00,180.00,NON-NRVC,CLSACOSTS,,N,D,M,,,2020.07.01,9999.12.31
Title:  23,23-3-116 (415),FAIL TO NOTIFY &/OR MRK GAME BIRDS,3,116,,415,CT,GNF,MF,80.00,80.00,NON-NRVC,CLSACOSTS,,N,C,M,,,2020.07.01,9999.12.31
Title:  23,23-3-116 (416),FAIL TO PROVIDE DISEASE FREE CERTIFICATION,3,116,,416,CT,GNF,MF,80.00,80.00,NON-NRVC,CLSACOSTS,,N,C,M,,,2020.07.01,9999.12.31
Title:  23,23-3-116 (417),NO PERMIT FOR PRIVATE SOURCE GAME BIRDS,3,116,,417,CT,GNF,MF,80.00,80.00,NON-NRVC,CLSACOSTS,,N,C,M,,,2020.07.01,9999.12.31
Title:  23,23-3-117 (242),FAIL TO REGISTER BIGHORN SHEEP,3,117,,242,CT,GNF,MF,180.00,180.00,NON-NRVC,CLSACOSTS,,N,D,M,,,2020.07.01,9999.12.31
Title:  23,23-3-201 a (103),FISH W/ 2 OR MORE RODS OR POLES,3,201,a,103,CT,GNF,MF,30.00,30.00,NON-NRVC,CLSACOSTS,,N,B,M,,,2020.07.01,9999.12.31
Title:  23,23-3-201 a (118),UNATTENDED FISHING POLE OR ROD,3,201,a,118,CT,GNF,MF,30.00,30.00,NON-NRVC,CLSACOSTS,,N,B,M,,,2020.07.01,9999.12.31
Title:  23,23-3-201 b (104),FISH W/ MORE THAN 3 HOOKS/LINE,3,201,b,104,CT,GNF,MF,30.00,30.00,NON-NRVC,CLSACOSTS,,N,B,M,,,2020.07.01,9999.12.31
Title:  23,23-3-201 c (105),ILLEGAL SET LINES,3,201,c,105,CT,GNF,MF,80.00,80.00,NON-NRVC,CLSACOSTS,,N,C,M,,,2020.07.01,9999.12.31
Title:  23,23-3-201 d (106),"TAKE, WOUND OR DESTROY ANY FISH W/  FIREARM",3,201,d,106,CT,GNF,MF,180.00,180.00,NON-NRVC,CLSACOSTS,,N,D,M,,,2020.07.01,9999.12.31
Title:  23,23-3-201 e (107),SNAG FISH WHERE NOT SPECIFICALLY AUTHORIZED,3,201,e,107,CT,GNF,MF,80.00,80.00,NON-NRVC,CLSACOSTS,,N,C,M,,,2020.07.01,9999.12.31
Title:  23,23-3-202 a (111),FISH LIVE BAIT THAT IS NOT PROPER TYPE OR ORIGIN,3,202,a,111,CT,GNF,MF,80.00,80.00,NON-NRVC,CLSACOSTS,,N,C,M,,,2020.07.01,9999.12.31
Title:  23,23-3-202 b (108),USE ILLEGAL BAIT FOR FISHING - LIVE BAIT,3,202,b,108,CT,GNF,MF,80.00,80.00,NON-NRVC,CLSACOSTS,,N,C,M,,,2020.07.01,9999.12.31
Title:  23,23-3-202 c (110),RELEASE LIVE BAIT FISH W/O AUTHORIZATION,3,202,c,110,CT,GNF,MF,180.00,180.00,NON-NRVC,CLSACOSTS,,N,D,M,,,2020.07.01,9999.12.31
Title:  23,23-3-203 a (151),"PLACE NET, TROTLINE, ETC. ACROSS WATER",3,203,a,151,CT,GNF,MF,80.00,80.00,NON-NRVC,CLSACOSTS,,N,C,M,,,2020.07.01,9999.12.31
Title:  23,23-3-204 b (842),ALLOW REFUSE OR OTHER SUBST TO PASS INTO PUB WATER,3,204,b,842,CT,GNF,MF,380.00,380.00,NON-NRVC,CLSACOSTS,,N,E,M,,,2020.07.01,9999.12.31
Title:  23,23-3-205 a (121),SHIP OR TRANSPORT GAME FISH W/O LIC OR TAG,3,205,a,121,CT,GNF,MF,80.00,80.00,NON-NRVC,CLSACOSTS,,N,C,M,,,2020.07.01,9999.12.31
Title:  23,23-3-301 a (814),"IMPORT OR SELL GAME ANIMALS, WILDLIFE; POSSESS LIVE WILDLIFE",3,301,a,814,CT,GNF,MF,380.00,380.00,NON-NRVC,CLSACOSTS,,N,E,M,,,2020.07.01,9999.12.31
Title:  23,23-3-301 b (814),"IMPORT OR SELL GAME ANIMALS, WILDLIFE; POSSESS LIVE WILDLIFE",3,301,b,814,CT,GNF,MF,380.00,380.00,NON-NRVC,CLSACOSTS,,N,E,M,,,2020.07.01,9999.12.31
Title:  23,23-3-301 c (871),IMPORT/POSSESS WILDLIFE TAKEN ILLEGALLY OUT OF STATE,3,301,c,871,CT,GNF,MF,380.00,380.00,NON-NRVC,CLSACOSTS,,N,E,M,,N,2020.07.01,9999.12.31
Title:  23,23-3-302 (813),SELL GAME MEAT OR GAME FISH,3,302,,813,CT,GNF,MF,380.00,380.00,NON-NRVC,CLSACOSTS,,N,E,M,,,2020.07.01,9999.12.31
Title:  23,23-3-303 a (115),WASTE OR ABANDON GAME FISH,3,303,a,115,CT,GNF,MF,80.00,80.00,NON-NRVC,CLSACOSTS,07 GAME AND FISH,N,C,M,M,,2020.07.01,9999.12.31
Title:  23,23-3-303 a (224),WASTE OR ABANDON BIG GAME,3,303,a,224,CT,GNF,MF,380.00,380.00,NON-NRVC,CLSACOSTS,,N,E,M,,,2020.07.01,9999.12.31
Title:  23,23-3-303 a (406),WASTE OR ABANDON EDIBLE PORTIONS OF GAME BIRD,3,303,a,406,CT,GNF,MF,80.00,80.00,NON-NRVC,CLSACOSTS,07 GAME AND FISH,N,C,M,M,,2020.07.01,9999.12.31
Title:  23,23-3-303 a (613),WASTE OR ABANDON SMALL GAME,3,303,a,613,CT,GNF,MF,80.00,80.00,NON-NRVC,CLSACOSTS,07 GAME AND FISH,N,C,M,M,,2020.07.01,9999.12.31
Title:  23,23-3-303 a (870),ILLEGAL POSSESSION OF BIG GAME PARTS FROM WASTED ANIMAL,3,303,a,870,CT,GNF,MF,380.00,380.00,NON-NRVC,CLSACOSTS,,N,E,M,,N,2020.07.01,9999.12.31
Title:  23,23-3-303 b (225),FAIL TO REMOVE CARCASS W/I 48 HRS,3,303,b,225,CT,GNF,MF,180.00,180.00,NON-NRVC,CLSACOSTS,,N,D,M,,,2020.07.01,9999.12.31
Title:  23,23-3-303 c (226),ABANDON GAME MEAT AT MEAT PROCESSOR,3,303,c,226,CT,GNF,MF,180.00,180.00,NON-NRVC,CLSACOSTS,,N,D,M,,,2020.07.01,9999.12.31
Title:  23,23-3-304 a (608),"TAKE GAME ANIMAL W/ PIT, TRAP, ETC.",3,304,a,608,CT,GNF,MF,380.00,380.00,NON-NRVC,CLSACOSTS,,N,E,M,,,2020.07.01,9999.12.31
Title:  23,23-3-304 b (607),USE GAME PARTS FOR BAIT,3,304,b,607,CT,GNF,MF,380.00,380.00,NON-NRVC,CLSACOSTS,,N,E,M,,,2020.07.01,9999.12.31
Title:  23,23-3-304 d (249),ILLEGALLY BAIT BIG GAME,3,304,d,249,CT,GNF,MF,380.00,380.00,NON-NRVC,CLSACOSTS,,N,E,M,,,2020.07.01,9999.12.31
Title:  23,23-3-305 a (804),"HUNT, SHOOT OR KILL WILDLIFE FROM HWY",3,305,a,804,CT,GNF,MF,180.00,180.00,NON-NRVC,CLSACOSTS,,N,D,M,,,2020.07.01,9999.12.31
Title:  23,23-3-305 b (805),"HUNT, TRAP, FISH OR COLLECT ANTLERS/HORNS ON PRIVATE LAND W/O PERMISSION",3,305,b,805,CT,GNF,MF,380.00,380.00,NON-NRVC,CLSACOSTS,,N,E,M,,,2020.07.01,9999.12.31
Title:  23,23-3-305 c (806),"SHOOT FROM, ACROSS OR ALONG RDWYS",3,305,c,806,CT,GNF,MF,180.00,180.00,NON-NRVC,CLSACOSTS,,N,D,M,,,2020.07.01,9999.12.31
Title:  23,23-3-305 d (807),SHOOT FROM OR ACROSS ENCLOSED LANDS W/O PERMISSION,3,305,d,807,CT,GNF,MF,180.00,180.00,NON-NRVC,CLSACOSTS,,N,D,M,,,2020.07.01,9999.12.31
Title:  23,23-3-305 e (808),HUNT ON PRIVATE LAND AT NIGHT W/O PERMISSION,3,305,e,808,CT,GNF,MF,380.00,380.00,NON-NRVC,CLSACOSTS,,N,E,M,,,2020.07.01,9999.12.31
Title:  23,23-3-306 a (243),TAKE OR HARASS BIG GAME/TROPHY GAME/WILD BISON W/ OR FROM VEHICLE,3,306,a,243,CT,GNF,MF,380.00,380.00,NON-NRVC,CLSACOSTS,,N,E,M,,,2020.07.01,9999.12.31
Title:  23,23-3-306 a (407),TAKE OR HARASS GAME BIRD W/ OR FROM VEHICLE,3,306,a,407,CT,GNF,MF,180.00,180.00,NON-NRVC,CLSACOSTS,,N,D,M,,,2020.07.01,9999.12.31
Title:  23,23-3-306 a (614),TAKE OR HARASS SMALL GAME OR FURBEARER W/ OR FROM VEHICLE,3,306,a,614,CT,GNF,MF,180.00,180.00,NON-NRVC,CLSACOSTS,,N,D,M,,,2020.07.01,9999.12.31
Title:  23,23-3-306 a (854),TAKE OR HARASS NONGAME W/ OR FROM VEHICLE,3,306,a,854,CT,GNF,MF,180.00,180.00,NON-NRVC,CLSACOSTS,,N,D,M,,,2020.07.01,9999.12.31
Title:  23,23-3-306 b (148),ILLEGALLY USE ARTIFICIAL LIGHT FOR FISHING,3,306,b,148,CT,GNF,MF,80.00,80.00,NON-NRVC,CLSACOSTS,,N,C,M,,,2020.07.01,9999.12.31
Title:  23,23-3-307 a (832),HUNTING WHILE UND INFLU OF DRUGS OR ALCOHOL,3,307,a,832,CT,GNF,MF,750.00,750.00,NON-NRVC,CLSACOSTS,,N,820.00,M,,,2020.07.01,9999.12.31
Title:  23,23-3-308 a (821),FAIL TO STOP AT ESTABLISHED CHECK STATION,3,308,a,821,CT,GNF,MF,30.00,30.00,NON-NRVC,CLSACOSTS,,N,B,M,,,2020.07.01,9999.12.31
Title:  23,23-3-310 (878),ILLEGAL POSSESSION OF ROAD KILLED WILDLIFE,3,310,,878,CT,GNF,MF,180.00,180.00,NON-NRVC,CLSACOSTS,,N,D,M,,,2021.07.01,9999.12.31
Title:  23,23-3-401 (309),TAXIDERMIST: OPERATE W/O LIC,3,401,,309,CT,GNF,MF,380.00,380.00,NON-NRVC,CLSACOSTS,,N,E,M,,,2020.07.01,9999.12.31
Title:  23,23-3-401 (312),LIVE BAIT DEALER: OPERATE W/O LIC,3,401,,312,CT,GNF,MF,380.00,380.00,NON-NRVC,CLSACOSTS,,N,E,M,,,2020.07.01,9999.12.31
Title:  23,23-3-401 (314),GAME BIRD FARM: OPERATE W/O LIC,3,401,,314,CT,GNF,MF,380.00,380.00,NON-NRVC,CLSACOSTS,,N,E,M,,,2020.07.01,9999.12.31
Title:  23,23-3-401 (322),FISHING  PRESERVE: OPERATE W/O LIC,3,401,,322,CT,GNF,MF,380.00,380.00,NON-NRVC,CLSACOSTS,,N,E,M,,,2020.07.01,9999.12.31
Title:  23,23-3-402 (112),POSSESS LIVE BAIT FISH W/O RECEIPT OR PERMIT,3,402,,112,CT,GNF,MF,80.00,80.00,NON-NRVC,CLSACOSTS,,N,C,M,,,2020.07.01,9999.12.31
Title:  23,23-3-402 (113),OVER LIMIT OF GAME FISH,3,402,,113,CT,GNF,MF,80.00,80.00,NON-NRVC,CLSACOSTS,07 GAME AND FISH,N,C,M,M,,2020.07.01,9999.12.31
Title:  23,23-3-402 (114),TAKE FISH IN VIOLATION OF SIZE OR SLOT LIMITS,3,402,,114,CT,GNF,MF,80.00,80.00,NON-NRVC,CLSACOSTS,,N,C,M,,,2020.07.01,9999.12.31
Title:  23,23-3-402 (116),FISH BEFORE OR AFT HRS,3,402,,116,CT,GNF,MF,80.00,80.00,NON-NRVC,CLSACOSTS,,N,C,M,,,2020.07.01,9999.12.31
Title:  23,23-3-402 (117),FISH IN CLOSED WATERS,3,402,,117,CT,GNF,MF,80.00,80.00,NON-NRVC,CLSACOSTS,,N,C,M,,,2020.07.01,9999.12.31
Title:  23,23-3-402 (119),FISH ADJOINING STATE W/O RECIPROCAL STAMP,3,402,,119,CT,GNF,MF,80.00,80.00,NON-NRVC,CLSACOSTS,,N,C,M,,,2020.07.01,9999.12.31
Title:  23,23-3-402 (126),ICE FISHING  W/ MORE THAN 6 LINES IN SPEC REG AREAS,3,402,,126,CT,GNF,MF,30.00,30.00,NON-NRVC,CLSACOSTS,,N,B,M,,,2020.07.01,9999.12.31
Title:  23,23-3-402 (127),"FAIL TO ATTACH NAME TO EA ICE FISHING ROD, TIP-UP OR LINE",3,402,,127,CT,GNF,MF,30.00,30.00,NON-NRVC,CLSACOSTS,,N,B,M,,,2020.07.01,9999.12.31
Title:  23,23-3-402 (129),ICE FISHING NON ATTENDANCE - MORE THAN 300 YDS,3,402,,129,CT,GNF,MF,30.00,30.00,NON-NRVC,CLSACOSTS,,N,B,M,,,2020.07.01,9999.12.31
Title:  23,23-3-402 (130),POSSESS FISH WHEN SPECIES OR NO. CANNOT BE DETERMINED,3,402,,130,CT,GNF,MF,80.00,80.00,NON-NRVC,CLSACOSTS,,N,C,M,,,2020.07.01,9999.12.31
Title:  23,23-3-402 (131),POSSESS FISH W/O HEAD OR TAIL ATTACHED,3,402,,131,CT,GNF,MF,80.00,80.00,NON-NRVC,CLSACOSTS,,N,C,M,,,2020.07.01,9999.12.31
Title:  23,23-3-402 (133),USE GAME FISH FLESH AS BAIT,3,402,,133,CT,GNF,MF,80.00,80.00,NON-NRVC,CLSACOSTS,,N,C,M,,,2020.07.01,9999.12.31
Title:  23,23-3-402 (134),SEINE OR TRAP FISH W/O LIC,3,402,,134,CT,GNF,MF,80.00,80.00,NON-NRVC,CLSACOSTS,,N,C,M,,,2020.07.01,9999.12.31
Title:  23,23-3-402 (135),USE AN ILLEGAL SEINE OR NET,3,402,,135,CT,GNF,MF,30.00,30.00,NON-NRVC,CLSACOSTS,,N,B,M,,,2020.07.01,9999.12.31
Title:  23,23-3-402 (136),USE AN ILLEGAL FISH TRAP,3,402,,136,CT,GNF,MF,30.00,30.00,NON-NRVC,CLSACOSTS,,N,B,M,,,2020.07.01,9999.12.31
Title:  23,23-3-402 (137),USE ILLEGAL NO. OF FISH TRAPS,3,402,,137,CT,GNF,MF,30.00,30.00,NON-NRVC,CLSACOSTS,,N,B,M,,,2020.07.01,9999.12.31
Title:  23,23-3-402 (138),FAIL TO TAG FISH TRAPS W/ NAME,3,402,,138,CT,GNF,MF,30.00,30.00,NON-NRVC,CLSACOSTS,,N,B,M,,,2020.07.01,9999.12.31
Title:  23,23-3-402 (139),POSSESS GAME FISH TAKEN IN FISH TRAP OR SEINE,3,402,,139,CT,GNF,MF,80.00,80.00,NON-NRVC,CLSACOSTS,,N,C,M,,,2020.07.01,9999.12.31
Title:  23,23-3-402 (141),VIOLATE UNDWATER FISH REGS,3,402,,141,CT,GNF,MF,30.00,30.00,NON-NRVC,CLSACOSTS,,N,B,M,,,2020.07.01,9999.12.31
Title:  23,23-3-402 (143),ILLEGALLY TRANSPORT LIVE FISH OR EGGS,3,402,,143,CT,GNF,MF,80.00,80.00,NON-NRVC,CLSACOSTS,,N,C,M,,,2020.07.01,9999.12.31
Title:  23,23-3-402 (144),ILLEGALLY TAG OR MRK FISH,3,402,,144,CT,GNF,MF,80.00,80.00,NON-NRVC,CLSACOSTS,,N,C,M,,,2020.07.01,9999.12.31
Title:  23,23-3-402 (146),FAIL TO REMOVE ICE FISHING SHELTER,3,402,,146,CT,GNF,MF,180.00,180.00,NON-NRVC,CLSACOSTS,,N,D,M,,,2020.07.01,9999.12.31
Title:  23,23-3-402 (147),CONDUCT FISHING CONTEST W/O PRIOR APPROVAL,3,402,,147,CT,GNF,MF,380.00,380.00,NON-NRVC,CLSACOSTS,,N,E,M,,,2020.07.01,9999.12.31
Title:  23,23-3-402 (149),USE NATURAL BAIT IN ARTIFICIAL BAIT AREA,3,402,,149,CT,GNF,MF,80.00,80.00,NON-NRVC,CLSACOSTS,,N,C,M,,,2020.07.01,9999.12.31
Title:  23,23-3-402 (150),VIOLATE FISHING  REGS NOT LISTED ELSEWHERE,3,402,,150,CT,GNF,MF,80.00,80.00,NON-NRVC,CLSACOSTS,,N,C,M,,,2020.07.01,9999.12.31
Title:  23,23-3-402 (152),TAKE BAIT FISH IN CLOSED AREA,3,402,,152,CT,GNF,MF,80.00,80.00,NON-NRVC,CLSACOSTS,,N,C,M,,,2020.07.01,9999.12.31
Title:  23,23-3-402 (153),FAIL TO IMMEDIATELY RELEASE FISH DURING CLOSURE,3,402,,153,CT,GNF,MF,80.00,80.00,NON-NRVC,CLSACOSTS,,N,C,M,,,2020.07.01,9999.12.31
Title:  23,23-3-402 (202),FAIL TO TAG CARCASS IN A VISIBLE MANNER,3,402,,202,CT,GNF,MF,80.00,80.00,NON-NRVC,CLSACOSTS,,N,C,M,,,2020.07.01,9999.12.31
Title:  23,23-3-402 (205),HUNT BIG GAME/TROPHY GAME/WILD BISON WRONG AREA,3,402,,205,CT,GNF,MF,180.00,180.00,NON-NRVC,CLSACOSTS,,N,D,M,,,2020.07.01,9999.12.31
Title:  23,23-3-402 (206),TAKE OVER LIMIT BIG GAME/TROPHY GAME/WILD BISON,3,402,,206,CT,GNF,MF,380.00,380.00,NON-NRVC,CLSACOSTS,,N,E,M,,,2020.07.01,9999.12.31
Title:  23,23-3-402 (221),"FAIL TO RETAIN EVI OF SEX, SPECIES, ANTLER/HORN DEVELOPMT ON BIG GAME/WILD BISON",3,402,,221,CT,GNF,MF,80.00,80.00,NON-NRVC,CLSACOSTS,,N,C,M,,,2020.07.01,9999.12.31
Title:  23,23-3-402 (229),PUR MORE THAN AUTHORIZED NO. OF LICS,3,402,,229,CT,GNF,MF,180.00,180.00,NON-NRVC,CLSACOSTS,,N,D,M,,,2020.07.01,9999.12.31
Title:  23,23-3-402 (232),HUNT ELK W/O SPEC MANAGEMT STAMP,3,402,,232,CT,GNF,MF,30.00,30.00,NON-NRVC,CLSACOSTS,,N,B,M,,,2020.07.01,9999.12.31
Title:  23,23-3-402 (234),TAKE BIG GAME BEFORE OR AFT LEGAL HUNTING HRS,3,402,,234,CT,GNF,MF,180.00,180.00,NON-NRVC,CLSACOSTS,,N,D,M,,,2020.07.01,9999.12.31
Title:  23,23-3-402 (235),TAKE TROPHY GAME BEFORE OR AFT LEGAL HUNTING HRS,3,402,,235,CT,GNF,MF,180.00,180.00,NON-NRVC,CLSACOSTS,,N,D,M,,,2020.07.01,9999.12.31
Title:  23,23-3-402 (236),TAKE BIG OR TROPHY GAME W/ WRONG TYPE OF LIC,3,402,,236,CT,GNF,MF,180.00,180.00,NON-NRVC,CLSACOSTS,,N,D,M,,,2020.07.01,9999.12.31
Title:  23,23-3-402 (238),FALSE STATEMENT/FAIL TO REGISTER BLACK BEAR KILL,3,402,,238,CT,GNF,MF,180.00,180.00,NON-NRVC,CLSACOSTS,,N,D,M,,,2020.07.01,9999.12.31
Title:  23,23-3-402 (239),FAIL TO LEAVE EVI OF SEX ON BEAR PELT,3,402,,239,CT,GNF,MF,80.00,80.00,NON-NRVC,CLSACOSTS,,N,C,M,,,2020.07.01,9999.12.31
Title:  23,23-3-402 (240),FALSE STATEMENT/FAIL TO REGISTER MTN LION KILL,3,402,,240,CT,GNF,MF,180.00,180.00,NON-NRVC,CLSACOSTS,,N,D,M,,,2020.07.01,9999.12.31
Title:  23,23-3-402 (241),FAIL TO LEAVE EVI OF SEX ON MTN LION PELT,3,402,,241,CT,GNF,MF,80.00,80.00,NON-NRVC,CLSACOSTS,,N,C,M,,,2020.07.01,9999.12.31
Title:  23,23-3-402 (244),FAIL TO TAKE OR RELEASE TREED LION,3,402,,244,CT,GNF,MF,380.00,380.00,NON-NRVC,CLSACOSTS,,N,E,M,,,2020.07.01,9999.12.31
Title:  23,23-3-402 (250),VIOLATE BIG GAME/TROPHY GAME/WILD BISON  REGS NOT LISTED ELSEWHERE,3,402,,250,CT,GNF,MF,180.00,180.00,NON-NRVC,CLSACOSTS,,N,D,M,,,2020.07.01,9999.12.31
Title:  23,23-3-402 (252),VIOLATE BEAR BAITING REGS,3,402,,252,CT,GNF,MF,80.00,80.00,NON-NRVC,CLSACOSTS,,N,C,M,,,2020.07.01,9999.12.31
Title:  23,23-3-402 (256),FALSE STATEMENT/FAIL TO REPORT TAKE OF A WOLF/PREDATOR AREA,3,402,,256,CT,GNF,MF,180.00,180.00,NON-NRVC,CLSACOSTS,,N,D,M,,,2020.07.01,9999.12.31
Title:  23,23-3-402 (257),FALSE STATEMENT/FAIL TO REGISTER MOUNTAIN GOAT,3,402,,257,CT,GNF,MF,180.00,180.00,NON-NRVC,CLSACOSTS,,N,D,M,,,2020.07.01,9999.12.31
Title:  23,23-3-402 (258),FALSE STATEMENT ON BIGHORN SHEEP REGISTRATION,3,402,,258,CT,GNF,MF,180.00,180.00,NON-NRVC,CLSACOSTS,,N,D,M,,,2019.07.01,9999.12.31
Title:  23,23-3-402 (260),FAIL TO TAG WILD BISON,3,402,,260,CT,GNF,MF,180.00,180.00,NON-NRVC,CLSACOSTS,,N,D,M,,,2020.07.01,9999.12.31
Title:  23,23-3-402 (261),ILLEGAL FIREARM FOR TAKING WILD BISON,3,402,,261,CT,GNF,MF,180.00,180.00,NON-NRVC,CLSACOSTS,,N,D,M,,,2020.07.01,9999.12.31
Title:  23,23-3-402 (262),WASTE OR ABANDON WILD BISON,3,402,,262,CT,GNF,MF,380.00,380.00,NON-NRVC,CLSACOSTS,,N,E,M,,,2020.07.01,9999.12.31
Title:  23,23-3-402 (264),TAKE WILD BISON BEFORE/AFTER LEGAL HOURS,3,402,,264,CT,GNF,MF,180.00,180.00,NON-NRVC,CLSACOSTS,,N,D,M,,,2020.07.01,9999.12.31
Title:  23,23-3-402 (265),VIOL ARCHERY EQUIP FOR WILD BISON,3,402,,265,CT,GNF,MF,80.00,80.00,NON-NRVC,CLSACOSTS,,N,C,M,,,2020.07.01,9999.12.31
Title:  23,23-3-402 (266),TAKE WILD BISON W/WRONG TYPE LICENSE,3,402,,266,CT,GNF,MF,380.00,380.00,NON-NRVC,CLSACOSTS,,N,E,M,,,2020.07.01,9999.12.31
Title:  23,23-3-402 (267),FAIL TO RETURN WILD BISON HARVEST CARD,3,402,,267,CT,GNF,MF,80.00,80.00,NON-NRVC,CLSACOSTS,,N,C,M,,,2020.07.01,9999.12.31
Title:  23,23-3-402 (268),FAIL TO WEAR FLUORESCENT ORANGE/PINK CLOTHING WHILE HUNTING WILD BISON,3,402,,268,CT,GNF,MF,30.00,30.00,NON-NRVC,CLSACOSTS,,N,B,M,,,2020.07.01,9999.12.31
Title:  23,23-3-402 (270),FALSE STATEMENT/FAIL TO REPORT/REGISTER GRAY WOLF KILL/TROPHY GAME AREA,3,402,,270,CT,GNF,MF,180.00,180.00,NON-NRVC,CLSACOSTS,,N,D,M,,,2020.07.01,9999.12.31
Title:  23,23-3-402 (272),FAIL TO SURRENDER GRAY WOLF TRACKING DEVICE,3,402,,272,CT,GNF,MF,180.00,180.00,NON-NRVC,CLSACOSTS,,N,D,M,,,2020.07.01,9999.12.31
Title:  23,23-3-402 (276),TAKING WRONG SPECIES OF BIG GAME ANIMAL,3,402,,276,CT,GNF,MF,180.00,180.00,NON-NRVC,CLSACOSTS,,N,D,M,,,2020.07.01,9999.12.31
Title:  23,23-3-402 (277),FALSE STATEMENT TO OBTAIN PREFERENCE POINT,3,402,,277,CT,GNF,MF,180.00,180.00,NON-NRVC,CLSACOSTS,,N,D,M,,,2020.07.01,9999.12.31
Title:  23,23-3-402 (282),FAIL TO MAKE REASONABLE EFFORT TO RETRIEVE BIG GAME/TROPHY GAME/WILD BISON,3,402,,282,CT,GNF,MF,180.00,180.00,NON-NRVC,CLSACOSTS,,N,D,M,,,2020.07.01,9999.12.31
Title:  23,23-3-402 (308),FUR DEALER: FAIL TO  KEEP RECORDS,3,402,,308,CT,GNF,MF,380.00,380.00,NON-NRVC,CLSACOSTS,,N,E,M,,,2020.07.01,9999.12.31
Title:  23,23-3-402 (311),TAXIDERMIST: FAIL TO KEEP RECORDS,3,402,,311,CT,GNF,MF,380.00,380.00,NON-NRVC,CLSACOSTS,,N,E,M,,,2020.07.01,9999.12.31
Title:  23,23-3-402 (313),LIVE BAIT DEALER: FAIL TO PROVIDE RECEIPT,3,402,,313,CT,GNF,MF,30.00,30.00,NON-NRVC,CLSACOSTS,,N,B,M,,,2020.07.01,9999.12.31
Title:  23,23-3-402 (315),GAME BIRD FARM: NO CERTIFICATION OF ORIGIN,3,402,,315,CT,GNF,MF,380.00,380.00,NON-NRVC,CLSACOSTS,,N,E,M,,,2020.07.01,9999.12.31
Title:  23,23-3-402 (316),GAME BIRD FARM: NO DISEASE FREE CERTIFICATION,3,402,,316,CT,GNF,MF,380.00,380.00,NON-NRVC,CLSACOSTS,,N,E,M,,,2020.07.01,9999.12.31
Title:  23,23-3-402 (317),GAME BIRD FARM: NO NOTICE OF DISEASE INFECTION,3,402,,317,CT,GNF,MF,380.00,380.00,NON-NRVC,CLSACOSTS,,N,E,M,,,2020.07.01,9999.12.31
Title:  23,23-3-402 (318),GAME BIRD FARM: FAIL TO RELEASE MIN NO. OF BIRDS,3,402,,318,CT,GNF,MF,180.00,180.00,NON-NRVC,CLSACOSTS,,N,D,M,,,2020.07.01,9999.12.31
Title:  23,23-3-402 (319),GAME BIRD FARM: FAIL TO KEEP/PROVIDE RECORDS,3,402,,319,CT,GNF,MF,380.00,380.00,NON-NRVC,CLSACOSTS,,N,E,M,,,2020.07.01,9999.12.31
Title:  23,23-3-402 (320),GAME BIRD FARM: FAIL TO DISPOSE OF BIRDS,3,402,,320,CT,GNF,MF,380.00,380.00,NON-NRVC,CLSACOSTS,,N,E,M,,,2020.07.01,9999.12.31
Title:  23,23-3-402 (325),FAIL TO PROVIDE COPY OF FUR DEALER  LIC BY EMPLOYEE,3,402,,325,CT,GNF,MF,80.00,80.00,NON-NRVC,CLSACOSTS,,N,C,M,,,2020.07.01,9999.12.31
Title:  23,23-3-402 (331),COMMERCIAL OR SCIENTIFIC USE OR COLLECTION OF WILDLIFE W/O A PERMIT,3,402,,331,CT,GNF,MF,380.00,380.00,NON-NRVC,CLSACOSTS,,N,E,M,,,2020.07.01,9999.12.31
Title:  23,23-3-402 (337),FAIL TO SUBMIT LIC RPT IN TIMELY MANNER,3,402,,337,CT,GNF,MF,180.00,180.00,NON-NRVC,CLSACOSTS,,N,D,M,,,2020.07.01,9999.12.31
Title:  23,23-3-402 (339),FUR DEALER - FAIL TO SUBMIT RECORDS IN TIMELY MANNER,3,402,,339,CT,GNF,MF,380.00,380.00,NON-NRVC,CLSACOSTS,,N,E,M,,N,2020.07.01,9999.12.31
Title:  23,23-3-402 (340),GAME BIRD FARM - FAIL TO SUBMIT RECORDS IN TIMELY MANNER,3,402,,340,CT,GNF,MF,380.00,380.00,NON-NRVC,CLSACOSTS,,N,E,M,,N,2020.07.01,9999.12.31
Title:  23,23-3-402 (341),LIVE BAIT DEALER - FAIL TO KEEP RECORDS,3,402,,341,CT,GNF,MF,380.00,380.00,NON-NRVC,CLSACOSTS,,N,E,M,,N,2020.07.01,9999.12.31
Title:  23,23-3-402 (342),LIVE BAIT DEALER - FAIL TO SUBMIT RECORDS IN TIMELY MANNER,3,402,,342,CT,GNF,MF,380.00,380.00,NON-NRVC,CLSACOSTS,,N,E,M,,N,2020.07.01,9999.12.31
Title:  23,23-3-402 (343),LIVE BAIT DEALER - FAIL TO MAINTAIN RECORDS AT BUSINESS LOCATION,3,402,,343,CT,GNF,MF,380.00,380.00,NON-NRVC,CLSACOSTS,,N,E,M,,N,2020.07.01,9999.12.31
Title:  23,23-3-402 (344),GAME BIRD FARM - VIOLATION OF SAGE GROUSE VIOLATIONS,3,402,,344,CT,GNF,MF,380.00,380.00,NON-NRVC,CLSACOSTS,,N,E,M,,,2020.07.01,9999.12.31
Title:  23,23-3-402 (345),TANNERY - FAIL TO KEEP RECORDS,3,402,,345,CT,GNF,MF,380.00,380.00,NON-NRVC,CLSACOSTS,,N,E,M,,,2020.07.01,9999.12.31
Title:  23,23-3-402 (346),TANNERY - FAIL TO SUBMIT RECORDS IN TIMELY MANNER,3,402,,346,CT,GNF,MF,380.00,380.00,NON-NRVC,CLSACOSTS,,N,E,M,,,2020.07.01,9999.12.31
Title:  23,23-3-402 (350),VIOLATE COMMERCIAL  REGS NOT LISTED ELSEWHERE,3,402,,350,CT,GNF,MF,380.00,380.00,NON-NRVC,CLSACOSTS,,N,E,M,,,2020.07.01,9999.12.31
Title:  23,23-3-402 (402),TAKE GAME BIRDS DURING CLOSED SEASON,3,402,,402,CT,GNF,MF,80.00,80.00,NON-NRVC,CLSACOSTS,,N,C,M,,,2020.07.01,9999.12.31
Title:  23,23-3-402 (403),TAKE OVER LIMIT OF GAME BIRDS,3,402,,403,CT,GNF,MF,80.00,80.00,NON-NRVC,CLSACOSTS,07 GAME AND FISH,N,C,M,M,,2020.07.01,9999.12.31
Title:  23,23-3-402 (404),FAIL TO RETAIN EVI OF SEX OR SPECIES ON A GAME BIRD,3,402,,404,CT,GNF,MF,80.00,80.00,NON-NRVC,CLSACOSTS,,N,C,M,,,2020.07.01,9999.12.31
Title:  23,23-3-402 (408),FAIL TO OBTAIN WATERFOWL STAMP PRIOR TO HUNTING,3,402,,408,CT,GNF,MF,30.00,30.00,NON-NRVC,CLSACOSTS,,N,B,M,,,2020.07.01,9999.12.31
Title:  23,23-3-402 (411),HUNT BIRDS BEFORE OR AFT LEGAL HRS,3,402,,411,CT,GNF,MF,80.00,80.00,NON-NRVC,CLSACOSTS,,N,C,M,,,2020.07.01,9999.12.31
Title:  23,23-3-402 (412),FAIL TO USE NON-TOXIC SHOT FOR WATERFOWL OR IN RESTRICTED AREAS,3,402,,412,CT,GNF,MF,80.00,80.00,NON-NRVC,CLSACOSTS,,N,C,M,,,2020.07.01,9999.12.31
Title:  23,23-3-402 (418),FAIL TO WEAR FLUORESCENT ORANGE/PINK CLOTHING WHILE BIRD HUNTING,3,402,,418,CT,GNF,MF,30.00,30.00,NON-NRVC,CLSACOSTS,,N,B,M,,,2020.07.01,9999.12.31
Title:  23,23-3-402 (419),HUNT PHEASANT W/O SPEC MANAGEMT STAMP,3,402,,419,CT,GNF,MF,30.00,30.00,NON-NRVC,CLSACOSTS,,N,B,M,,,2020.07.01,9999.12.31
Title:  23,23-3-402 (420),HUNT PHEASANT W/O SPEC PERMIT AS REQ'D AT SPRINGER & GLENDO,3,402,,420,CT,GNF,MF,30.00,30.00,NON-NRVC,CLSACOSTS,,N,B,M,,,2020.07.01,9999.12.31
Title:  23,23-3-402 (421),FAIL TO OBTAIN HIP STAMP PRIOR TO HUNTING,3,402,,421,CT,GNF,MF,30.00,30.00,NON-NRVC,CLSACOSTS,,N,B,M,,,2020.07.01,9999.12.31
Title:  23,23-3-402 (422),FAIL TO MAKE REASONABLE EFFORT TO RETRIEVE GAME BIRD,3,402,,422,CT,GNF,MF,80.00,80.00,NON-NRVC,CLSACOSTS,,N,C,M,,,2020.07.01,9999.12.31
Title:  23,23-3-402 (450),VIOLATE GAME BIRD REGS NOT LISTED ELSEWHERE,3,402,,450,CT,GNF,MF,80.00,80.00,NON-NRVC,CLSACOSTS,,N,C,M,,,2020.07.01,9999.12.31
Title:  23,23-3-402 (502),TAKE FALCON DURING CLOSED SEASON OR IN WRONG AREA,3,402,,502,CT,GNF,MF,380.00,380.00,NON-NRVC,CLSACOSTS,,N,E,M,,,2020.07.01,9999.12.31
Title:  23,23-3-402 (504),FAIL TO COMPLY W/ FACILITY & EQUIPMT REQMTS,3,402,,504,CT,GNF,MF,80.00,80.00,NON-NRVC,CLSACOSTS,,N,C,M,,,2020.07.01,9999.12.31
Title:  23,23-3-402 (505),FAIL TO MRK RAPTORS,3,402,,505,CT,GNF,MF,180.00,180.00,NON-NRVC,CLSACOSTS,,N,D,M,,,2020.07.01,9999.12.31
Title:  23,23-3-402 (506),ILLEGAL TRANSFER OF RAPTORS,3,402,,506,CT,GNF,MF,380.00,380.00,NON-NRVC,CLSACOSTS,,N,E,M,,,2020.07.01,9999.12.31
Title:  23,23-3-402 (507),ILLEGAL SALE OF RAPTORS,3,402,,507,CT,GNF,MF,380.00,380.00,NON-NRVC,CLSACOSTS,,N,E,M,,,2020.07.01,9999.12.31
Title:  23,23-3-402 (508),ILLEGAL POSSESSION OF RAPTOR PARTS,3,402,,508,CT,GNF,MF,380.00,380.00,NON-NRVC,CLSACOSTS,,N,E,M,,,2020.07.01,9999.12.31
Title:  23,23-3-402 (509),ILLEGAL POSSESSION OF RAPTOR EGGS,3,402,,509,CT,GNF,MF,380.00,380.00,NON-NRVC,CLSACOSTS,,N,E,M,,,2020.07.01,9999.12.31
Title:  23,23-3-402 (512),HUNT W/ FALCON DURING CLOSED SEASON,3,402,,512,CT,GNF,MF,80.00,80.00,NON-NRVC,CLSACOSTS,,N,C,M,,,2020.07.01,9999.12.31
Title:  23,23-3-402 (550),VIOLATE FALCON REGS NOT LISTED ELSEWHERE,3,402,,550,CT,GNF,MF,80.00,80.00,NON-NRVC,CLSACOSTS,,N,C,M,,,2020.07.01,9999.12.31
Title:  23,23-3-402 (602),TAKE OVER LIMIT OF SMALL GAME,3,402,,602,CT,GNF,MF,80.00,80.00,NON-NRVC,CLSACOSTS,07 GAME AND FISH,N,C,M,M,,2020.07.01,9999.12.31
Title:  23,23-3-402 (603),TAKE SMALL GAME OUT OF SEASON,3,402,,603,CT,GNF,MF,80.00,80.00,NON-NRVC,CLSACOSTS,,N,C,M,,,2020.07.01,9999.12.31
Title:  23,23-3-402 (609),FAIL TO TAG BOBCAT PELT,3,402,,609,CT,GNF,MF,80.00,80.00,NON-NRVC,CLSACOSTS,,N,C,M,,,2020.07.01,9999.12.31
Title:  23,23-3-402 (612),TAKE FURBEARER OUT OF SEASON,3,402,,612,CT,GNF,MF,380.00,380.00,NON-NRVC,CLSACOSTS,,N,E,M,,,2020.07.01,9999.12.31
Title:  23,23-3-402 (624),FAIL TO IMMEDIATELY REPORT NON-TARGET WILDLIFE CAUGHT IN TRAP/SNARE,3,402,,624,CT,GNF,MF,380.00,380.00,NON-NRVC,CLSACOSTS,,N,E,M,,N,2020.07.01,9999.12.31
Title:  23,23-3-402 (625),FAIL TO MAKE REASONABLE EFFORT TO RETRIEVE SMALL GAME,3,402,,625,CT,GNF,MF,80.00,80.00,NON-NRVC,CLSACOSTS,,N,C,M,,,2020.07.01,9999.12.31
Title:  23,23-3-402 (650),VIOLATE SMALL GAME/FURBEARER REGS NOT LISTED ELSEWHERE,3,402,,650,CT,GNF,MF,80.00,80.00,NON-NRVC,CLSACOSTS,,N,C,M,,,2020.07.01,9999.12.31
Title:  23,23-3-402 (750),VIOLATE ARCHERY REGS NOT LISTED ELSEWHERE,3,402,,750,CT,GNF,MF,80.00,80.00,NON-NRVC,CLSACOSTS,,N,C,M,,,2020.07.01,9999.12.31
Title:  23,23-3-402 (810),POSSESS PROTECTED SPECIES OR ANY PART THEREOF,3,402,,810,CT,GNF,MF,80.00,80.00,NON-NRVC,CLSACOSTS,,N,C,M,,,2020.07.01,9999.12.31
Title:  23,23-3-402 (811),VIOLATE NONGAME REGS,3,402,,811,CT,GNF,MF,80.00,80.00,NON-NRVC,CLSACOSTS,,N,C,M,,,2020.07.01,9999.12.31
Title:  23,23-3-402 (817),FAIL TO SIGN CONSERVATION STAMP,3,402,,817,CT,GNF,MF,30.00,30.00,NON-NRVC,CLSACOSTS,,N,B,M,,,2020.07.01,9999.12.31
Title:  23,23-3-402 (820),"TRANSFER LIC, STAMP, TAG, OR COUPON",3,402,,820,CT,GNF,MF,380.00,380.00,NON-NRVC,CLSACOSTS,,N,E,M,,,2020.07.01,9999.12.31
Title:  23,23-3-402 (824),FAIL TO OBEY REGULATORY SIGN ON DEPARTMT LAND,3,402,,824,CT,GNF,MF,80.00,80.00,NON-NRVC,CLSACOSTS,,N,C,M,,,2020.07.01,9999.12.31
Title:  23,23-3-402 (839),"VIOLATION RE LIVE WILDLIFE OR EXOTIC ANIMALS, CH 10",3,402,,839,CT,GNF,MF,180.00,180.00,NON-NRVC,CLSACOSTS,,N,D,M,,,2020.07.01,9999.12.31
Title:  23,23-3-402 (843),TAKE WRONG SEX OF ANIMAL,3,402,,843,CT,GNF,MF,180.00,180.00,NON-NRVC,CLSACOSTS,,N,D,M,,,2020.07.01,9999.12.31
Title:  23,23-3-402 (844),APPLY FOR PREFERENCE POINTS WHILE UND SUSPENSION,3,402,,844,CT,GNF,MF,380.00,380.00,NON-NRVC,CLSACOSTS,,N,E,M,,,2020.07.01,9999.12.31
Title:  23,23-3-402 (845),APPLY FOR PREFERENCE POINTS W/I 5 YR WAITING PERIOD,3,402,,845,CT,GNF,MF,380.00,380.00,NON-NRVC,CLSACOSTS,,N,E,M,,,2020.07.01,9999.12.31
Title:  23,23-3-402 (846),VIOL CHAPTER  23 REGS GOVERNING USES OF LANDS AND WATERS BY WGF COMMISSION,3,402,,846,CT,GNF,MF,180.00,180.00,NON-NRVC,CLSACOSTS,,N,D,M,,,2020.07.01,9999.12.31
Title:  23,23-3-402 (847),ALTERATION OF LICENSE,3,402,,847,CT,GNF,MF,180.00,180.00,NON-NRVC,CLSACOSTS,,N,D,M,,,2020.07.01,9999.12.31
Title:  23,23-3-402 (855),VIOL ANTLER COLLECTION REGS,3,402,,855,CT,GNF,MF,380.00,380.00,NON-NRVC,CLSACOSTS,,N,E,M,,,2020.07.01,9999.12.31
Title:  23,23-3-402 (876),VIOL OF HUMAN PRESENCE CLOSURE ON WILDLIFE HABITAT MGMT AREA,3,402,,876,CT,GNF,MF,180.00,180.00,NON-NRVC,CLSACOSTS,,N,250.00,M,,,2020.07.01,2021.06.30
Title:  23,23-3-402 (876),VIOL OF HUMAN PRESENCE CLOSURE ON WILDLIFE HABITAT MGMT AREA,3,402,,876,CT,GNF,MF,380.00,380.00,NON-NRVC,CLSACOSTS,,N,E,M,,,2021.07.01,9999.12.31
Title:  23,23-3-402 (877),CLOSED/OFF ROAD VIOLATION ON COMMISSION OWNED LAND,3,402,,877,CT,GNF,MF,180.00,180.00,NON-NRVC,CLSACOSTS,,N,D,M,,,2021.07.01,9999.12.31
Title:  23,23-3-403 a (122),FALSE STATEMT TO PROCURE FISH LIC,3,403,a,122,CT,GNF,MF,180.00,180.00,NON-NRVC,CLSACOSTS,,N,D,M,,,2020.07.01,9999.12.31
Title:  23,23-3-403 a (305),FALSE STATEMT TO PROCURE COMMERCIAL LIC,3,403,a,305,CT,GNF,MF,380.00,380.00,NON-NRVC,CLSACOSTS,,N,E,M,,,2020.07.01,9999.12.31
Title:  23,23-3-403 a (405),FALSE STATEMT TO PROCURE GAME BIRD LIC,3,403,a,405,CT,GNF,MF,180.00,180.00,NON-NRVC,CLSACOSTS,,N,D,M,,,2020.07.01,9999.12.31
Title:  23,23-3-403 a (503),FALSE STATEMT TO PROCURE FALCONRY LIC,3,403,a,503,CT,GNF,MF,380.00,380.00,NON-NRVC,CLSACOSTS,,N,E,M,,,2020.07.01,9999.12.31
Title:  23,23-3-403 a (610),FALSE STATEMT TO PROCURE SMALL GAME LIC,3,403,a,610,CT,GNF,MF,180.00,180.00,NON-NRVC,CLSACOSTS,,N,D,M,,,2020.07.01,9999.12.31
Title:  23,23-3-403 a (611),"FALSE STATEMT TO PROCURE TRAP, FURBEARER LIC",3,403,a,611,CT,GNF,MF,180.00,180.00,NON-NRVC,CLSACOSTS,,N,D,M,,,2020.07.01,9999.12.31
Title:  23,23-3-403 a (704),FALSE STATEMT RESIDENT ARCHERY LIC,3,403,a,704,CT,GNF,MF,180.00,180.00,NON-NRVC,CLSACOSTS,,N,D,M,,,2020.07.01,9999.12.31
Title:  23,23-3-403 a (823),FALSE STATEMT TO PROCURE GAME TAG,3,403,a,823,CT,GNF,MF,380.00,380.00,NON-NRVC,CLSACOSTS,,N,E,M,,,2020.07.01,9999.12.31
Title:  23,23-3-403 a (848),FALSE OATH - RESIDENT LIFETIME LIC (SINGLE SPECIES),3,403,a,848,CT,GNF,MF,380.00,380.00,NON-NRVC,CLSACOSTS,,N,E,M,,,2020.07.01,9999.12.31
Title:  23,23-3-404 a (333),"TANNERY: DLVR, RECEIVE GAME SPECIMEN W/O TAG",3,404,a,333,CT,GNF,MF,180.00,180.00,NON-NRVC,CLSACOSTS,,N,D,M,,,2020.07.01,9999.12.31
Title:  23,23-3-405 a (834),INTERFERE W/ LAWFUL TAKING OF WILDLIFE,3,405,a,834,CT,GNF,MF,180.00,180.00,NON-NRVC,CLSACOSTS,,N,D,M,,,2020.07.01,9999.12.31
Title:  23,23-3-405 b (834),INTERFERE W/ LAWFUL TAKING OF WILDLIFE,3,405,b,834,CT,GNF,MF,180.00,180.00,NON-NRVC,CLSACOSTS,,N,D,M,,,2020.07.01,9999.12.31
Title:  23,23-3-405 c (835),FAIL TO OBEY PEACE OFFICER RE 23-3-405 a,3,405,c,835,CT,GNF,MF,380.00,380.00,NON-NRVC,CLSACOSTS,,N,E,M,,,2020.07.01,9999.12.31
Title:  23,23-4-101 (123),PLANT/RELEASE FISH OR EGGS W/O AUTHORIZATION,4,101,,123,CT,GNF,MF,380.00,380.00,NON-NRVC,CLSACOSTS,,N,E,H,,,2020.07.01,9999.12.31
Title:  23,23-4-102 a (328),FISH HATCHERY: NO INSPECTION PRIOR TO PLANTING,4,102,a,328,CT,GNF,MF,380.00,380.00,NON-NRVC,CLSACOSTS,,N,E,M,,,2020.07.01,9999.12.31
Title:  23,23-4-102 d (327),FISH HATCHERY: OPERATE W/O LIC,4,102,d,327,CT,GNF,MF,380.00,380.00,NON-NRVC,CLSACOSTS,,N,E,M,,,2020.07.01,9999.12.31
Title:  23,23-4-102 e (329),FISH HATCHERY: FAIL TO PROVIDE CERT OF SALE,4,102,e,329,CT,GNF,MF,380.00,380.00,NON-NRVC,CLSACOSTS,,N,E,M,,,2020.07.01,9999.12.31
Title:  23,23-4-102 f (329),FISH HATCHERY: FAIL TO PROVIDE CERT OF SALE,4,102,f,329,CT,GNF,MF,380.00,380.00,NON-NRVC,CLSACOSTS,,N,450.00,M,,,2020.07.01,2021.06.30
Title:  23,23-4-102 g (330),FISH HATCHERY: SHIP FISH/EGGS W/O INTERSTATE GAME TAG,4,102,g,330,CT,GNF,MF,380.00,380.00,NON-NRVC,CLSACOSTS,,N,E,M,,,2020.07.01,9999.12.31
Title:  23,23-4-104 (124),INTENTIONALLY REMOVE OR DESTROY HATCHERY FISH - UND $500,4,104,,124,CT,GNF,MF,380.00,380.00,NON-NRVC,CLSACOSTS,,N,E,M,,,2020.07.01,9999.12.31
Title:  23,23-4-202 (869),LAUNCH WATERCRAFT WITHOUT AN AIS INSPECTION,4,202,,869,CT,GNF,MF,380.00,380.00,NON-NRVC,CLSACOSTS,,N,E,M,,N,2020.07.01,9999.12.31
Title:  23,23-4-203 a (868),MISC VIOLATION OF AIS REGS,4,203,a,868,CT,GNF,MF,380.00,380.00,NON-NRVC,CLSACOSTS,,N,E,M,,,2020.07.01,9999.12.31
Title:  23,23-4-203 b (865),FAIL TO STOP AT AIS CK STATION,4,203,b,865,CT,GNF,MF,30.00,30.00,NON-NRVC,CLSACOSTS,,N,B,H,,,2020.07.01,9999.12.31
Title:  23,23-4-204 a (867),IMPROPER DISPLAY/WRONG AIS DECAL,4,204,a,867,CT,GNF,MF,80.00,80.00,NON-NRVC,CLSACOSTS,,N,C,M,,,2020.07.01,9999.12.31
Title:  23,23-4-204 b (866),FAIL TO PURCHASE AN AIS DECAL,4,204,b,866,CT,GNF,MF,80.00,80.00,NON-NRVC,CLSACOSTS,,N,C,H,,,2020.07.01,9999.12.31
Title:  23,23-5-102 (321),GAME BIRD FARM: RELEASE GAME BIRDS W/O PERMIT,5,102,,321,CT,GNF,MF,180.00,180.00,NON-NRVC,CLSACOSTS,,N,D,M,,,2020.07.01,9999.12.31
Title:  23,23-5-107 (334),FAIL TO PROVIDE RECEIPT FOR GAME BIRDS,5,107,,334,CT,GNF,MF,80.00,80.00,NON-NRVC,CLSACOSTS,,N,C,M,,,2020.07.01,9999.12.31
Title:  23,23-5-108 (335),TAKE BIRDS ON BIRD FARM OUT OF SEASON,5,108,,335,CT,GNF,MF,80.00,80.00,NON-NRVC,CLSACOSTS,,N,C,M,,,2020.07.01,9999.12.31
Title:  23,23-5-204 (323),FISHING PRESERVE: FAIL TO PROVIDE PROPER RECEIPT,5,204,,323,CT,GNF,MF,380.00,380.00,NON-NRVC,CLSACOSTS,,N,E,M,,,2020.07.01,9999.12.31
Title:  23,23-6-103 a (802),FAIL TO APPEAR ON BONDABLE OFFENSE,6,103,a,802,CT,GNF,MF,180.00,180.00,NON-NRVC,CLSACOSTS,,N,D,M,,,2020.07.01,9999.12.31
Title:  23,23-6-204 c (830),TAKE ANY WILDLIFE NOT PRESCRIBED BY ACT & NO SEPARATE PENALTY,6,204,c,830,CT,GNF,MF,180.00,180.00,NON-NRVC,CLSACOSTS,,N,D,M,,,2020.07.01,9999.12.31
Title:  23,23-6-205 a (801),ACCESSORY BEFORE THE FACT ,6,205,a,801,CT,GNF,MM,0.00,0.00,NON-NRVC,CLSACOSTS,,Y,,M,,,2011.07.01,2021.06.30
Title:  23,23-6-205 a (801),ACCESSORY BEFORE THE FACT,6,205,a,801,CT,GNF,MM,0.00,0.00,NON-NRVC,CLSACOSTS,,Y,,M,,,2021.07.01,9999.12.31
Title:  23,23-6-205 b (801),ACCESSORY AFTER THE FACT,6,205,b,801,CT,GNF,MM,0.00,0.00,NON-NRVC,CLSACOSTS,,Y,,M,V,,2011.07.01,2021.06.30
Title:  23,23-6-205 b (801),ACCESSORY AFTER THE FACT,6,205,b,801,CT,GNF,MM,0.00,0.00,NON-NRVC,CLSACOSTS,,Y,,M,V,,2021.07.01,9999.12.31
Title:  24,24-1-109 a,FAIL TO OBSERVE SIGNS & CLOSED MRKERS,1,109,a,,CT,TRF,MF,500.00,500.00,NON-NRVC,CLSACOSTS,,N,570.00,M,,,2020.07.01,9999.12.31
Title:  24,24-1-110 a (1),EXHIBIT ACCELERATION,1,110,a,1,CT,TRF,MF,80.00,80.00,NRVC,CLSACOSTS,,N,C,M,,,2010.07.01,9999.12.31
Title:  24,24-1-110 a (2),SPEED CONTEST,1,110,a,2,CT,TRF,MF,80.00,80.00,NRVC,CLSACOSTS,,N,C,M,,,2010.07.01,9999.12.31
Title:  24,24-1-110 a (3),ACCELERATION CONTEST: DRAG RACE 2 OR MORE VEHICLES,1,110,a,3,CT,TRF,MF,80.00,80.00,NRVC,CLSACOSTS,,N,C,M,,,2016.07.01,9999.12.31
Title:  24,24-1-110 a (4),EXHIBIT SPEED,1,110,a,4,CT,TRF,MF,80.00,80.00,NRVC,CLSACOSTS,,N,C,M,,,2010.07.01,9999.12.31
Title:  24,24-1-110 a (5),AID OR ABET ACCELERATION EXHIBITION OR SPEED CONTEST,1,110,a,5,CT,TRF,MF,80.00,80.00,NRVC,CLSACOSTS,,N,C,M,,,2010.07.01,9999.12.31
Title:  26,26-1-107,VIOLATE INSURANCE CODE OR INSTRUCT TO VIOLATE,1,107,,,CT,OMD,MM,0.00,0.00,CRIMINAL,CLSACOSTS,,Y,,M,,,2015.07.01,9999.12.31
Title:  26,26-16-505 j,FAIL TO MEET REQMTS UNDER UNCLAIMED LIFE INSUR BENEFITS SECTION RESULTING IN UNFAIR TRADE PRAC,16,505,j,,CT,OMD,MM,0.00,0.00,CRIMINAL,CLSACOSTS,,Y,,M,,,2019.07.01,9999.12.31
Title:  31,31-11-103 aii,POSSESS VEH W/ ALTERED VIN,11,103,aii,,CR,FEL,FEL,0.00,0.00,CRIMINAL,CLSACOSTS,,Y,,F,,,2010.07.01,9999.12.31
Title:  31,31-11-105 a,SPECIAL VIN REQ'D,11,105,a,,CT,TRF,MM,0.00,0.00,CRIMINAL,CLSACOSTS,,Y,,M,,,2012.11.09,9999.12.31
Title:  31,31-11-107 a(c),WRITTEN DAILY RECORDS OF VEH VINS,11,107,a(c),,CT,TRF,MM,0.00,0.00,CRIMINAL,CLSACOSTS,,Y,,M,,,2012.11.09,9999.12.31
Title:  31,31-11-107 b(c) (1),CONSIGNEE MUST REGISTER W/ DEALER,11,107,b(c),1,CT,TRF,MM,0.00,0.00,CRIMINAL,CLSACOSTS,,Y,,M,,,2012.11.09,9999.12.31
Title:  31,31-11-107 b(c) (2),DRIVER TO PRODUCE REGIS FOR INSPECTION,11,107,b(c),2,CT,TRF,MM,0.00,0.00,CRIMINAL,CLSACOSTS,,Y,,M,,,2012.11.09,9999.12.31
Title:  31,31-11-108 a(b) (1),DEALER MUST EXAMINE VIN,11,108,a(b),1,CT,TRF,MM,0.00,0.00,CRIMINAL,CLSACOSTS,,Y,,M,,,2012.11.09,9999.12.31
Title:  31,31-11-108 a(b) (2),DEALER MUST RPT ALTERED VIN,11,108,a(b),2,CR,TRF,MM,0.00,0.00,CRIMINAL,CLSACOSTS,,Y,,M,,,2012.11.09,9999.12.31
Title:  31,31-11-109 a,RPT REQ'D ON VEHS STORED MORE THAN 30 DAYS,11,109,a,,CT,TRF,MM,0.00,0.00,CRIMINAL,CLSACOSTS,,Y,,M,,,2010.07.01,9999.12.31
Title:  31,31-11-110 a(b),OWNER MUST SURRENDER VEH TITLE,11,110,a(b),,CT,TRF,MM,0.00,0.00,CRIMINAL,CLSACOSTS,,Y,,M,,,2012.11.09,9999.12.31
Title:  31,31-12-101 a,METAL TIRES W/ PROJECTIONS; LUGS & CLEATS,12,101,a,,CT,TRF,MF,30.00,30.00,NON-NRVC,CLSACOSTS,,N,B,M,,,2010.07.01,9999.12.31
Title:  31,31-16-102,UNLIC'D VEH DEALERS & MANUFACTURERS SOLICIT SALES,16,102,,,CT,TRF,MF,180.00,180.00,NON-NRVC,CLSACOSTS,,N,D,M,,,2010.07.01,9999.12.31
Title:  31,31-16-108,UNLAWFUL ACTS,16,108,,,CT,TRF,MF,180.00,180.00,NON-NRVC,CLSACOSTS,,N,D,M,,,2010.07.01,9999.12.31
Title:  31,31-16-108 ai,MISLEADING OR INACCURATE AD,16,108,ai,,CT,TRF,MF,180.00,180.00,NON-NRVC,CLSACOSTS,,N,D,M,,,2010.07.01,9999.12.31
Title:  31,31-16-108 aii,VIOLATE DEALER/ MANUFACTURER ACT OR RULES & REGS,16,108,aii,,CT,TRF,MF,180.00,180.00,NON-NRVC,CLSACOSTS,,N,D,M,,,2010.07.01,9999.12.31
Title:  31,31-16-108 aiv,VIOLATE ANY LAW RE VEH COMMERCE,16,108,aiv,,CT,TRF,MF,180.00,180.00,NON-NRVC,CLSACOSTS,,N,D,M,,,2010.07.01,9999.12.31
Title:  31,31-16-108 aix,VIOLATE FED MOTOR VEH SAFETY STANDARDS,16,108,aix,,CT,TRF,MF,180.00,180.00,NON-NRVC,CLSACOSTS,,N,D,M,,,2010.07.01,9999.12.31
Title:  31,31-16-108 av,ENGAGE IN BUS W/O PRINCIPAL PLACE OF BUS,16,108,av,,CT,TRF,MF,180.00,180.00,NON-NRVC,CLSACOSTS,,N,D,M,,,2010.07.01,9999.12.31
Title:  31,31-16-108 avi,SELL VEHS W/O VEH DEALER LIC,16,108,avi,,CT,TRF,MF,180.00,180.00,NON-NRVC,CLSACOSTS,,N,D,M,,,2010.07.01,9999.12.31
Title:  31,31-16-108 ax,DISPLAY VEH FOR SALE W/O VALID FRANCHISE,16,108,ax,,CT,TRF,MF,180.00,180.00,NON-NRVC,CLSACOSTS,,N,D,M,,,2010.07.01,9999.12.31
Title:  31,31-16-108 axi,SELL VEH MANUFAC'D OUTSIDE U.S. NOT MEETING FED REGS,16,108,axi,,CT,TRF,MF,180.00,180.00,NON-NRVC,CLSACOSTS,,N,D,M,,,2010.07.01,9999.12.31
Title:  31,31-16-108 axii,"SELL VEH W/ UND 1,000 MILES W/O PROPER LIC OR TITLE",16,108,axii,,CT,TRF,MF,180.00,180.00,NON-NRVC,CLSACOSTS,,N,D,M,,,2010.07.01,9999.12.31
Title:  31,31-16-118,REPLACE OR REPAIR ODOMETER; NOTICE,16,118,,,CT,TRF,MF,380.00,380.00,NON-NRVC,CLSACOSTS,,N,E,M,,,2010.07.01,9999.12.31
Title:  31,31-16-119,"DISCONNECT, RESET OR TURN BACK ODOMETER",16,119,,,CT,TRF,MF,180.00,180.00,NON-NRVC,CLSACOSTS,,N,D,M,,,2010.07.01,9999.12.31
Title:  31,31-16-120,SELL VEH KNOWING ODOMETER TURNED BACK,16,120,,,CT,TRF,MF,380.00,380.00,NON-NRVC,CLSACOSTS,,N,E,M,,,2010.07.01,9999.12.31
Title:  31,31-16-121,SELL VEH KNOWING ODOMETER REPLACED UNLAWFULLY,16,121,,,CT,TRF,MF,380.00,380.00,NON-NRVC,CLSACOSTS,,N,E,M,,,2010.07.01,9999.12.31
Title:  31,31-16-122,USE DEVICE WHICH CAUSES OTHER THAN TRUE MILEAGE TO REGISTER,16,122,,,CT,TRF,MF,380.00,380.00,NON-NRVC,CLSACOSTS,,N,E,M,,,2010.07.01,9999.12.31
Title:  31,31-16-126 aii,MISUSE DEMO PLATES: OTHER THAN BUYER OR EMPLOYEE,16,126,aii,,CT,TRF,MF,30.00,30.00,NON-NRVC,CLSACOSTS,,N,B,M,,,2012.11.09,9999.12.31
Title:  31,31-16-126 aiii,MISUSE DEMO PLATES: SOLD VEHICLE,16,126,aiii,,CT,TRF,MF,30.00,30.00,NON-NRVC,CLSACOSTS,,N,B,M,,,2012.11.09,9999.12.31
Title:  31,31-16-126 aiv,MISUSE DEMO PLATES: EXCEED 7 DAYS,16,126,aiv,,CT,TRF,MF,30.00,30.00,NON-NRVC,CLSACOSTS,,N,B,M,,,2012.11.09,9999.12.31
Title:  31,31-16-126 av,MISUSE DEMO PLATES: PRIVATE PURPOSE,16,126,av,,CT,TRF,MF,30.00,30.00,NON-NRVC,CLSACOSTS,,N,B,M,,,2012.11.09,9999.12.31
Title:  31,31-16-126 aviA,MISUSE DEMO PLATES: TOW VEHICLES,16,126,aviA,,CT,TRF,MF,30.00,30.00,NON-NRVC,CLSACOSTS,,N,B,M,,,2012.11.09,9999.12.31
Title:  31,31-16-126 aviB,MISUSE DEMO PLATES: PARTS AND DELIVERY VEHICLE,16,126,aviB,,CT,TRF,MF,30.00,30.00,NON-NRVC,CLSACOSTS,,N,B,M,,,2012.11.09,9999.12.31
Title:  31,31-16-126 aviC,MISUSE DEMO PLATES: SERVICE LOANERS,16,126,aviC,,CT,TRF,MF,30.00,30.00,NON-NRVC,CLSACOSTS,,N,B,M,,,2012.11.09,9999.12.31
Title:  31,31-16-126 aviD,MISUSE DEMO PLATES: COURTESY SHUTTLE,16,126,aviD,,CT,TRF,MF,30.00,30.00,NON-NRVC,CLSACOSTS,,N,B,M,,,2012.11.09,9999.12.31
Title:  31,31-16-126 aviE,MISUSE DEMO PLATES: RENTAL VEHICLE,16,126,aviE,,CT,TRF,MF,30.00,30.00,NON-NRVC,CLSACOSTS,,N,B,M,,,2012.11.09,9999.12.31
Title:  31,31-16-126 aviF,MISUSE DEMO PLATES: HAULERS,16,126,aviF,,CT,TRF,MF,30.00,30.00,NON-NRVC,CLSACOSTS,,N,B,M,,,2012.11.09,9999.12.31
Title:  31,31-16-126 avii,"MISUSE DEMO PLATES: CHARITABLE ORG, PARADE OR SHOWS",16,126,avii,,CT,TRF,MF,30.00,30.00,NON-NRVC,CLSACOSTS,,N,B,M,,,2012.11.09,9999.12.31
Title:  31,31-16-126 aviii,MISUSE DEMO PLATES: OTHER THAN BUYER FOR DEMO,16,126,aviii,,CT,TRF,MF,30.00,30.00,NON-NRVC,CLSACOSTS,,N,B,M,,,2012.11.09,9999.12.31
Title:  31,31-16-126 bi,MISUSE FULL USE PLATES: NOT PROPERLY DESIGNATED,16,126,bi,,CT,TRF,MF,30.00,30.00,NON-NRVC,CLSACOSTS,,N,B,M,,,2012.11.09,9999.12.31
Title:  31,31-16-126 bii,MISUSE FULL USE PLATES: MORE THAN 50% OF ALLOTTED DEMO PLATES,16,126,bii,,CT,TRF,MF,30.00,30.00,NON-NRVC,CLSACOSTS,,N,B,M,,,2012.11.09,9999.12.31
Title:  31,31-16-126 biii,MISUSE FULL USE PLATES: EXCEED ONE YEAR,16,126,biii,,CT,TRF,MF,30.00,30.00,NON-NRVC,CLSACOSTS,,N,B,M,,,2012.11.09,9999.12.31
Title:  31,31-16-126 biv,MISUSE FULL USE PLATES: NOT OWNED OR OFFERED FOR SALE BY DEALER,16,126,biv,,CT,TRF,MF,30.00,30.00,NON-NRVC,CLSACOSTS,,N,B,M,,,2012.11.09,9999.12.31
Title:  31,31-16-126 bvi,MISUSE FULL USE PLATES: ASSIGNED TO PERSONS OTHER THAN ALLOWED,16,126,bvi,,CT,TRF,MF,30.00,30.00,NON-NRVC,CLSACOSTS,,N,B,M,,,2012.11.09,9999.12.31
Title:  31,31-16-126 c (1),MISUSE PLATES: VEHICLE NOT LICENSED TO SELL,16,126,c,1,CT,TRF,MF,30.00,30.00,NON-NRVC,CLSACOSTS,,N,B,M,,,2012.11.09,9999.12.31
Title:  31,31-16-126 c (2),"MISUSE PLATES: LEASED, RENTED, WRECKER OR DLVRY TRUCK EXCEPT ON REPO",16,126,c,2,CT,TRF,MF,30.00,30.00,NON-NRVC,CLSACOSTS,,N,B,M,,,2012.11.09,9999.12.31
Title:  31,31-16-126 d (1),REGISTRATION EXCEEDS 60 DAYS,16,126,d,1,CT,TRF,MF,30.00,30.00,NON-NRVC,CLSACOSTS,,N,B,M,,,2015.07.01,9999.12.31
Title:  31,31-16-126 d (2),IMPROPER FORM AND DISPLAY OF TEMP LICENSE PERMIT,16,126,d,2,CT,TRF,MF,30.00,30.00,NON-NRVC,CLSACOSTS,,N,B,M,,,2012.11.09,9999.12.31
Title:  31,31-18-201 b,REGISTER & LIC COMMERCIAL VEHS,18,201,b,,CT,TRF,MF,80.00,80.00,NON-NRVC,CLSACOSTS,,N,C,M,,,2013.07.01,9999.12.31
Title:  31,31-18-201 ciF,FAILURE TO DECLARE PROPER GROSS WEIGHT WHEN REGISTERING,18,201,ciF,,CT,TRF,MF,30.00,30.00,NON-NRVC,CLSACOSTS,,N,B,M,,,2013.07.01,9999.12.31
Title:  31,31-18-201 g,"REGISTER & LIC RENTAL VEH UND 26,000 LBS",18,201,g,,CT,TRF,MF,30.00,30.00,NON-NRVC,CLSACOSTS,,N,B,M,,,2010.07.01,9999.12.31
Title:  31,31-18-201 k,DISPLAY REGIS,18,201,k,,CT,TRF,MF,30.00,30.00,NON-NRVC,CLSACOSTS,,N,B,M,,,2010.07.01,9999.12.31
Title:  31,31-18-201 m,INTRASTATE REGIS OPERATION,18,201,m,,CT,TRF,MF,30.00,30.00,NON-NRVC,CLSACOSTS,,N,B,M,,,2010.07.01,9999.12.31
Title:  31,31-18-201 s,FAIL TO OBTAIN SINGLE TRIP PERMIT,18,201,s,,CT,TRF,MF,30.00,30.00,NON-NRVC,CLSACOSTS,,N,B,M,,,2012.07.01,9999.12.31
Title:  31,31-18-201 t,MOTION PICTURE INDUSTRY VEH,18,201,t,,CT,TRF,MM,0.00,0.00,CRIMINAL,CLSACOSTS,,Y,,M,,,2010.07.01,9999.12.31
Title:  31,31-18-201 u,NO TRANSPORTER PLATE OR PERMIT,18,201,u,,CT,TRF,MF,30.00,30.00,NON-NRVC,CLSACOSTS,,N,B,M,,,2010.07.01,9999.12.31
Title:  31,31-18-201 y,UNLAWFUL USE OF TEMP PERMIT OR FALSE INFO TO OBTAIN PERMIT,18,201,y,,CT,TRF,MF,30.00,30.00,NON-NRVC,CLSACOSTS,,N,B,M,,,2020.07.01,9999.12.31
Title:  31,31-18-203 b,MOBILE MACHINERY: OPERATE W/O REGIS,18,203,b,,CT,TRF,MF,30.00,30.00,NON-NRVC,CLSACOSTS,,N,B,M,,,2010.07.01,9999.12.31
Title:  31,31-18-205 a,MOBILE MACHINERY: PERMIT REQ'D,18,205,a,,CT,TRF,MF,30.00,30.00,NON-NRVC,CLSACOSTS,,N,B,M,,,2010.07.01,9999.12.31
Title:  31,31-18-205 b,MOBILE MACHINERY: PERMIT NOT PROPERLY DISPLAYED,18,205,b,,CT,TRF,MF,30.00,30.00,NON-NRVC,CLSACOSTS,,N,B,M,,,2010.07.01,9999.12.31
Title:  31,31-18-206 c,MOBILE MACHINERY: TEMP STICKER NOT PROPERLY DISPLAYED,18,206,c,,CT,TRF,MF,30.00,30.00,NON-NRVC,CLSACOSTS,,N,B,M,,,2010.07.01,9999.12.31
Title:  31,31-18-209 f,NO BILL OF LADING FOR CONTRACT MOTOR CARRIER,18,209,f,,CT,TRF,MF,30.00,30.00,NON-NRVC,CLSACOSTS,,N,B,M,,,2010.07.01,9999.12.31
Title:  31,31-18-301 b,NO AUTHORITY IN VEH,18,301,b,,CT,TRF,MF,30.00,30.00,NON-NRVC,CLSACOSTS,,N,B,M,,,2010.07.01,9999.12.31
Title:  31,31-18-301 c (1),FAIL TO PRODUCE AUTHORITY UPON DEMAND,18,301,c,1,CT,TRF,MF,30.00,30.00,NON-NRVC,CLSACOSTS,,N,B,M,,,2010.07.01,9999.12.31
Title:  31,31-18-301 c (2),FAIL TO STOP AT PORT OF ENTRY,18,301,c,2,CT,TRF,MF,380.00,380.00,NON-NRVC,CLSACOSTS,,N,E,M,,,2020.07.01,9999.12.31
Title:  31,31-18-303,ADOPT RULES & REGS CONSISTENT W/ RULES & REGS U.S. DOT,18,303,,,CT,TRF,MF,300.00,300.00,NON-NRVC,CLSACOSTS,,N,370.00,M,,,2020.07.01,9999.12.31
Title:  31,31-18-304 a,NO DISPLAY OF NAME OF MOTOR CARRIER,18,304,a,,CT,TRF,MF,30.00,30.00,NON-NRVC,CLSACOSTS,,N,B,M,,,2010.07.01,9999.12.31
Title:  31,31-18-404 d,DEMONSTRATION PERMIT,18,404,d,,CT,TRF,MF,30.00,30.00,NON-NRVC,CLSACOSTS,,N,B,M,,,2010.07.01,9999.12.31
Title:  31,31-18-405 b,FAIL TO RETAIN RECORDS AS REQ'D,18,405,b,,CT,TRF,MF,30.00,30.00,NON-NRVC,CLSACOSTS,,N,B,M,,,2010.07.01,9999.12.31
Title:  31,31-18-501 (1),VIOLATE 39-17-106(f),18,501,,1,CT,TRF,MF,30.00,30.00,NON-NRVC,CLSACOSTS,,N,B,M,,,2010.07.01,9999.12.31
Title:  31,31-18-501 (2),VIOLATE 39-17-206(c),18,501,,2,CT,TRF,MF,30.00,30.00,NON-NRVC,CLSACOSTS,,N,B,M,,,2010.07.01,9999.12.31
Title:  31,31-18-603,LOAD ON VEH; PREVENT LOAD FROM FALLING,18,603,,,CT,TRF,MF,30.00,30.00,NON-NRVC,CLSACOSTS,,N,B,M,,,2010.07.01,9999.12.31
Title:  31,31-18-605 ai,FAIL TO ACTUATE FLASHERS,18,605,ai,,CT,TRF,MF,30.00,30.00,NON-NRVC,CLSACOSTS,,N,B,M,,,2010.07.01,9999.12.31
Title:  31,31-18-605 aii,FAIL TO STOP W/I 15-50 FT FROM RAIL,18,605,aii,,CT,TRF,MF,30.00,30.00,NON-NRVC,CLSACOSTS,,N,B,M,,,2010.07.01,9999.12.31
Title:  31,31-18-605 aiii,"FAIL TO LOOK, LISTEN AT RR CROSSING",18,605,aiii,,CT,TRF,MF,30.00,30.00,NON-NRVC,CLSACOSTS,,N,B,M,,,2010.07.01,9999.12.31
Title:  31,31-18-605 aiv,SHIFT GEARS CROSSING TRACKS,18,605,aiv,,CT,TRF,MF,30.00,30.00,NON-NRVC,CLSACOSTS,,N,B,M,,,2010.07.01,9999.12.31
Title:  31,31-18-605 av,FAIL TO CANCEL FLASHERS,18,605,av,,CT,TRF,MF,30.00,30.00,NON-NRVC,CLSACOSTS,,N,B,M,,,2010.07.01,9999.12.31
Title:  31,31-18-606 a,METAL TIRE IN CONTACT W/ HWY,18,606,a,,CT,TRF,MF,30.00,30.00,NON-NRVC,CLSACOSTS,,N,B,M,,,2012.11.09,9999.12.31
Title:  31,31-18-701 (107.620b),NO COPY OF U.S. DOT HM REGIS NO.,18,701,,107.620b,CT,TRF,MM,0.00,0.00,CRIMINAL,CLSACOSTS,,Y,,M,,,2010.07.01,9999.12.31
Title:  31,31-18-701 (171.11d),U.S. REQMTS FOR ICAO SHIPMT,18,701,,171.11d,CT,TRF,MF,300.00,300.00,NON-NRVC,CLSACOSTS,,N,370.00,M,,,2020.07.01,9999.12.31
Title:  31,31-18-701 (171.12ab),U.S. REQMTS FOR TDG SHIPMT,18,701,,171.12ab,CT,TRF,MF,300.00,300.00,NON-NRVC,CLSACOSTS,,N,370.00,M,,,2020.07.01,9999.12.31
Title:  31,31-18-701 (171.12b),U.S. REQMTS FOR IMDG SHIPMT,18,701,,171.12b,CT,TRF,MF,300.00,300.00,NON-NRVC,CLSACOSTS,,N,370.00,M,,,2020.07.01,9999.12.31
Title:  31,31-18-701 (171.2a),FAIL TO COMPLY W/ HM REGS,18,701,,171.2a,CT,TRF,MF,300.00,300.00,NON-NRVC,CLSACOSTS,,N,370.00,M,,,2020.07.01,9999.12.31
Title:  31,31-18-701 (171.2c),FAIL TO COMPLY W/ HM REGS,18,701,,171.2c,CT,TRF,MF,300.00,300.00,NON-NRVC,CLSACOSTS,,N,370.00,M,,,2020.07.01,9999.12.31
Title:  31,31-18-701 (171.2d),ACCEPT HM W/O REGIS'G W/ PHMSA,18,701,,171.2d,CT,TRF,MF,300.00,300.00,NON-NRVC,CLSACOSTS,,N,370.00,M,,,2020.07.01,9999.12.31
Title:  31,31-18-701 (171.2f),TRANSPORT HM NOT IN ACCORDANCE W/ THIS PART,18,701,,171.2f,CT,TRF,MF,300.00,300.00,NON-NRVC,CLSACOSTS,,N,370.00,M,,,2020.07.01,9999.12.31
Title:  31,31-18-701 (171.2g),CARGO TANK DOES NOT COMPLY W/ HM REGS,18,701,,171.2g,CT,TRF,MF,300.00,300.00,NON-NRVC,CLSACOSTS,,N,370.00,M,,,2020.07.01,9999.12.31
Title:  31,31-18-701 (171.2k),REPRE VEH W/ HM; NONE PRESENT,18,701,,171.2k,CT,TRF,MF,300.00,300.00,NON-NRVC,CLSACOSTS,,N,370.00,M,,,2020.07.01,9999.12.31
Title:  31,31-18-701 (172.200a),NO SHIPPING PAPER PROVIDED BY OFFEROR,18,701,,172.200a,CT,TRF,MF,300.00,300.00,NON-NRVC,CLSACOSTS,,N,370.00,M,,,2020.07.01,9999.12.31
Title:  31,31-18-701 (172.201a1),HM NOT DISTINGUISHED FROM NON HM,18,701,,172.201a1,CT,TRF,MF,300.00,300.00,NON-NRVC,CLSACOSTS,,N,370.00,M,,,2020.07.01,9999.12.31
Title:  31,31-18-701 (172.201a2),HM DESCRIPTION NOT PRINTED LEGIBLY IN ENGLISH,18,701,,172.201a2,CT,TRF,MF,300.00,300.00,NON-NRVC,CLSACOSTS,,N,370.00,M,,,2020.07.01,9999.12.31
Title:  31,31-18-701 (172.201a3),HM DESCRIPTION CONTAINS ABBREVIATION OR CODE,18,701,,172.201a3,CT,TRF,MF,300.00,300.00,NON-NRVC,CLSACOSTS,,N,370.00,M,,,2020.07.01,9999.12.31
Title:  31,31-18-701 (172.201a4),ADD'L INFO NOT AFT HM BASIC DESCRIPTION,18,701,,172.201a4,CT,TRF,MF,300.00,300.00,NON-NRVC,CLSACOSTS,,N,370.00,M,,,2020.07.01,9999.12.31
Title:  31,31-18-701 (172.201c),FAIL TO LIST NO. OF PAGES,18,701,,172.201c,CT,TRF,MF,300.00,300.00,NON-NRVC,CLSACOSTS,,N,370.00,M,,,2020.07.01,9999.12.31
Title:  31,31-18-701 (172.201d),EMERGENCY PHONE NO. NOT LISTED,18,701,,172.201d,CT,TRF,MF,300.00,300.00,NON-NRVC,CLSACOSTS,,N,370.00,M,,,2020.07.01,9999.12.31
Title:  31,31-18-701 (172.202a1),IMPROPER SHIPPING NAME,18,701,,172.202a1,CT,TRF,MF,300.00,300.00,NON-NRVC,CLSACOSTS,,N,370.00,M,,,2020.07.01,9999.12.31
Title:  31,31-18-701 (172.202a2),IMPROPER HAZARD CLASS,18,701,,172.202a2,CT,TRF,MF,300.00,300.00,NON-NRVC,CLSACOSTS,,N,370.00,M,,,2020.07.01,9999.12.31
Title:  31,31-18-701 (172.202a3),WRONG OR NO ID NO.,18,701,,172.202a3,CT,TRF,MF,300.00,300.00,NON-NRVC,CLSACOSTS,,N,370.00,M,,,2020.07.01,9999.12.31
Title:  31,31-18-701 (172.202a4),NO PACKING GROUP LISTED,18,701,,172.202a4,CT,TRF,MF,300.00,300.00,NON-NRVC,CLSACOSTS,,N,370.00,M,,,2020.07.01,9999.12.31
Title:  31,31-18-701 (172.202a5),TOTAL QUANTITY NOT LISTED,18,701,,172.202a5,CT,TRF,MF,300.00,300.00,NON-NRVC,CLSACOSTS,,N,370.00,M,,,2020.07.01,9999.12.31
Title:  31,31-18-701 (172.202b),BASIC DESCRIPTION NOT IN PROPER SEQUENCE,18,701,,172.202b,CT,TRF,MF,300.00,300.00,NON-NRVC,CLSACOSTS,,N,370.00,M,,,2020.07.01,9999.12.31
Title:  31,31-18-701 (172.202c),TOTAL QUANTITY IMPROPER LOCATION,18,701,,172.202c,CT,TRF,MF,300.00,300.00,NON-NRVC,CLSACOSTS,,N,370.00,M,,,2020.07.01,9999.12.31
Title:  31,31-18-701 (172.202e),NON HM ENTERED W/ CLASS OR ID NO.,18,701,,172.202e,CT,TRF,MF,300.00,300.00,NON-NRVC,CLSACOSTS,,N,370.00,M,,,2020.07.01,9999.12.31
Title:  31,31-18-701 (172.203a),EXEMPTION NO. NOT LISTED,18,701,,172.203a,CT,TRF,MF,300.00,300.00,NON-NRVC,CLSACOSTS,,N,370.00,M,,,2020.07.01,9999.12.31
Title:  31,31-18-701 (172.203b),LIMITED QUANTITY NOT SHOWN,18,701,,172.203b,CT,TRF,MF,300.00,300.00,NON-NRVC,CLSACOSTS,,N,370.00,M,,,2020.07.01,9999.12.31
Title:  31,31-18-701 (172.203c1),HAZARDOUS SUBST ENTRY MISSING,18,701,,172.203c1,CT,TRF,MF,300.00,300.00,NON-NRVC,CLSACOSTS,,N,370.00,M,,,2020.07.01,9999.12.31
Title:  31,31-18-701 (172.203c2),RQ NOT ON SHIPPING PAPER,18,701,,172.203c2,CT,TRF,MF,300.00,300.00,NON-NRVC,CLSACOSTS,,N,370.00,M,,,2020.07.01,9999.12.31
Title:  31,31-18-701 (172.203d1),RADIOACTIVE MATERIAL NOT NOTED,18,701,,172.203d1,CT,TRF,MF,300.00,300.00,NON-NRVC,CLSACOSTS,,N,370.00,M,,,2020.07.01,9999.12.31
Title:  31,31-18-701 (172.203d10),NO EXCLUSIVE USE NOTATION,18,701,,172.203d10,CT,TRF,MF,300.00,300.00,NON-NRVC,CLSACOSTS,,N,370.00,M,,,2020.07.01,9999.12.31
Title:  31,31-18-701 (172.203d11),NO LSA-SCO NOTATION,18,701,,172.203d11,CT,TRF,MF,300.00,300.00,NON-NRVC,CLSACOSTS,,N,370.00,M,,,2020.07.01,9999.12.31
Title:  31,31-18-701 (172.203d2),RADIONUCLIDE NAME NOT ON SHIPPING PAPER,18,701,,172.203d2,CT,TRF,MF,300.00,300.00,NON-NRVC,CLSACOSTS,,N,370.00,M,,,2020.07.01,9999.12.31
Title:  31,31-18-701 (172.203d2i),HAZMAT: LIQ PETROL GAS NONCORROSIVE OR NONCOR,18,701,,172.203d2i,CT,TRF,MF,300.00,300.00,NON-NRVC,CLSACOSTS,,N,370.00,M,,,2020.07.01,9999.12.31
Title:  31,31-18-701 (172.203d2ii),HAZMAT: LIQ PETROL GAS NOT FOR Q AND T TANKS,18,701,,172.203d2ii,CT,TRF,MF,300.00,300.00,NON-NRVC,CLSACOSTS,,N,370.00,M,,,2020.07.01,9999.12.31
Title:  31,31-18-701 (172.203d3),NO RAM PHYSICAL OR CHEMICAL FORM,18,701,,172.203d3,CT,TRF,MF,300.00,300.00,NON-NRVC,CLSACOSTS,,N,370.00,M,,,2020.07.01,9999.12.31
Title:  31,31-18-701 (172.203d4),NO RAM ACTIVITY,18,701,,172.203d4,CT,TRF,MF,300.00,300.00,NON-NRVC,CLSACOSTS,,N,370.00,M,,,2020.07.01,9999.12.31
Title:  31,31-18-701 (172.203d5),NO RAM LABEL CATEGORY,18,701,,172.203d5,CT,TRF,MF,300.00,300.00,NON-NRVC,CLSACOSTS,,N,370.00,M,,,2020.07.01,9999.12.31
Title:  31,31-18-701 (172.203d6),NO RAM TRANSPORT INDEX,18,701,,172.203d6,CT,TRF,MF,300.00,300.00,NON-NRVC,CLSACOSTS,,N,370.00,M,,,2020.07.01,9999.12.31
Title:  31,31-18-701 (172.203d7),NO FISSILE RADIOACTIVE ENTRY,18,701,,172.203d7,CT,TRF,MF,300.00,300.00,NON-NRVC,CLSACOSTS,,N,370.00,M,,,2020.07.01,9999.12.31
Title:  31,31-18-701 (172.203d8),NO DOE/NRC PKG APPROVAL NOTATION,18,701,,172.203d8,CT,TRF,MF,300.00,300.00,NON-NRVC,CLSACOSTS,,N,370.00,M,,,2020.07.01,9999.12.31
Title:  31,31-18-701 (172.203d9),IAEA AUTHORITY NOTED,18,701,,172.203d9,CT,TRF,MF,300.00,300.00,NON-NRVC,CLSACOSTS,,N,370.00,M,,,2020.07.01,9999.12.31
Title:  31,31-18-701 (172.203e),NO EMPTY PKG'G NOTED,18,701,,172.203e,CT,TRF,MF,300.00,300.00,NON-NRVC,CLSACOSTS,,N,370.00,M,,,2020.07.01,9999.12.31
Title:  31,31-18-701 (172.203h1i),HAZMAT: ANHYDROUS AMMONIA 0.2 PERCENT WATER,18,701,,172.203h1i,CT,TRF,MF,300.00,300.00,NON-NRVC,CLSACOSTS,,N,370.00,M,,,2020.07.01,9999.12.31
Title:  31,31-18-701 (172.203h1ii),HAZMAT: ANHYDROUS AMMONIA NOT FOR Q AND T TANKS,18,701,,172.203h1ii,CT,TRF,MF,300.00,300.00,NON-NRVC,CLSACOSTS,,N,370.00,M,,,2020.07.01,9999.12.31
Title:  31,31-18-701 (172.203k),NO TECHNICAL NAME FOR NOS ENTRY,18,701,,172.203k,CT,TRF,MF,300.00,300.00,NON-NRVC,CLSACOSTS,,N,370.00,M,,,2020.07.01,9999.12.31
Title:  31,31-18-701 (172.203k1),HAZMAT: TECHNICAL NAMES TWO COMPONENTS,18,701,,172.203k1,CT,TRF,MF,300.00,300.00,NON-NRVC,CLSACOSTS,,N,370.00,M,,,2020.07.01,9999.12.31
Title:  31,31-18-701 (172.203l1),HAZMAT: MARINE POLLUTANTS COMPONENTS IN PARENTHESES,18,701,,172.203l1,CT,TRF,MF,300.00,300.00,NON-NRVC,CLSACOSTS,,N,370.00,M,,,2020.07.01,9999.12.31
Title:  31,31-18-701 (172.203l2),HAZMAT: MARINE POLLUTANT ENTERED WITH BASIC DESCRIPTION,18,701,,172.203l2,CT,TRF,MF,300.00,300.00,NON-NRVC,CLSACOSTS,,N,370.00,M,,,2020.07.01,9999.12.31
Title:  31,31-18-701 (172.203m1),POISON OR TOXIC W/ SUBSID HAZARD,18,701,,172.203m1,CT,TRF,MF,300.00,300.00,NON-NRVC,CLSACOSTS,,N,370.00,M,,,2020.07.01,9999.12.31
Title:  31,31-18-701 (172.203m2),NO POISON INHALATION HAZARD &/OR ZONE A,18,701,,172.203m2,CT,TRF,MF,300.00,300.00,NON-NRVC,CLSACOSTS,,N,370.00,M,,,2020.07.01,9999.12.31
Title:  31,31-18-701 (172.203n),"NO ""HOT"" ON SHIPPING PAPER",18,701,,172.203n,CT,TRF,MF,300.00,300.00,NON-NRVC,CLSACOSTS,,N,370.00,M,,,2020.07.01,9999.12.31
Title:  31,31-18-701 (172.203o),NO TEMP CONTRS NOTED 4.1 & 5.2,18,701,,172.203o,CT,TRF,MF,300.00,300.00,NON-NRVC,CLSACOSTS,,N,370.00,M,,,2020.07.01,9999.12.31
Title:  31,31-18-701 (172.204a),HAZMAT: REQ'D SHIPPING DESCRIPTION,18,701,,172.204a,CT,TRF,MF,300.00,300.00,NON-NRVC,CLSACOSTS,,N,370.00,M,,,2020.07.01,9999.12.31
Title:  31,31-18-701 (172.204d1),HAZMAT: LEGIBLE SIGNATURE REQ'D,18,701,,172.204d1,CT,TRF,MF,300.00,300.00,NON-NRVC,CLSACOSTS,,N,370.00,M,,,2020.07.01,9999.12.31
Title:  31,31-18-701 (172.205),HAZARDOUS WASTE MANIFEST NOT AS REQ'D,18,701,,172.205,CT,TRF,MF,300.00,300.00,NON-NRVC,CLSACOSTS,,N,370.00,M,,,2020.07.01,9999.12.31
Title:  31,31-18-701 (172.301a),NO SHIPPING NAME OR ID NO. ON NON-BULK,18,701,,172.301a,CT,TRF,MF,300.00,300.00,NON-NRVC,CLSACOSTS,,N,370.00,M,,,2020.07.01,9999.12.31
Title:  31,31-18-701 (172.301b),NO TECHNICAL NAME ON NON-BULK,18,701,,172.301b,CT,TRF,MF,300.00,300.00,NON-NRVC,CLSACOSTS,,N,370.00,M,,,2020.07.01,9999.12.31
Title:  31,31-18-701 (172.301c),NO EXEMPTION NO. ON NON-BULK,18,701,,172.301c,CT,TRF,MF,300.00,300.00,NON-NRVC,CLSACOSTS,,N,370.00,M,,,2020.07.01,9999.12.31
Title:  31,31-18-701 (172.301d),NO CONSIGNEE/ CONSIGNOR ON NON-BULK,18,701,,172.301d,CT,TRF,MF,300.00,300.00,NON-NRVC,CLSACOSTS,,N,370.00,M,,,2020.07.01,9999.12.31
Title:  31,31-18-701 (172.302a),NO ID NO. (PORTABLE & CARGO TANK),18,701,,172.302a,CT,TRF,MF,300.00,300.00,NON-NRVC,CLSACOSTS,,N,370.00,M,,,2020.07.01,9999.12.31
Title:  31,31-18-701 (172.302b),BULK PKG MRK'G INCORRECT SIZE,18,701,,172.302b,CT,TRF,MF,300.00,300.00,NON-NRVC,CLSACOSTS,,N,370.00,M,,,2020.07.01,9999.12.31
Title:  31,31-18-701 (172.302c),NO EXEMPTION NO. ON BULK PKG,18,701,,172.302c,CT,TRF,MF,300.00,300.00,NON-NRVC,CLSACOSTS,,N,370.00,M,,,2020.07.01,9999.12.31
Title:  31,31-18-701 (172.303a),PROHIB'D HM MRK'G ON PKG,18,701,,172.303a,CT,TRF,MF,300.00,300.00,NON-NRVC,CLSACOSTS,,N,370.00,M,,,2020.07.01,9999.12.31
Title:  31,31-18-701 (172.304a1),"PKG MRK'G NOT DURABLE, ENGLISH OR PRINT",18,701,,172.304a1,CT,TRF,MF,300.00,300.00,NON-NRVC,CLSACOSTS,,N,370.00,M,,,2020.07.01,9999.12.31
Title:  31,31-18-701 (172.304a2),MRK'G NOT ON SHARPLY CONTRASTING COLOR,18,701,,172.304a2,CT,TRF,MF,300.00,300.00,NON-NRVC,CLSACOSTS,,N,370.00,M,,,2020.07.01,9999.12.31
Title:  31,31-18-701 (172.304a3),MRK'G OBSCURED BY LABEL OR ATTACHMTS,18,701,,172.304a3,CT,TRF,MF,300.00,300.00,NON-NRVC,CLSACOSTS,,N,370.00,M,,,2020.07.01,9999.12.31
Title:  31,31-18-701 (172.304a4),MRK'G NOT AWAY FROM OTHER MRK'G,18,701,,172.304a4,CT,TRF,MF,300.00,300.00,NON-NRVC,CLSACOSTS,,N,370.00,M,,,2020.07.01,9999.12.31
Title:  31,31-18-701 (172.308a),PKG MRK'D W/ UNAUTHORIZED ABBREVIATION,18,701,,172.308a,CT,TRF,MF,300.00,300.00,NON-NRVC,CLSACOSTS,,N,370.00,M,,,2020.07.01,9999.12.31
Title:  31,31-18-701 (172.310a),HAZMAT: NO GROSS WT ON RAM PKG >50KG,18,701,,172.310a,CT,TRF,MF,300.00,300.00,NON-NRVC,CLSACOSTS,,N,370.00,M,,,2020.07.01,9999.12.31
Title:  31,31-18-701 (172.310b),"HAZMAT: RAM PKG NOT MRK'D ""TYPE A OR B""",18,701,,172.310b,CT,TRF,MF,300.00,300.00,NON-NRVC,CLSACOSTS,,N,370.00,M,,,2020.07.01,9999.12.31
Title:  31,31-18-701 (172.310c),"HAZMAT: TYPE B, B(U), B(M) PKG NOT MRK'D W/ RADIATION SYM",18,701,,172.310c,CT,TRF,MF,300.00,300.00,NON-NRVC,CLSACOSTS,,N,370.00,M,,,2020.07.01,9999.12.31
Title:  31,31-18-701 (172.310d),HAZMAT: RAM TYPE B(U) OR TYPE B(M) OUTSIDE MRK'G REQ'D,18,701,,172.310d,CT,TRF,MF,300.00,300.00,NON-NRVC,CLSACOSTS,,N,370.00,M,,,2020.07.01,9999.12.31
Title:  31,31-18-701 (172.310e),HAZMAT: RAM TYPE B(U)/TYPE B(M)/FISSILE MATERIAL PKG MRK'G REQ'D,18,701,,172.310e,CT,TRF,MF,300.00,300.00,NON-NRVC,CLSACOSTS,,N,370.00,M,,,2020.07.01,9999.12.31
Title:  31,31-18-701 (172.312a1),HAZMAT: PACKED WITH CLOSURES UPWARD,18,701,,172.312a1,CT,TRF,MF,300.00,300.00,NON-NRVC,CLSACOSTS,,N,370.00,M,,,2020.07.01,9999.12.31
Title:  31,31-18-701 (172.312a2),HAZMAT: NO PKG ORIENTATION ARROWS,18,701,,172.312a2,CT,TRF,MF,300.00,300.00,NON-NRVC,CLSACOSTS,,N,370.00,M,,,2020.07.01,9999.12.31
Title:  31,31-18-701 (172.312b),HAZMAT: PROHIB'D USE OF ORIENTATION ARROWS,18,701,,172.312b,CT,TRF,MF,300.00,300.00,NON-NRVC,CLSACOSTS,,N,370.00,M,,,2020.07.01,9999.12.31
Title:  31,31-18-701 (172.313a),"HAZMAT: NO ""INHALATION HAZARD"" ON PKG",18,701,,172.313a,CT,TRF,MF,300.00,300.00,NON-NRVC,CLSACOSTS,,N,370.00,M,,,2020.07.01,9999.12.31
Title:  31,31-18-701 (172.313b),"HAZMAT: NO ""POISON"" ON NON-BULK PLASTIC PKG",18,701,,172.313b,CT,TRF,MF,300.00,300.00,NON-NRVC,CLSACOSTS,,N,370.00,M,,,2020.07.01,9999.12.31
Title:  31,31-18-701 (172.313c),HAZMAT: IDENTIFICATION NUMBER SPECIFIED,18,701,,172.313c,CT,TRF,MF,300.00,300.00,NON-NRVC,CLSACOSTS,,N,370.00,M,,,2020.07.01,9999.12.31
Title:  31,31-18-701 (172.315a),HAZMAT: LMTD QUANTITIES MODES OTHER THAN AIR,18,701,,172.315a,CT,TRF,MF,300.00,300.00,NON-NRVC,CLSACOSTS,,N,370.00,M,,,2020.07.01,9999.12.31
Title:  31,31-18-701 (172.316a),ORM NON-BULK PKG NOT MRK'D,18,701,,172.316a,CT,TRF,MF,300.00,300.00,NON-NRVC,CLSACOSTS,,N,370.00,M,,,2020.07.01,9999.12.31
Title:  31,31-18-701 (172.320a),CLASS 1 PKG NOT MRK'D W/ EX-NO.,18,701,,172.320a,CT,TRF,MF,300.00,300.00,NON-NRVC,CLSACOSTS,,N,370.00,M,,,2020.07.01,9999.12.31
Title:  31,31-18-701 (172.322b),NO MARPOL MRK'G ON BULK PKG'G,18,701,,172.322b,CT,TRF,MF,300.00,300.00,NON-NRVC,CLSACOSTS,,N,370.00,M,,,2020.07.01,9999.12.31
Title:  31,31-18-701 (172.323a),HAZMAT: INFECTIOUS SUBSTANCES MEDICAL WASTE MARKED BIOHAZARD,18,701,,172.323a,CT,TRF,MF,300.00,300.00,NON-NRVC,CLSACOSTS,,N,370.00,M,,,2020.07.01,9999.12.31
Title:  31,31-18-701 (172.324),NON-BULK HAZARDOUS SUBST NOT MRK'D,18,701,,172.324,CT,TRF,MF,300.00,300.00,NON-NRVC,CLSACOSTS,,N,370.00,M,,,2020.07.01,9999.12.31
Title:  31,31-18-701 (172.325a),"ELEVATED TEMPERATURE NOT MRK'D ""HOT""",18,701,,172.325a,CT,TRF,MF,300.00,300.00,NON-NRVC,CLSACOSTS,,N,370.00,M,,,2020.07.01,9999.12.31
Title:  31,31-18-701 (172.325b),IMPROPERLY MRK'D MOLTEN ALUMINUM/ SULPHUR,18,701,,172.325b,CT,TRF,MF,300.00,300.00,NON-NRVC,CLSACOSTS,,N,370.00,M,,,2020.07.01,9999.12.31
Title:  31,31-18-701 (172.326a),HAZMAT: PORT TANK NO PROPER SHIPPING NAME,18,701,,172.326a,CT,TRF,MF,300.00,300.00,NON-NRVC,CLSACOSTS,,N,370.00,M,,,2020.07.01,9999.12.31
Title:  31,31-18-701 (172.326b),HAZMAT: NO PORT TANK OWNER OR LESSEE MRK'G,18,701,,172.326b,CT,TRF,MF,300.00,300.00,NON-NRVC,CLSACOSTS,,N,370.00,M,,,2020.07.01,9999.12.31
Title:  31,31-18-701 (172.326c1),HAZMAT: NO ID NO. MRK'G ON VEH CARRYING PORTABLE TANK,18,701,,172.326c1,CT,TRF,MF,300.00,300.00,NON-NRVC,CLSACOSTS,,N,370.00,M,,,2020.07.01,9999.12.31
Title:  31,31-18-701 (172.326c2),HAZMAT: SHIPPER FAILED TO PROVIDE ID NO. TO CARRIER,18,701,,172.326c2,CT,TRF,MF,300.00,300.00,NON-NRVC,CLSACOSTS,,N,370.00,M,,,2020.07.01,9999.12.31
Title:  31,31-18-701 (172.327a),HAZMAT: PETROL MARKING SPECIFICATIONS,18,701,,172.327a,CT,TRF,MF,300.00,300.00,NON-NRVC,CLSACOSTS,,N,370.00,M,,,2020.07.01,9999.12.31
Title:  31,31-18-701 (172.327b),"HAZMAT: PETROL MARKING COLOR, CONTRAST AND POSITION",18,701,,172.327b,CT,TRF,MF,300.00,300.00,NON-NRVC,CLSACOSTS,,N,370.00,M,,,2020.07.01,9999.12.31
Title:  31,31-18-701 (172.327c),HAZMAT: PETROL ALTERNATIVE MARKING FOR HYDROGEN SULFIDE,18,701,,172.327c,CT,TRF,MF,300.00,300.00,NON-NRVC,CLSACOSTS,,N,370.00,M,,,2020.07.01,9999.12.31
Title:  31,31-18-701 (172.328a),SHIPPER FAILED TO PROVIDE OR AFFIX ID NO. FOR CARTON,18,701,,172.328a,CT,TRF,MF,300.00,300.00,NON-NRVC,CLSACOSTS,,N,370.00,M,,,2020.07.01,9999.12.31
Title:  31,31-18-701 (172.328b),CARGO TANK NOT MRK'D FOR CLASS 2,18,701,,172.328b,CT,TRF,MF,300.00,300.00,NON-NRVC,CLSACOSTS,,N,370.00,M,,,2020.07.01,9999.12.31
Title:  31,31-18-701 (172.328c),MC330/331 NO QT/NQT MRK'D ON CARGO TANK ,18,701,,172.328c,CT,TRF,MF,300.00,300.00,NON-NRVC,CLSACOSTS,,N,370.00,M,,,2020.07.01,9999.12.31
Title:  31,31-18-701 (172.328d),FAIL TO MRK MANUAL REMOTE SHUTOFF DEVICE,18,701,,172.328d,CT,TRF,MF,300.00,300.00,NON-NRVC,CLSACOSTS,,N,370.00,M,,,2020.07.01,9999.12.31
Title:  31,31-18-701 (172.330a2),TANK CAR TANK (NON CYLINDER) NOT MRK'D AS REQ'D,18,701,,172.330a2,CT,TRF,MF,300.00,300.00,NON-NRVC,CLSACOSTS,,N,370.00,M,,,2020.07.01,9999.12.31
Title:  31,31-18-701 (172.330b),VEH W/ TANK CAR TANK NOT MRK'D,18,701,,172.330b,CT,TRF,MF,300.00,300.00,NON-NRVC,CLSACOSTS,,N,370.00,M,,,2020.07.01,9999.12.31
Title:  31,31-18-701 (172.331),MRK'GS FOR OTHER BULK PKGS,18,701,,172.331,CT,TRF,MF,300.00,300.00,NON-NRVC,CLSACOSTS,,N,370.00,M,,,2020.07.01,9999.12.31
Title:  31,31-18-701 (172.332),ID NO. MRK'G FOR (B) PANEL (C) PLACARDS,18,701,,172.332,CT,TRF,MF,300.00,300.00,NON-NRVC,CLSACOSTS,,N,370.00,M,,,2020.07.01,9999.12.31
Title:  31,31-18-701 (172.334),PROHIB'D ID NO. MRK'G,18,701,,172.334,CT,TRF,MF,300.00,300.00,NON-NRVC,CLSACOSTS,,N,370.00,M,,,2020.07.01,9999.12.31
Title:  31,31-18-701 (172.338),CARRIER FAILED TO REPLACE MISSING ID NO.,18,701,,172.338,CT,TRF,MF,300.00,300.00,NON-NRVC,CLSACOSTS,,N,370.00,M,,,2020.07.01,9999.12.31
Title:  31,31-18-701 (172.400a1),HAZMAT: LABEL NON-BULK PACKAGE,18,701,,172.400a1,CT,TRF,MF,300.00,300.00,NON-NRVC,CLSACOSTS,,N,370.00,M,,,2020.07.01,9999.12.31
Title:  31,31-18-701 (172.400a2),HAZMAT: LABEL BULK PACKAGING,18,701,,172.400a2,CT,TRF,MF,300.00,300.00,NON-NRVC,CLSACOSTS,,N,370.00,M,,,2020.07.01,9999.12.31
Title:  31,31-18-701 (172.400a3),HAZMAT: LABEL PORTABLE TANK,18,701,,172.400a3,CT,TRF,MF,300.00,300.00,NON-NRVC,CLSACOSTS,,N,370.00,M,,,2020.07.01,9999.12.31
Title:  31,31-18-701 (172.400a4),HAZMAT: LABEL 106 OR 110 MULTI-UNIT TANK CAR TANK,18,701,,172.400a4,CT,TRF,MF,300.00,300.00,NON-NRVC,CLSACOSTS,,N,370.00,M,,,2020.07.01,9999.12.31
Title:  31,31-18-701 (172.400a5),HAZMAT: LABEL OVERPACK/FREIGHT CONTAINER/UNIT LOAD DEVICE < 640 CUBIC FT,18,701,,172.400a5,CT,TRF,MF,300.00,300.00,NON-NRVC,CLSACOSTS,,N,370.00,M,,,2020.07.01,9999.12.31
Title:  31,31-18-701 (172.400b),HAZMAT: LABEL ONE OR MORE HAZARD CLASS DEFINITIONS,18,701,,172.400b,CT,TRF,MF,300.00,300.00,NON-NRVC,CLSACOSTS,,N,370.00,M,,,2020.07.01,9999.12.31
Title:  31,31-18-701 (172.401a1),HAZMAT: PACKAGE CONTAINS HAZARDOUS MATERIAL,18,701,,172.401a1,CT,TRF,MF,300.00,300.00,NON-NRVC,CLSACOSTS,,N,370.00,M,,,2020.07.01,9999.12.31
Title:  31,31-18-701 (172.401a2),HAZMAT: LABEL HAZARD OF THE HAZARDOUS MATERIAL,18,701,,172.401a2,CT,TRF,MF,300.00,300.00,NON-NRVC,CLSACOSTS,,N,370.00,M,,,2020.07.01,9999.12.31
Title:  31,31-18-701 (172.401b),HAZMAT: MARKING OR LABEL CONFUSED/CONFLICT,18,701,,172.401b,CT,TRF,MF,300.00,300.00,NON-NRVC,CLSACOSTS,,N,370.00,M,,,2020.07.01,9999.12.31
Title:  31,31-18-701 (172.402a1),HAZMAT: PRIMARY AND SUBSIDARY HAZARD LABELS,18,701,,172.402a1,CT,TRF,MF,300.00,300.00,NON-NRVC,CLSACOSTS,,N,370.00,M,,,2020.07.01,9999.12.31
Title:  31,31-18-701 (172.402a2),HAZMAT: SUBSIDARY LABELING OTHER THAN CLASS 1 OR 2 MATERIALS,18,701,,172.402a2,CT,TRF,MF,300.00,300.00,NON-NRVC,CLSACOSTS,,N,370.00,M,,,2020.07.01,9999.12.31
Title:  31,31-18-701 (172.402b),DISPLAY CLASS NO. ON LABEL,18,701,,172.402b,CT,TRF,MF,300.00,300.00,NON-NRVC,CLSACOSTS,,N,370.00,M,,,2020.07.01,9999.12.31
Title:  31,31-18-701 (172.402d),SUBSIDIARY LABEL FOR RAM,18,701,,172.402d,CT,TRF,MF,300.00,300.00,NON-NRVC,CLSACOSTS,,N,370.00,M,,,2020.07.01,9999.12.31
Title:  31,31-18-701 (172.402e),SUBSIDIARY LABELING FOR CLASS 1 MATERIALS,18,701,,172.402e,CT,TRF,MF,300.00,300.00,NON-NRVC,CLSACOSTS,,N,370.00,M,,,2020.07.01,9999.12.31
Title:  31,31-18-701 (172.403a),RAM LABEL REQMT,18,701,,172.403a,CT,TRF,MF,300.00,300.00,NON-NRVC,CLSACOSTS,,N,370.00,M,,,2020.07.01,9999.12.31
Title:  31,31-18-701 (172.403f),RAM PKG 2 LABELS ON OPPOSITE SIDES,18,701,,172.403f,CT,TRF,MF,300.00,300.00,NON-NRVC,CLSACOSTS,,N,370.00,M,,,2020.07.01,9999.12.31
Title:  31,31-18-701 (172.403g),FAIL TO LABEL RAM PROPERLY,18,701,,172.403g,CT,TRF,MF,300.00,300.00,NON-NRVC,CLSACOSTS,,N,370.00,M,,,2020.07.01,9999.12.31
Title:  31,31-18-701 (172.404a),MIXED PKG NOT PROPERLY LABELED,18,701,,172.404a,CT,TRF,MF,300.00,300.00,NON-NRVC,CLSACOSTS,,N,370.00,M,,,2020.07.01,9999.12.31
Title:  31,31-18-701 (172.404b),FAIL TO PROPERLY LABEL CONSOLIDATED PKG,18,701,,172.404b,CT,TRF,MF,300.00,300.00,NON-NRVC,CLSACOSTS,,N,370.00,M,,,2020.07.01,9999.12.31
Title:  31,31-18-701 (172.406a1i),HAZMAT: LABEL PLACEMENT PRINTED/AFFIXED TO A SURFACE,18,701,,172.406a1i,CT,TRF,MF,300.00,300.00,NON-NRVC,CLSACOSTS,,N,370.00,M,,,2020.07.01,9999.12.31
Title:  31,31-18-701 (172.406a1ii),HAZMAT: LABEL PLACEMENT SAME SURFACE,18,701,,172.406a1ii,CT,TRF,MF,300.00,300.00,NON-NRVC,CLSACOSTS,,N,370.00,M,,,2020.07.01,9999.12.31
Title:  31,31-18-701 (172.406c),HAZMAT: MULTIPLE LABEL PLACEMT NOT AS REQ'D,18,701,,172.406c,CT,TRF,MF,300.00,300.00,NON-NRVC,CLSACOSTS,,N,370.00,M,,,2020.07.01,9999.12.31
Title:  31,31-18-701 (172.406d),HAZMAT: LABEL PLACEMENT CONTRAST WITH BACKGROUND,18,701,,172.406d,CT,TRF,MF,300.00,300.00,NON-NRVC,CLSACOSTS,,N,370.00,M,,,2020.07.01,9999.12.31
Title:  31,31-18-701 (172.406e),HAZMAT: LABEL PLACEMENT DUPLICATE,18,701,,172.406e,CT,TRF,MF,300.00,300.00,NON-NRVC,CLSACOSTS,,N,370.00,M,,,2020.07.01,9999.12.31
Title:  31,31-18-701 (172.406f),HAZMAT: LABEL OBSCURED BY MRK'G OR ATTACHMT,18,701,,172.406f,CT,TRF,MF,300.00,300.00,NON-NRVC,CLSACOSTS,,N,370.00,M,,,2020.07.01,9999.12.31
Title:  31,31-18-701 (172.407a),HAZMAT: LABEL DURABILITY,18,701,,172.407a,CT,TRF,MF,300.00,300.00,NON-NRVC,CLSACOSTS,,N,370.00,M,,,2020.07.01,9999.12.31
Title:  31,31-18-701 (172.407b),HAZMAT: LABEL DESIGN,18,701,,172.407b,CT,TRF,MF,300.00,300.00,NON-NRVC,CLSACOSTS,,N,370.00,M,,,2020.07.01,9999.12.31
Title:  31,31-18-701 (172.407c),HAZMAT: LABEL SIZE,18,701,,172.407c,CT,TRF,MF,300.00,300.00,NON-NRVC,CLSACOSTS,,N,370.00,M,,,2020.07.01,9999.12.31
Title:  31,31-18-701 (172.407d),HAZMAT: LABEL COLOR,18,701,,172.407d,CT,TRF,MF,300.00,300.00,NON-NRVC,CLSACOSTS,,N,370.00,M,,,2020.07.01,9999.12.31
Title:  31,31-18-701 (172.500a),HAZMAT: PLACARDING,18,701,,172.500a,CT,TRF,MF,300.00,300.00,NON-NRVC,CLSACOSTS,,N,370.00,M,,,2020.07.01,9999.12.31
Title:  31,31-18-701 (172.502a1),PROHIB'D PLACARDING,18,701,,172.502a1,CT,TRF,MF,300.00,300.00,NON-NRVC,CLSACOSTS,,N,370.00,M,,,2020.07.01,9999.12.31
Title:  31,31-18-701 (172.502a2),"SIGN, DEVICE COULD BE CONFUSED W/ HM PLACARD",18,701,,172.502a2,CT,TRF,MF,300.00,300.00,NON-NRVC,CLSACOSTS,,N,370.00,M,,,2020.07.01,9999.12.31
Title:  31,31-18-701 (172.504a),VEH NOT PLACARDED AS REQ'D,18,701,,172.504a,CT,TRF,MF,300.00,300.00,NON-NRVC,CLSACOSTS,,N,370.00,M,,,2020.07.01,9999.12.31
Title:  31,31-18-701 (172.504b),DANGEROUS PLACARD VIOLATION,18,701,,172.504b,CT,TRF,MF,300.00,300.00,NON-NRVC,CLSACOSTS,,N,370.00,M,,,2020.07.01,9999.12.31
Title:  31,31-18-701 (172.505a),NO PLACARD FOR POISON INHALATION HAZARD,18,701,,172.505a,CT,TRF,MF,300.00,300.00,NON-NRVC,CLSACOSTS,,N,370.00,M,,,2020.07.01,9999.12.31
Title:  31,31-18-701 (172.505b),NO PLACARD FOR RAM & CORROSIVE,18,701,,172.505b,CT,TRF,MF,300.00,300.00,NON-NRVC,CLSACOSTS,,N,370.00,M,,,2020.07.01,9999.12.31
Title:  31,31-18-701 (172.505c),PLACARD FOR SUBSIDIARY DANGEROUS WHEN WET,18,701,,172.505c,CT,TRF,MF,300.00,300.00,NON-NRVC,CLSACOSTS,,N,370.00,M,,,2020.07.01,9999.12.31
Title:  31,31-18-701 (172.506a),FAIL TO PROVIDE PLACARDS SHIPPER,18,701,,172.506a,CT,TRF,MF,300.00,300.00,NON-NRVC,CLSACOSTS,,N,370.00,M,,,2020.07.01,9999.12.31
Title:  31,31-18-701 (172.506a1),PLACARDS NOT AFFIXED TO VEH,18,701,,172.506a1,CT,TRF,MF,300.00,300.00,NON-NRVC,CLSACOSTS,,N,370.00,M,,,2020.07.01,9999.12.31
Title:  31,31-18-701 (172.507),RAM HWY ROUTE CONTR'D QUANTITY,18,701,,172.507,CT,TRF,MF,300.00,300.00,NON-NRVC,CLSACOSTS,,N,370.00,M,,,2020.07.01,9999.12.31
Title:  31,31-18-701 (172.512a),FREIGHT CONTAINER NOT PLACARDED,18,701,,172.512a,CT,TRF,MF,300.00,300.00,NON-NRVC,CLSACOSTS,,N,370.00,M,,,2020.07.01,9999.12.31
Title:  31,31-18-701 (172.514a),BULK PKG OFFERED W/O PLACARD,18,701,,172.514a,CT,TRF,MF,300.00,300.00,NON-NRVC,CLSACOSTS,,N,370.00,M,,,2020.07.01,9999.12.31
Title:  31,31-18-701 (172.514b),BULK PKG NOT PLACARDED RESIDUE OF HM,18,701,,172.514b,CT,TRF,MF,300.00,300.00,NON-NRVC,CLSACOSTS,,N,370.00,M,,,2020.07.01,9999.12.31
Title:  31,31-18-701 (172.516a),PLACARD NOT VISIBLE FROM DIRECTION IT FACES,18,701,,172.516a,CT,TRF,MF,300.00,300.00,NON-NRVC,CLSACOSTS,,N,370.00,M,,,2020.07.01,9999.12.31
Title:  31,31-18-701 (172.516c1),PLACARD NOT SECURELY AFFIXED OR ATTACHED,18,701,,172.516c1,CT,TRF,MF,300.00,300.00,NON-NRVC,CLSACOSTS,,N,370.00,M,,,2020.07.01,9999.12.31
Title:  31,31-18-701 (172.516c2),PLACARD NOT CLEAR OF APPURTENANCE,18,701,,172.516c2,CT,TRF,MF,300.00,300.00,NON-NRVC,CLSACOSTS,,N,370.00,M,,,2020.07.01,9999.12.31
Title:  31,31-18-701 (172.516c4),PLACARD IMPROPER LOCATION,18,701,,172.516c4,CT,TRF,MF,300.00,300.00,NON-NRVC,CLSACOSTS,,N,370.00,M,,,2020.07.01,9999.12.31
Title:  31,31-18-701 (172.516c5),PLACARD NOT READING HORIZONTALLY,18,701,,172.516c5,CT,TRF,MF,300.00,300.00,NON-NRVC,CLSACOSTS,,N,370.00,M,,,2020.07.01,9999.12.31
Title:  31,31-18-701 (172.516c6),"PLACARD DAMAGED, DETERIORATED, OR OBSCURED",18,701,,172.516c6,CT,TRF,MF,300.00,300.00,NON-NRVC,CLSACOSTS,,N,370.00,M,,,2020.07.01,9999.12.31
Title:  31,31-18-701 (172.516c7),PLACARD NOT ON CONTRASTING BACKGROUND OR NO BORDER,18,701,,172.516c7,CT,TRF,MF,300.00,300.00,NON-NRVC,CLSACOSTS,,N,370.00,M,,,2020.07.01,9999.12.31
Title:  31,31-18-701 (172.519),PLACARD DOES NOT MEET SPECIFICATIONS,18,701,,172.519,CT,TRF,MF,300.00,300.00,NON-NRVC,CLSACOSTS,,N,370.00,M,,,2020.07.01,9999.12.31
Title:  31,31-18-701 (172.600c),EMERGENCY INFO NOT AVAILABLE,18,701,,172.600c,CT,TRF,MF,300.00,300.00,NON-NRVC,CLSACOSTS,,N,370.00,M,,,2020.07.01,9999.12.31
Title:  31,31-18-701 (172.602a),EMERGENCY INFO MISSING,18,701,,172.602a,CT,TRF,MF,300.00,300.00,NON-NRVC,CLSACOSTS,,N,370.00,M,,,2020.07.01,9999.12.31
Title:  31,31-18-701 (172.602b),FORM & MANNER OF EMERGENCY INFO,18,701,,172.602b,CT,TRF,MF,300.00,300.00,NON-NRVC,CLSACOSTS,,N,370.00,M,,,2020.07.01,9999.12.31
Title:  31,31-18-701 (172.602c1),"MAINTENANCE, ACCESSIBILITY OF EMERGENCY INFO",18,701,,172.602c1,CT,TRF,MF,300.00,300.00,NON-NRVC,CLSACOSTS,,N,370.00,M,,,2020.07.01,9999.12.31
Title:  31,31-18-701 (172.604a),EMERGENCY RESPONSE NUMBER REQUIREMENTS,18,701,,172.604a,CT,TRF,MF,300.00,300.00,NON-NRVC,CLSACOSTS,,N,370.00,M,,,2020.07.01,9999.12.31
Title:  31,31-18-701 (172.604b),LOCATION OF REQUIRED INFORMATION,18,701,,172.604b,CT,TRF,MF,300.00,300.00,NON-NRVC,CLSACOSTS,,N,370.00,M,,,2020.07.01,9999.12.31
Title:  31,31-18-701 (172.604c),PERSON PREPARING SHIPPING PAPERS REQUIREMENTS,18,701,,172.604c,CT,TRF,MF,300.00,300.00,NON-NRVC,CLSACOSTS,,N,370.00,M,,,2020.07.01,9999.12.31
Title:  31,31-18-701 (172.704a1),HAZMAT: GENERAL AWARENESS/FAMILIARIZATION TRAINING,18,701,,172.704a1,CT,TRF,MF,300.00,300.00,NON-NRVC,CLSACOSTS,,N,370.00,M,,,2020.07.01,9999.12.31
Title:  31,31-18-701 (172.704a2),HAZMAT: FUNCTION-SPECIFIC TRAINING,18,701,,172.704a2,CT,TRF,MF,300.00,300.00,NON-NRVC,CLSACOSTS,,N,370.00,M,,,2020.07.01,9999.12.31
Title:  31,31-18-701 (172.704a3),HAZMAT: SAFETY TRAINING,18,701,,172.704a3,CT,TRF,MF,300.00,300.00,NON-NRVC,CLSACOSTS,,N,370.00,M,,,2020.07.01,9999.12.31
Title:  31,31-18-701 (172.704a4),HAZMAT: SECURITY AWARENESS TRAINING,18,701,,172.704a4,CT,TRF,MF,300.00,300.00,NON-NRVC,CLSACOSTS,,N,370.00,M,,,2020.07.01,9999.12.31
Title:  31,31-18-701 (172.704a5c1),HAZMAT: IN-DEPTH SECURITY TRAINING,18,701,,172.704a5c1,CT,TRF,MF,300.00,300.00,NON-NRVC,CLSACOSTS,,N,370.00,M,,,2020.07.01,9999.12.31
Title:  31,31-18-701 (172.704c2d),HAZMAT: INITIAL AND RECURRENT TRAINING/RECORDKEEPING,18,701,,172.704c2d,CT,TRF,MF,300.00,300.00,NON-NRVC,CLSACOSTS,,N,370.00,M,,,2020.07.01,9999.12.31
Title:  31,31-18-701 (172.800b),OPERATE W/O HAZMAT SECURITY PLAN,18,701,,172.800b,CT,TRF,MF,300.00,300.00,NON-NRVC,CLSACOSTS,,N,370.00,M,,,2020.07.01,9999.12.31
Title:  31,31-18-701 (173.24aa1),NON-BULK INNER PKG CLOSURE OPEN NOT UPRT,18,701,,173.24aa1,CT,TRF,MF,300.00,300.00,NON-NRVC,CLSACOSTS,,N,370.00,M,,,2020.07.01,9999.12.31
Title:  31,31-18-701 (173.24aa3),NON-BULK PKG'G SECURING & CUSHIONING,18,701,,173.24aa3,CT,TRF,MF,300.00,300.00,NON-NRVC,CLSACOSTS,,N,370.00,M,,,2020.07.01,9999.12.31
Title:  31,31-18-701 (173.24ab),NON-BULK PKG FILLING LIMIT,18,701,,173.24ab,CT,TRF,MF,300.00,300.00,NON-NRVC,CLSACOSTS,,N,370.00,M,,,2020.07.01,9999.12.31
Title:  31,31-18-701 (173.24ac),NON-BULK PKG MIXED CONTENTS REQMTS,18,701,,173.24ac,CT,TRF,MF,300.00,300.00,NON-NRVC,CLSACOSTS,,N,370.00,M,,,2020.07.01,9999.12.31
Title:  31,31-18-701 (173.24b),FILLED TO MEET GEN PKG REQMTS,18,701,,173.24b,CT,TRF,MF,300.00,300.00,NON-NRVC,CLSACOSTS,,N,370.00,M,,,2020.07.01,9999.12.31
Title:  31,31-18-701 (173.24b1),RELEASE OF HM FROM PKG,18,701,,173.24b1,CT,TRF,MF,300.00,300.00,NON-NRVC,CLSACOSTS,,N,370.00,M,,,2020.07.01,9999.12.31
Title:  31,31-18-701 (173.24ba),BULK PKG OUTAGE OR FILLING LIMIT REQMTS,18,701,,173.24ba,CT,TRF,MF,300.00,300.00,NON-NRVC,CLSACOSTS,,N,370.00,M,,,2020.07.01,9999.12.31
Title:  31,31-18-701 (173.24bd2),EXCEED MAX WT OF RATING ON SPECIFICATION PLATE,18,701,,173.24bd2,CT,TRF,MF,300.00,300.00,NON-NRVC,CLSACOSTS,,N,370.00,M,,,2020.07.01,9999.12.31
Title:  31,31-18-701 (173.24c),UNAUTHORIZED PKG'G,18,701,,173.24c,CT,TRF,MF,300.00,300.00,NON-NRVC,CLSACOSTS,,N,370.00,M,,,2020.07.01,9999.12.31
Title:  31,31-18-701 (173.24f1),CLOSURES FOR PKGS MUST NOT BE OPEN OR LEAKING,18,701,,173.24f1,CT,TRF,MF,300.00,300.00,NON-NRVC,CLSACOSTS,,N,370.00,M,,,2020.07.01,9999.12.31
Title:  31,31-18-701 (173.25a),FAIL TO MEET OVERPACK CONDITIONS,18,701,,173.25a,CT,TRF,MF,300.00,300.00,NON-NRVC,CLSACOSTS,,N,370.00,M,,,2020.07.01,9999.12.31
Title:  31,31-18-701 (173.29a),TRANSPORT EMPTY PKGS (RESIDUE),18,701,,173.29a,CT,TRF,MF,300.00,300.00,NON-NRVC,CLSACOSTS,,N,370.00,M,,,2020.07.01,9999.12.31
Title:  31,31-18-701 (173.30),"LOADING, UNLOADING TRANSPORT VEHS",18,701,,173.30,CT,TRF,MF,300.00,300.00,NON-NRVC,CLSACOSTS,,N,370.00,M,,,2020.07.01,9999.12.31
Title:  31,31-18-701 (173.315a),"CARGO OR PORTABLE TANK CLASS 2, FILLING DENST",18,701,,173.315a,CT,TRF,MF,300.00,300.00,NON-NRVC,CLSACOSTS,,N,370.00,M,,,2020.07.01,9999.12.31
Title:  31,31-18-701 (173.315j3),RESIDENTIAL GAS TANK NOT SECURE IN TRANSPORT,18,701,,173.315j3,CT,TRF,MF,300.00,300.00,NON-NRVC,CLSACOSTS,,N,370.00,M,,,2020.07.01,9999.12.31
Title:  31,31-18-701 (173.315j4),LPG STORAGE TANK OVERFILLED FOR TRANSPORT,18,701,,173.315j4,CT,TRF,MF,300.00,300.00,NON-NRVC,CLSACOSTS,,N,370.00,M,,,2020.07.01,9999.12.31
Title:  31,31-18-701 (173.318b10),MRK'G INLETS & OUTLETS CRYOGENIC TANKS,18,701,,173.318b10,CT,TRF,MF,300.00,300.00,NON-NRVC,CLSACOSTS,,N,370.00,M,,,2020.07.01,9999.12.31
Title:  31,31-18-701 (173.318g),NO ONE WAY TRAVEL TIME (OWTT),18,701,,173.318g,CT,TRF,MF,300.00,300.00,NON-NRVC,CLSACOSTS,,N,370.00,M,,,2020.07.01,9999.12.31
Title:  31,31-18-701 (173.31d),RETESTING FOR MULTIUNIT TANK CAR TANKS,18,701,,173.31d,CT,TRF,MF,300.00,300.00,NON-NRVC,CLSACOSTS,,N,370.00,M,,,2020.07.01,9999.12.31
Title:  31,31-18-701 (173.32ba),IM PORTABLE TANK PERIODIC TESTING,18,701,,173.32ba,CT,TRF,MF,300.00,300.00,NON-NRVC,CLSACOSTS,,N,370.00,M,,,2020.07.01,9999.12.31
Title:  31,31-18-701 (173.32cg1),IM 101/102 OUTLET CLOSURES,18,701,,173.32cg1,CT,TRF,MF,300.00,300.00,NON-NRVC,CLSACOSTS,,N,370.00,M,,,2020.07.01,9999.12.31
Title:  31,31-18-701 (173.32cg2),IM 101/102 OUTLET CLOSURES,18,701,,173.32cg2,CT,TRF,MF,300.00,300.00,NON-NRVC,CLSACOSTS,,N,370.00,M,,,2020.07.01,9999.12.31
Title:  31,31-18-701 (173.32h3),IM 101/102 BOTTOM OUTLETS PROHIB'D,18,701,,173.32h3,CT,TRF,MF,300.00,300.00,NON-NRVC,CLSACOSTS,,N,370.00,M,,,2020.07.01,9999.12.31
Title:  31,31-18-701 (173.32h31),IM 101/102 BOTTOM OUTLETS AUTHORIZED,18,701,,173.32h31,CT,TRF,MF,300.00,300.00,NON-NRVC,CLSACOSTS,,N,370.00,M,,,2020.07.01,9999.12.31
Title:  31,31-18-701 (173.33a),CARGO TANK GEN REQMTS,18,701,,173.33a,CT,TRF,MF,300.00,300.00,NON-NRVC,CLSACOSTS,,N,370.00,M,,,2020.07.01,9999.12.31
Title:  31,31-18-701 (173.33b),CARGO TANK LOADING REQMTS,18,701,,173.33b,CT,TRF,MF,300.00,300.00,NON-NRVC,CLSACOSTS,,N,370.00,M,,,2020.07.01,9999.12.31
Title:  31,31-18-701 (173.33c2),CARGO TANK NOT MRK'D W/ DESIGN OR MAWP,18,701,,173.33c2,CT,TRF,MF,300.00,300.00,NON-NRVC,CLSACOSTS,,N,370.00,M,,,2020.07.01,9999.12.31
Title:  31,31-18-701 (173.34e),CYLINDER RETEST & MRK'G,18,701,,173.34e,CT,TRF,MF,300.00,300.00,NON-NRVC,CLSACOSTS,,N,370.00,M,,,2020.07.01,9999.12.31
Title:  31,31-18-701 (173.35a),INTERMEDIATE BULK CONTAINER REQMTS,18,701,,173.35a,CT,TRF,MF,300.00,300.00,NON-NRVC,CLSACOSTS,,N,370.00,M,,,2020.07.01,9999.12.31
Title:  31,31-18-701 (173.35d),LIQUID FILLED IBC-ULLAGE OVER 98%,18,701,,173.35d,CT,TRF,MF,300.00,300.00,NON-NRVC,CLSACOSTS,,N,370.00,M,,,2020.07.01,9999.12.31
Title:  31,31-18-701 (173.35f2),IBC NOT SECURED TO OR W/I VEH,18,701,,173.35f2,CT,TRF,MF,300.00,300.00,NON-NRVC,CLSACOSTS,,N,370.00,M,,,2020.07.01,9999.12.31
Title:  31,31-18-701 (173.40),GEN REQMTS POISONS IN CYLINDER,18,701,,173.40,CT,TRF,MF,300.00,300.00,NON-NRVC,CLSACOSTS,,N,370.00,M,,,2020.07.01,9999.12.31
Title:  31,31-18-701 (173.412),GEN TYPE A FAILING TO MEET ADD'L REQMT DESIGN,18,701,,173.412,CT,TRF,MF,300.00,300.00,NON-NRVC,CLSACOSTS,,N,370.00,M,,,2020.07.01,9999.12.31
Title:  31,31-18-701 (173.412b),NO SEAL FOR TYPE A RAM PKG,18,701,,173.412b,CT,TRF,MF,300.00,300.00,NON-NRVC,CLSACOSTS,,N,370.00,M,,,2020.07.01,9999.12.31
Title:  31,31-18-701 (173.421a),TRANSPORT LTD QTY RAM EXCEEDS 0.5 MREM/HR,18,701,,173.421a,CT,TRF,MF,300.00,300.00,NON-NRVC,CLSACOSTS,,N,370.00,M,,,2020.07.01,9999.12.31
Title:  31,31-18-701 (173.427aiv),NO INSTRUCTIONS FOR EXCLUSIVE USE PKG LSA,18,701,,173.427aiv,CT,TRF,MF,300.00,300.00,NON-NRVC,CLSACOSTS,,N,370.00,M,,,2020.07.01,9999.12.31
Title:  31,31-18-701 (173.427avi),LSA PKG NOT MRK'D AS REQ'D,18,701,,173.427avi,CT,TRF,MF,300.00,300.00,NON-NRVC,CLSACOSTS,,N,370.00,M,,,2020.07.01,9999.12.31
Title:  31,31-18-701 (173.431),EXCEED ACTIVITY LIMITS TYPE A OR B PKG,18,701,,173.431,CT,TRF,MF,300.00,300.00,NON-NRVC,CLSACOSTS,,N,370.00,M,,,2020.07.01,9999.12.31
Title:  31,31-18-701 (173.441a),EXCEED RADIATION LEVEL ALLOWED FOR TRANSPORT,18,701,,173.441a,CT,TRF,MF,300.00,300.00,NON-NRVC,CLSACOSTS,,N,370.00,M,,,2020.07.01,9999.12.31
Title:  31,31-18-701 (173.441b),EXCEED RADIATION LEVEL FOR EXCLUSIVE USE,18,701,,173.441b,CT,TRF,MF,300.00,300.00,NON-NRVC,CLSACOSTS,,N,370.00,M,,,2020.07.01,9999.12.31
Title:  31,31-18-701 (173.441c),NO EXCLUSIVE USE INSTRUCTIONS,18,701,,173.441c,CT,TRF,MF,300.00,300.00,NON-NRVC,CLSACOSTS,,N,370.00,M,,,2020.07.01,9999.12.31
Title:  31,31-18-701 (173.442b1),EXTERNAL TEMPERATURE OF PKG EXCEEDS 50 DEG CELCIUS,18,701,,173.442b1,CT,TRF,MF,300.00,300.00,NON-NRVC,CLSACOSTS,,N,370.00,M,,,2020.07.01,9999.12.31
Title:  31,31-18-701 (173.442b2),EXTERNAL TEMPERATURE OF PKG EXCEEDS 85 DEG CELCIUS,18,701,,173.442b2,CT,TRF,MF,300.00,300.00,NON-NRVC,CLSACOSTS,,N,370.00,M,,,2020.07.01,9999.12.31
Title:  31,31-18-701 (173.443a),RADIOACTIVE CONTAMINATION EXCEEDS LIMITS,18,701,,173.443a,CT,TRF,MF,300.00,300.00,NON-NRVC,CLSACOSTS,,N,370.00,M,,,2020.07.01,9999.12.31
Title:  31,31-18-701 (173.447),RAM TRANSPORT STORAGE VIOLATION,18,701,,173.447,CT,TRF,MF,300.00,300.00,NON-NRVC,CLSACOSTS,,N,370.00,M,,,2020.07.01,9999.12.31
Title:  31,31-18-701 (173.448),GEN RAM TRANSPORT REQMTS,18,701,,173.448,CT,TRF,MF,300.00,300.00,NON-NRVC,CLSACOSTS,,N,370.00,M,,,2020.07.01,9999.12.31
Title:  31,31-18-701 (173.54),"FORBIDDEN EXPLOSIVES, OFFERING OR TRANSPORTING",18,701,,173.54,CT,TRF,MF,300.00,300.00,NON-NRVC,CLSACOSTS,,N,370.00,M,,,2020.07.01,9999.12.31
Title:  31,31-18-701 (173.60),GEN PKG'G REQMTS EXPLOSIVES,18,701,,173.60,CT,TRF,MF,300.00,300.00,NON-NRVC,CLSACOSTS,,N,370.00,M,,,2020.07.01,9999.12.31
Title:  31,31-18-701 (173.9b),FAIL TO WARN OF FUMIGATED LOAD,18,701,,173.9b,CT,TRF,MF,300.00,300.00,NON-NRVC,CLSACOSTS,,N,370.00,M,,,2020.07.01,9999.12.31
Title:  31,31-18-701 (177.800d),UNNEC DELAY IN HM TRANSPORT TO DESTINATION,18,701,,177.800d,CT,TRF,MF,300.00,300.00,NON-NRVC,CLSACOSTS,,N,370.00,M,,,2020.07.01,9999.12.31
Title:  31,31-18-701 (177.801),"ACCEPT, TRANSPORT HM NOT PREPARED PROPER",18,701,,177.801,CT,TRF,MF,300.00,300.00,NON-NRVC,CLSACOSTS,,N,370.00,M,,,2020.07.01,9999.12.31
Title:  31,31-18-701 (177.804),FAIL TO COMPLY W/ FMCSR,18,701,,177.804,CT,TRF,MF,300.00,300.00,NON-NRVC,CLSACOSTS,,N,370.00,M,,,2020.07.01,9999.12.31
Title:  31,31-18-701 (177.816),DRIVER TRAINING REQMTS,18,701,,177.816,CT,TRF,MF,300.00,300.00,NON-NRVC,CLSACOSTS,,N,370.00,M,,,2020.07.01,9999.12.31
Title:  31,31-18-701 (177.817a),NO SHIPPING PAPERS (CARRIER),18,701,,177.817a,CT,TRF,MF,300.00,300.00,NON-NRVC,CLSACOSTS,,N,370.00,M,,,2020.07.01,9999.12.31
Title:  31,31-18-701 (177.817b),SHIPPER CERT'N MISSING (WHEN REQ'D),18,701,,177.817b,CT,TRF,MF,300.00,300.00,NON-NRVC,CLSACOSTS,,N,370.00,M,,,2020.07.01,9999.12.31
Title:  31,31-18-701 (177.817e),SHIPPING PAPER ACCESSIBILITY,18,701,,177.817e,CT,TRF,MF,300.00,300.00,NON-NRVC,CLSACOSTS,,N,370.00,M,,,2020.07.01,9999.12.31
Title:  31,31-18-701 (177.823a),"NO PLACARDS, MRK'GS WHEN REQ'D",18,701,,177.823a,CT,TRF,MF,300.00,300.00,NON-NRVC,CLSACOSTS,,N,370.00,M,,,2020.07.01,9999.12.31
Title:  31,31-18-701 (177.834a),PKG NOT SECURE IN VEH,18,701,,177.834a,CT,TRF,MF,300.00,300.00,NON-NRVC,CLSACOSTS,,N,370.00,M,,,2020.07.01,9999.12.31
Title:  31,31-18-701 (177.834b),PKG NOT LOADED ACCORDING TO ORIENTATION MRKS,18,701,,177.834b,CT,TRF,MF,300.00,300.00,NON-NRVC,CLSACOSTS,,N,370.00,M,,,2020.07.01,9999.12.31
Title:  31,31-18-701 (177.834c),SMOKE WHILE LOADING OR UNLOADING,18,701,,177.834c,CT,TRF,MF,300.00,300.00,NON-NRVC,CLSACOSTS,,N,370.00,M,,,2020.07.01,9999.12.31
Title:  31,31-18-701 (177.834i),ATTEND CARGO TANK (LOAD OR UNLOAD),18,701,,177.834i,CT,TRF,MF,300.00,300.00,NON-NRVC,CLSACOSTS,,N,370.00,M,,,2020.07.01,9999.12.31
Title:  31,31-18-701 (177.834j),MANHOLES & VALVES NOT CLOSED OR LEAK FREE,18,701,,177.834j,CT,TRF,MF,300.00,300.00,NON-NRVC,CLSACOSTS,,N,370.00,M,,,2020.07.01,9999.12.31
Title:  31,31-18-701 (177.834m1),SECURE SPECIFICATION 106A OR 110A TANKS,18,701,,177.834m1,CT,TRF,MF,300.00,300.00,NON-NRVC,CLSACOSTS,,N,370.00,M,,,2020.07.01,9999.12.31
Title:  31,31-18-701 (177.834n),"IMPROPER SPECIFICATION 56, 57, IM 101 & IM 102",18,701,,177.834n,CT,TRF,MF,300.00,300.00,NON-NRVC,CLSACOSTS,,N,370.00,M,,,2020.07.01,9999.12.31
Title:  31,31-18-701 (177.835),IMPROPERLY TRANSPORT EXPLOSIVES (CLASS 1),18,701,,177.835,CT,TRF,MF,300.00,300.00,NON-NRVC,CLSACOSTS,,N,370.00,M,,,2020.07.01,9999.12.31
Title:  31,31-18-701 (177.835a),"LOAD, UNLOAD CLASS 1 W/ ENGINE RUNNING",18,701,,177.835a,CT,TRF,MF,300.00,300.00,NON-NRVC,CLSACOSTS,,N,370.00,M,,,2020.07.01,9999.12.31
Title:  31,31-18-701 (177.835c),TRANSPORT CLASS 1 IN COMBO VEHS,18,701,,177.835c,CT,TRF,MF,300.00,300.00,NON-NRVC,CLSACOSTS,,N,370.00,M,,,2020.07.01,9999.12.31
Title:  31,31-18-701 (177.835j),TRANSFER CLASS 1 MATERIALS EN ROUTE,18,701,,177.835j,CT,TRF,MF,300.00,300.00,NON-NRVC,CLSACOSTS,,N,370.00,M,,,2020.07.01,9999.12.31
Title:  31,31-18-701 (177.837),IMPROPERLY TRANSPORT CLASS 3,18,701,,177.837,CT,TRF,MF,300.00,300.00,NON-NRVC,CLSACOSTS,,N,370.00,M,,,2020.07.01,9999.12.31
Title:  31,31-18-701 (177.838),"IMPROPERLY TRANSPORT CLASS 4, 5 OR DIV 4.2",18,701,,177.838,CT,TRF,MF,300.00,300.00,NON-NRVC,CLSACOSTS,,N,370.00,M,,,2020.07.01,9999.12.31
Title:  31,31-18-701 (177.839),IMPROPERLY TRANSPORT CLASS 8,18,701,,177.839,CT,TRF,MF,300.00,300.00,NON-NRVC,CLSACOSTS,,N,370.00,M,,,2020.07.01,9999.12.31
Title:  31,31-18-701 (177.840),IMPROPERLY TRANSPORT CLASS 2,18,701,,177.840,CT,TRF,MF,300.00,300.00,NON-NRVC,CLSACOSTS,,N,370.00,M,,,2020.07.01,9999.12.31
Title:  31,31-18-701 (177.840g),DISCHARGE VALVE NOT CLOSED IN TRANSIT CLASS 2,18,701,,177.840g,CT,TRF,MF,300.00,300.00,NON-NRVC,CLSACOSTS,,N,370.00,M,,,2020.07.01,9999.12.31
Title:  31,31-18-701 (177.840o),FAIL TO TEST OFF-TRUCK REMOTE SHUTOFF DEVICE,18,701,,177.840o,CT,TRF,MF,300.00,300.00,NON-NRVC,CLSACOSTS,,N,370.00,M,,,2020.07.01,9999.12.31
Title:  31,31-18-701 (177.840s),FAIL TO POSSESS REMOTE SHUTOFF WHEN UNLOADING,18,701,,177.840s,CT,TRF,MF,300.00,300.00,NON-NRVC,CLSACOSTS,,N,370.00,M,,,2020.07.01,9999.12.31
Title:  31,31-18-701 (177.841),IMPROPERLY TRANSPORT DIV 6.1 OR 2.3,18,701,,177.841,CT,TRF,MF,300.00,300.00,NON-NRVC,CLSACOSTS,,N,370.00,M,,,2020.07.01,9999.12.31
Title:  31,31-18-701 (177.841e),POISON LABEL LOADED W/ FOODSTUFFS,18,701,,177.841e,CT,TRF,MF,300.00,300.00,NON-NRVC,CLSACOSTS,,N,370.00,M,,,2020.07.01,9999.12.31
Title:  31,31-18-701 (177.842a),TOTAL TI EXCEEDS 50 NON-EXCLUSIVE USE,18,701,,177.842a,CT,TRF,MF,300.00,300.00,NON-NRVC,CLSACOSTS,,N,370.00,M,,,2020.07.01,9999.12.31
Title:  31,31-18-701 (177.842b),DISTANCE FROM PKG TO PERSON RAM,18,701,,177.842b,CT,TRF,MF,300.00,300.00,NON-NRVC,CLSACOSTS,,N,370.00,M,,,2020.07.01,9999.12.31
Title:  31,31-18-701 (177.842d),BLOCK & BRACE RAM PKGS,18,701,,177.842d,CT,TRF,MF,300.00,300.00,NON-NRVC,CLSACOSTS,,N,370.00,M,,,2020.07.01,9999.12.31
Title:  31,31-18-701 (177.848d),"PROHIB'D LOAD, TRANSPORT, STORAGE COMBO",18,701,,177.848d,CT,TRF,MF,300.00,300.00,NON-NRVC,CLSACOSTS,,N,370.00,M,,,2020.07.01,9999.12.31
Title:  31,31-18-701 (177.848e3),DID NOT SEGREGATE HAZARDOUS MATERIALS,18,701,,177.848e3,CT,TRF,MF,200.00,200.00,NON-NRVC,CLSACOSTS,,N,270.00,M,,,2020.07.01,9999.12.31
Title:  31,31-18-701 (177.848e3) OOS,DID NOT SEGREGATE HAZARDOUS MATERIALS,18,701,,177.848e3 OOS,CT,TRF,MF,300.00,300.00,NON-NRVC,CLSACOSTS,,N,370.00,M,,,2020.07.01,9999.12.31
Title:  31,31-18-701 (177.848f),CLASS 1 LOAD SEPARATION OR SEGREGATION,18,701,,177.848f,CT,TRF,MF,300.00,300.00,NON-NRVC,CLSACOSTS,,N,370.00,M,,,2020.07.01,9999.12.31
Title:  31,31-18-701 (177.870),PROHIB'D HM ON PASSENGER CARRYING VEH,18,701,,177.870,CT,TRF,MF,300.00,300.00,NON-NRVC,CLSACOSTS,,N,370.00,M,,,2020.07.01,9999.12.31
Title:  31,31-18-701 (178.245-4),DOT 51 INTEGRITY & SECUREMT,18,701,,178.245-4,CT,TRF,MF,300.00,300.00,NON-NRVC,CLSACOSTS,,N,370.00,M,,,2020.07.01,9999.12.31
Title:  31,31-18-701 (178.245-5),DOT 51 VALVE PROTECTION,18,701,,178.245-5,CT,TRF,MF,300.00,300.00,NON-NRVC,CLSACOSTS,,N,370.00,M,,,2020.07.01,9999.12.31
Title:  31,31-18-701 (178.245-6a),DOT 51 NAME PLATE MRK'GS,18,701,,178.245-6a,CT,TRF,MF,300.00,300.00,NON-NRVC,CLSACOSTS,,N,370.00,M,,,2020.07.01,9999.12.31
Title:  31,31-18-701 (178.245-6b),TANK OUTLETS NOT MRK'D,18,701,,178.245-6b,CT,TRF,MF,300.00,300.00,NON-NRVC,CLSACOSTS,,N,370.00,M,,,2020.07.01,9999.12.31
Title:  31,31-18-701 (178.255-14),DOT 60 ID PLATE,18,701,,178.255-14,CT,TRF,MF,300.00,300.00,NON-NRVC,CLSACOSTS,,N,370.00,M,,,2020.07.01,9999.12.31
Title:  31,31-18-701 (178.255-4),DOT 60 MANHOLE,18,701,,178.255-4,CT,TRF,MF,300.00,300.00,NON-NRVC,CLSACOSTS,,N,370.00,M,,,2020.07.01,9999.12.31
Title:  31,31-18-701 (178.255-7),DOT 60 VALVE PROTECTION,18,701,,178.255-7,CT,TRF,MF,300.00,300.00,NON-NRVC,CLSACOSTS,,N,370.00,M,,,2020.07.01,9999.12.31
Title:  31,31-18-701 (178.255-8),DOT 60 PRESSURE RELIEF,18,701,,178.255-8,CT,TRF,MF,300.00,300.00,NON-NRVC,CLSACOSTS,,N,370.00,M,,,2020.07.01,9999.12.31
Title:  31,31-18-701 (178.270-1),IM 101/102 GEN DESIGN,18,701,,178.270-1,CT,TRF,MF,300.00,300.00,NON-NRVC,CLSACOSTS,,N,370.00,M,,,2020.07.01,9999.12.31
Title:  31,31-18-701 (178.270-11d1),IM 101/102 PRESSURE RELIEF,18,701,,178.270-11d1,CT,TRF,MF,300.00,300.00,NON-NRVC,CLSACOSTS,,N,370.00,M,,,2020.07.01,9999.12.31
Title:  31,31-18-701 (178.270-14),IM 101/102 SPECIFICATION PLATE,18,701,,178.270-14,CT,TRF,MF,300.00,300.00,NON-NRVC,CLSACOSTS,,N,370.00,M,,,2020.07.01,9999.12.31
Title:  31,31-18-701 (178.270-4),STRUCTURAL INTEGRITY,18,701,,178.270-4,CT,TRF,MF,300.00,300.00,NON-NRVC,CLSACOSTS,,N,370.00,M,,,2020.07.01,9999.12.31
Title:  31,31-18-701 (178.270-6),IM 101/102 FRAMES,18,701,,178.270-6,CT,TRF,MF,300.00,300.00,NON-NRVC,CLSACOSTS,,N,370.00,M,,,2020.07.01,9999.12.31
Title:  31,31-18-701 (178.270-8),IM 101/102 VALVE PROTECTION,18,701,,178.270-8,CT,TRF,MF,300.00,300.00,NON-NRVC,CLSACOSTS,,N,370.00,M,,,2020.07.01,9999.12.31
Title:  31,31-18-701 (178.270-9),IM 101/102 MANHOLES,18,701,,178.270-9,CT,TRF,MF,300.00,300.00,NON-NRVC,CLSACOSTS,,N,370.00,M,,,2020.07.01,9999.12.31
Title:  31,31-18-701 (178.336-10),MC330 PROTECT FITTINGS ,18,701,,178.336-10,CT,TRF,MF,300.00,300.00,NON-NRVC,CLSACOSTS,,N,370.00,M,,,2020.07.01,9999.12.31
Title:  31,31-18-701 (178.336-13),MC330 ANCHOR TANK ,18,701,,178.336-13,CT,TRF,MF,300.00,300.00,NON-NRVC,CLSACOSTS,,N,370.00,M,,,2020.07.01,9999.12.31
Title:  31,31-18-701 (178.336-17),MC330 METAL ID PLATE MRK'G,18,701,,178.336-17,CT,TRF,MF,300.00,300.00,NON-NRVC,CLSACOSTS,,N,370.00,M,,,2020.07.01,9999.12.31
Title:  31,31-18-701 (178.336-17a),MC330 CERT'N PLATE,18,701,,178.336-17a,CT,TRF,MF,300.00,300.00,NON-NRVC,CLSACOSTS,,N,370.00,M,,,2020.07.01,9999.12.31
Title:  31,31-18-701 (178.336-9a),MC330 SAFETY RELIEF DEVICES,18,701,,178.336-9a,CT,TRF,MF,300.00,300.00,NON-NRVC,CLSACOSTS,,N,370.00,M,,,2020.07.01,9999.12.31
Title:  31,31-18-701 (178.336-9c),MC330 MRK INLETS/OUTLETS,18,701,,178.336-9c,CT,TRF,MF,300.00,300.00,NON-NRVC,CLSACOSTS,,N,370.00,M,,,2020.07.01,9999.12.31
Title:  31,31-18-701 (178.337-10a),MC331 PROTECT FITTINGS,18,701,,178.337-10a,CT,TRF,MF,300.00,300.00,NON-NRVC,CLSACOSTS,,N,370.00,M,,,2020.07.01,9999.12.31
Title:  31,31-18-701 (178.337-11a2),MC331 INTERNAL VALVE,18,701,,178.337-11a2,CT,TRF,MF,300.00,300.00,NON-NRVC,CLSACOSTS,,N,370.00,M,,,2020.07.01,9999.12.31
Title:  31,31-18-701 (178.337-11a2i),MC331 REMOTE CONTR >3500 GAL,18,701,,178.337-11a2i,CT,TRF,MF,300.00,300.00,NON-NRVC,CLSACOSTS,,N,370.00,M,,,2020.07.01,9999.12.31
Title:  31,31-18-701 (178.337-11a2ii),MC331 REMOTE CONTR <3500 GAL,18,701,,178.337-11a2ii,CT,TRF,MF,300.00,300.00,NON-NRVC,CLSACOSTS,,N,370.00,M,,,2020.07.01,9999.12.31
Title:  31,31-18-701 (178.337-13),MC331 SUPPORT & ANCHOR,18,701,,178.337-13,CT,TRF,MF,300.00,300.00,NON-NRVC,CLSACOSTS,,N,370.00,M,,,2020.07.01,9999.12.31
Title:  31,31-18-701 (178.337-17a),MC331 METAL ID PLATE MISSING,18,701,,178.337-17a,CT,TRF,MF,300.00,300.00,NON-NRVC,CLSACOSTS,,N,370.00,M,,,2020.07.01,9999.12.31
Title:  31,31-18-701 (178.337-8a),MC331 OUTLETS GEN REQMTS,18,701,,178.337-8a,CT,TRF,MF,300.00,300.00,NON-NRVC,CLSACOSTS,,N,370.00,M,,,2020.07.01,9999.12.31
Title:  31,31-18-701 (178.337-8a2),MC331 OUTLETS,18,701,,178.337-8a2,CT,TRF,MF,300.00,300.00,NON-NRVC,CLSACOSTS,,N,370.00,M,,,2020.07.01,9999.12.31
Title:  31,31-18-701 (178.337-8a3),MC331 INTERNAL OR BACK FLOW VALVE,18,701,,178.337-8a3,CT,TRF,MF,300.00,300.00,NON-NRVC,CLSACOSTS,,N,370.00,M,,,2020.07.01,9999.12.31
Title:  31,31-18-701 (178.337-8a4i),MC331 REMOTE CLOSURE DEVICE >3500 GAL,18,701,,178.337-8a4i,CT,TRF,MF,300.00,300.00,NON-NRVC,CLSACOSTS,,N,370.00,M,,,2020.07.01,9999.12.31
Title:  31,31-18-701 (178.337-8a4ii),MC331 REMOTE CLOSURE DEVICE <3500 GAL,18,701,,178.337-8a4ii,CT,TRF,MF,300.00,300.00,NON-NRVC,CLSACOSTS,,N,370.00,M,,,2020.07.01,9999.12.31
Title:  31,31-18-701 (178.337-9),MC331 PRESSURE RELIEF DEVICES,18,701,,178.337-9,CT,TRF,MF,300.00,300.00,NON-NRVC,CLSACOSTS,,N,370.00,M,,,2020.07.01,9999.12.31
Title:  31,31-18-701 (178.337-9c),MC331 MRK INLETS/OUTLETS,18,701,,178.337-9c,CT,TRF,MF,300.00,300.00,NON-NRVC,CLSACOSTS,,N,370.00,M,,,2020.07.01,9999.12.31
Title:  31,31-18-701 (178.338-10a),MC338 PROTECT FITTINGS ,18,701,,178.338-10a,CT,TRF,MF,300.00,300.00,NON-NRVC,CLSACOSTS,,N,370.00,M,,,2020.07.01,9999.12.31
Title:  31,31-18-701 (178.338-10c),MC338 REAR END PROTECTION,18,701,,178.338-10c,CT,TRF,MF,300.00,300.00,NON-NRVC,CLSACOSTS,,N,370.00,M,,,2020.07.01,9999.12.31
Title:  31,31-18-701 (178.338-11b),MC338 MANUAL SHUTOFF VALVE,18,701,,178.338-11b,CT,TRF,MF,300.00,300.00,NON-NRVC,CLSACOSTS,,N,370.00,M,,,2020.07.01,9999.12.31
Title:  31,31-18-701 (178.338-12),MC338 SHEAR SECTION,18,701,,178.338-12,CT,TRF,MF,300.00,300.00,NON-NRVC,CLSACOSTS,,N,370.00,M,,,2020.07.01,9999.12.31
Title:  31,31-18-701 (178.338-13),MC338 SUPPORT & ANCHOR ,18,701,,178.338-13,CT,TRF,MF,300.00,300.00,NON-NRVC,CLSACOSTS,,N,370.00,M,,,2020.07.01,9999.12.31
Title:  31,31-18-701 (178.338-18a),"MC338 NAME PLATE, SPECIFICATION PLATE MISSING",18,701,,178.338-18a,CT,TRF,MF,300.00,300.00,NON-NRVC,CLSACOSTS,,N,370.00,M,,,2020.07.01,9999.12.31
Title:  31,31-18-701 (178.338-6),MC338 MANHOLE,18,701,,178.338-6,CT,TRF,MF,300.00,300.00,NON-NRVC,CLSACOSTS,,N,370.00,M,,,2020.07.01,9999.12.31
Title:  31,31-18-701 (178.338-8),MC338 PRESSURE RELIEF DEVICES,18,701,,178.338-8,CT,TRF,MF,300.00,300.00,NON-NRVC,CLSACOSTS,,N,370.00,M,,,2020.07.01,9999.12.31
Title:  31,31-18-701 (178.340-10b),MC306/307/312 METAL CERT'N PLATE MISSING,18,701,,178.340-10b,CT,TRF,MF,300.00,300.00,NON-NRVC,CLSACOSTS,,N,370.00,M,,,2020.07.01,9999.12.31
Title:  31,31-18-701 (178.340-7a),MC306/307/312 RING STIFFENERS,18,701,,178.340-7a,CT,TRF,MF,300.00,300.00,NON-NRVC,CLSACOSTS,,N,370.00,M,,,2020.07.01,9999.12.31
Title:  31,31-18-701 (178.340-7c),MC306/307/312 DOUBLE BULKHEAD DRAIN,18,701,,178.340-7c,CT,TRF,MF,300.00,300.00,NON-NRVC,CLSACOSTS,,N,370.00,M,,,2020.07.01,9999.12.31
Title:  31,31-18-701 (178.340-7d2),MC306/307/312 RING STIFFENER DRAIN HOLE,18,701,,178.340-7d2,CT,TRF,MF,300.00,300.00,NON-NRVC,CLSACOSTS,,N,370.00,M,,,2020.07.01,9999.12.31
Title:  31,31-18-701 (178.340-8a),MC306/307/312 APPURTENANCES ATTACHMT,18,701,,178.340-8a,CT,TRF,MF,300.00,300.00,NON-NRVC,CLSACOSTS,,N,370.00,M,,,2020.07.01,9999.12.31
Title:  31,31-18-701 (178.340-8b),MC306/307/312 REAR END PROTECTION,18,701,,178.340-8b,CT,TRF,MF,300.00,300.00,NON-NRVC,CLSACOSTS,,N,370.00,M,,,2020.07.01,9999.12.31
Title:  31,31-18-701 (178.340-8c),MC306/307/312 OVERTURN PROTECTION,18,701,,178.340-8c,CT,TRF,MF,300.00,300.00,NON-NRVC,CLSACOSTS,,N,370.00,M,,,2020.07.01,9999.12.31
Title:  31,31-18-701 (178.340-8d1),MC306/307/312 PIPING PROTECTION,18,701,,178.340-8d1,CT,TRF,MF,300.00,300.00,NON-NRVC,CLSACOSTS,,N,370.00,M,,,2020.07.01,9999.12.31
Title:  31,31-18-701 (178.340-8d2),MC306/307/312 MIN RD CLEARANCE,18,701,,178.340-8d2,CT,TRF,MF,300.00,300.00,NON-NRVC,CLSACOSTS,,N,370.00,M,,,2020.07.01,9999.12.31
Title:  31,31-18-701 (178.341-3a),MC306 NO MANHOLE CLOSURE,18,701,,178.341-3a,CT,TRF,MF,300.00,300.00,NON-NRVC,CLSACOSTS,,N,370.00,M,,,2020.07.01,9999.12.31
Title:  31,31-18-701 (178.341-4),MC306 VENTING,18,701,,178.341-4,CT,TRF,MF,300.00,300.00,NON-NRVC,CLSACOSTS,,N,370.00,M,,,2020.07.01,9999.12.31
Title:  31,31-18-701 (178.341-4d1),MC306 INADEQUATE EMERGENCY VENTING,18,701,,178.341-4d1,CT,TRF,MF,300.00,300.00,NON-NRVC,CLSACOSTS,,N,370.00,M,,,2020.07.01,9999.12.31
Title:  31,31-18-701 (178.341-4d2),MC306 PRESSURE ACTIVATED VENTS,18,701,,178.341-4d2,CT,TRF,MF,300.00,300.00,NON-NRVC,CLSACOSTS,,N,370.00,M,,,2020.07.01,9999.12.31
Title:  31,31-18-701 (178.341-4d3),MC306 NO FUSIBLE VENTING,18,701,,178.341-4d3,CT,TRF,MF,300.00,300.00,NON-NRVC,CLSACOSTS,,N,370.00,M,,,2020.07.01,9999.12.31
Title:  31,31-18-701 (178.341-5a),MC306 INTERNAL VALVES,18,701,,178.341-5a,CT,TRF,MF,300.00,300.00,NON-NRVC,CLSACOSTS,,N,370.00,M,,,2020.07.01,9999.12.31
Title:  31,31-18-701 (178.341-5a1),MC306 HEAT ACTUATED SAFETY,18,701,,178.341-5a1,CT,TRF,MF,300.00,300.00,NON-NRVC,CLSACOSTS,,N,370.00,M,,,2020.07.01,9999.12.31
Title:  31,31-18-701 (178.341-5a2),MC306 REMOTE CONTR SHUTOFF,18,701,,178.341-5a2,CT,TRF,MF,300.00,300.00,NON-NRVC,CLSACOSTS,,N,370.00,M,,,2020.07.01,9999.12.31
Title:  31,31-18-701 (178.342-3),MC307 MANHOLE CLOSURE,18,701,,178.342-3,CT,TRF,MF,300.00,300.00,NON-NRVC,CLSACOSTS,,N,370.00,M,,,2020.07.01,9999.12.31
Title:  31,31-18-701 (178.342-4),MC307 VENTING,18,701,,178.342-4,CT,TRF,MF,300.00,300.00,NON-NRVC,CLSACOSTS,,N,370.00,M,,,2020.07.01,9999.12.31
Title:  31,31-18-701 (178.342-4b),INADEQUATE VENTING CAPACITY,18,701,,178.342-4b,CT,TRF,MF,300.00,300.00,NON-NRVC,CLSACOSTS,,N,370.00,M,,,2020.07.01,9999.12.31
Title:  31,31-18-701 (178.342-5a),MC307 INTERNAL VALVE,18,701,,178.342-5a,CT,TRF,MF,300.00,300.00,NON-NRVC,CLSACOSTS,,N,370.00,M,,,2020.07.01,9999.12.31
Title:  31,31-18-701 (178.342-5a1),MC307 HEAT ACTUATED SAFETY,18,701,,178.342-5a1,CT,TRF,MF,300.00,300.00,NON-NRVC,CLSACOSTS,,N,370.00,M,,,2020.07.01,9999.12.31
Title:  31,31-18-701 (178.342-5a2),MC307 REMOTE CONTR SHUTOFF,18,701,,178.342-5a2,CT,TRF,MF,300.00,300.00,NON-NRVC,CLSACOSTS,,N,370.00,M,,,2020.07.01,9999.12.31
Title:  31,31-18-701 (178.343-3),MC312 MANHOLE CLOSURE,18,701,,178.343-3,CT,TRF,MF,300.00,300.00,NON-NRVC,CLSACOSTS,,N,370.00,M,,,2020.07.01,9999.12.31
Title:  31,31-18-701 (178.343-4),MC312 VENTING (SHOW CALCULATIONS),18,701,,178.343-4,CT,TRF,MF,300.00,300.00,NON-NRVC,CLSACOSTS,,N,370.00,M,,,2020.07.01,9999.12.31
Title:  31,31-18-701 (178.343-5a),MC312 TOP OUTLET &  VALVE,18,701,,178.343-5a,CT,TRF,MF,300.00,300.00,NON-NRVC,CLSACOSTS,,N,370.00,M,,,2020.07.01,9999.12.31
Title:  31,31-18-701 (178.343-5b1),MC312 BOTTOM VALVE/PIPING PROTECTION,18,701,,178.343-5b1,CT,TRF,MF,300.00,300.00,NON-NRVC,CLSACOSTS,,N,370.00,M,,,2020.07.01,9999.12.31
Title:  31,31-18-701 (178.345-10),DOT 406/407/412 PRESSURE RELIEF,18,701,,178.345-10,CT,TRF,MF,300.00,300.00,NON-NRVC,CLSACOSTS,,N,370.00,M,,,2020.07.01,9999.12.31
Title:  31,31-18-701 (178.345-11b),DOT 406/407/412 TANK VALVES,18,701,,178.345-11b,CT,TRF,MF,300.00,300.00,NON-NRVC,CLSACOSTS,,N,370.00,M,,,2020.07.01,9999.12.31
Title:  31,31-18-701 (178.345-11b1),DOT 406/407/412 REMOTE CONTR,18,701,,178.345-11b1,CT,TRF,MF,300.00,300.00,NON-NRVC,CLSACOSTS,,N,370.00,M,,,2020.07.01,9999.12.31
Title:  31,31-18-701 (178.345-14b),DOT 406/407/412 NAME PLATE,18,701,,178.345-14b,CT,TRF,MF,300.00,300.00,NON-NRVC,CLSACOSTS,,N,370.00,M,,,2020.07.01,9999.12.31
Title:  31,31-18-701 (178.345-14c),DOT 406/407/412 SPECIFICATION PLATE,18,701,,178.345-14c,CT,TRF,MF,300.00,300.00,NON-NRVC,CLSACOSTS,,N,370.00,M,,,2020.07.01,9999.12.31
Title:  31,31-18-701 (178.345-1i2),DOT 406/407/412 DOUBLE BULKHEAD DRAIN,18,701,,178.345-1i2,CT,TRF,MF,300.00,300.00,NON-NRVC,CLSACOSTS,,N,370.00,M,,,2020.07.01,9999.12.31
Title:  31,31-18-701 (178.345-5d),DOT 406/407/412 MANHOLE SECUREMT,18,701,,178.345-5d,CT,TRF,MF,300.00,300.00,NON-NRVC,CLSACOSTS,,N,370.00,M,,,2020.07.01,9999.12.31
Title:  31,31-18-701 (178.345-5e),DOT 406/407/412 MANHOLE MRK'G,18,701,,178.345-5e,CT,TRF,MF,300.00,300.00,NON-NRVC,CLSACOSTS,,N,370.00,M,,,2020.07.01,9999.12.31
Title:  31,31-18-701 (178.345-6),DOT 406/407/412 SUPPORT & ANCHOR,18,701,,178.345-6,CT,TRF,MF,300.00,300.00,NON-NRVC,CLSACOSTS,,N,370.00,M,,,2020.07.01,9999.12.31
Title:  31,31-18-701 (178.345-7d4),DOT 406/407/412 RING STIFFENER DRAIN,18,701,,178.345-7d4,CT,TRF,MF,300.00,300.00,NON-NRVC,CLSACOSTS,,N,370.00,M,,,2020.07.01,9999.12.31
Title:  31,31-18-701 (178.345-8a),DOT 406/407/412 ACCIDENT PROTECTION,18,701,,178.345-8a,CT,TRF,MF,300.00,300.00,NON-NRVC,CLSACOSTS,,N,370.00,M,,,2020.07.01,9999.12.31
Title:  31,31-18-701 (178.345-8a5),DOT 406/407/412 MIN RD CLEARANCE,18,701,,178.345-8a5,CT,TRF,MF,300.00,300.00,NON-NRVC,CLSACOSTS,,N,370.00,M,,,2020.07.01,9999.12.31
Title:  31,31-18-701 (178.345-8b),DOT 406/407/412 BOTTOM DAMAGE PROTECTION,18,701,,178.345-8b,CT,TRF,MF,300.00,300.00,NON-NRVC,CLSACOSTS,,N,370.00,M,,,2020.07.01,9999.12.31
Title:  31,31-18-701 (178.345-8c),DOT 406/407/412 ROLLOVER DAMAGE PROTECTION,18,701,,178.345-8c,CT,TRF,MF,300.00,300.00,NON-NRVC,CLSACOSTS,,N,370.00,M,,,2020.07.01,9999.12.31
Title:  31,31-18-701 (178.345-8d),DOT 406/407/412 REAR END PROTECTION,18,701,,178.345-8d,CT,TRF,MF,300.00,300.00,NON-NRVC,CLSACOSTS,,N,370.00,M,,,2020.07.01,9999.12.31
Title:  31,31-18-701 (178.703a),IBC MANUFAC'R MRK'GS,18,701,,178.703a,CT,TRF,MF,300.00,300.00,NON-NRVC,CLSACOSTS,,N,370.00,M,,,2020.07.01,9999.12.31
Title:  31,31-18-701 (178.703b),IBC ADD'L MRK'GS,18,701,,178.703b,CT,TRF,MF,300.00,300.00,NON-NRVC,CLSACOSTS,,N,370.00,M,,,2020.07.01,9999.12.31
Title:  31,31-18-701 (178.704e),IBC BOTTOM DISCHARGE VALVE PROTECTION,18,701,,178.704e,CT,TRF,MF,300.00,300.00,NON-NRVC,CLSACOSTS,,N,370.00,M,,,2020.07.01,9999.12.31
Title:  31,31-18-701 (179.300-12),DOT106/110AW PROTECT FITTINGS,18,701,,179.300-12,CT,TRF,MF,300.00,300.00,NON-NRVC,CLSACOSTS,,N,370.00,M,,,2020.07.01,9999.12.31
Title:  31,31-18-701 (179.300-13),DOT106/110AW VENTING & VALVES,18,701,,179.300-13,CT,TRF,MF,300.00,300.00,NON-NRVC,CLSACOSTS,,N,370.00,M,,,2020.07.01,9999.12.31
Title:  31,31-18-701 (179.300-15),DOT106/110AW SAFETY RELIEF DEVICES,18,701,,179.300-15,CT,TRF,MF,300.00,300.00,NON-NRVC,CLSACOSTS,,N,370.00,M,,,2020.07.01,9999.12.31
Title:  31,31-18-701 (179.300-18),DOT106/110AW STAMP TANKS,18,701,,179.300-18,CT,TRF,MF,300.00,300.00,NON-NRVC,CLSACOSTS,,N,370.00,M,,,2020.07.01,9999.12.31
Title:  31,31-18-701 (180.205c),PERIODIC REQUALIFICATION OF CYLINDERS,18,701,,180.205c,CT,TRF,MF,300.00,300.00,NON-NRVC,CLSACOSTS,,N,370.00,M,,,2020.07.01,9999.12.31
Title:  31,31-18-701 (180.213d),REQUALIFICATION MRK'GS,18,701,,180.213d,CT,TRF,MF,300.00,300.00,NON-NRVC,CLSACOSTS,,N,370.00,M,,,2020.07.01,9999.12.31
Title:  31,31-18-701 (180.352b),IBC RETEST OR INSPECTION,18,701,,180.352b,CT,TRF,MF,300.00,300.00,NON-NRVC,CLSACOSTS,,N,370.00,M,,,2020.07.01,9999.12.31
Title:  31,31-18-701 (180.352e),IBC RETEST DATE MRK'G,18,701,,180.352e,CT,TRF,MF,300.00,300.00,NON-NRVC,CLSACOSTS,,N,370.00,M,,,2020.07.01,9999.12.31
Title:  31,31-18-701 (180.405b),CARGO TANK SPECIFICATIONS,18,701,,180.405b,CT,TRF,MF,300.00,300.00,NON-NRVC,CLSACOSTS,,N,370.00,M,,,2020.07.01,9999.12.31
Title:  31,31-18-701 (180.405j),CARGO TANK W/DRAWAL CERT'N,18,701,,180.405j,CT,TRF,MF,300.00,300.00,NON-NRVC,CLSACOSTS,,N,370.00,M,,,2020.07.01,9999.12.31
Title:  31,31-18-701 (180.415b),CARGO TANK TEST OR INSPECTION MRK'GS,18,701,,180.415b,CT,TRF,MF,300.00,300.00,NON-NRVC,CLSACOSTS,,N,370.00,M,,,2020.07.01,9999.12.31
Title:  31,31-18-701 (180.605),PERIODIC TESTING OF PORTABLE TANKS,18,701,,180.605,CT,TRF,MF,300.00,300.00,NON-NRVC,CLSACOSTS,,N,370.00,M,,,2020.07.01,9999.12.31
Title:  31,31-18-701 (180.605k),TEST DATE MRK'G,18,701,,180.605k,CT,TRF,MF,300.00,300.00,NON-NRVC,CLSACOSTS,,N,370.00,M,,,2020.07.01,9999.12.31
Title:  31,31-18-701 (365.511),FAIL TO DISPL CVSA: MEX CARRIER W/PERM AUTH,18,701,,365.511,CT,TRF,MF,30.00,30.00,NON-NRVC,CLSACOSTS,,N,100.00,M,,,2020.07.01,9999.12.31
Title:  31,31-18-701 (365.511) OOS,FAIL TO DISPL CVSA: MEX CARRIER W/PERM AUTH,18,701,,365.511 OOS,CT,TRF,MF,130.00,130.00,NON-NRVC,CLSACOSTS,,N,200.00,M,,,2020.07.01,9999.12.31
Title:  31,31-18-701 (374.201a),FAIL TO PROHIB SMOKING,18,701,,374.201a,CT,TRF,MF,30.00,30.00,CRIMINAL,CLSACOSTS,,N,100.00,M,,,2020.07.01,9999.12.31
Title:  31,31-18-701 (374.201a) OOS,FAIL TO PROHIB SMOKING,18,701,,374.201a OOS,CT,TRF,MF,130.00,130.00,NON-NRVC,CLSACOSTS,,N,200.00,M,,,2020.07.01,9999.12.31
Title:  31,31-18-701 (374.201b),FAIL TO POST OR ANNOUNCE NO SMOKING REG,18,701,,374.201b,CT,TRF,MF,30.00,30.00,NON-NRVC,CLSACOSTS,,N,100.00,M,,,2020.07.01,9999.12.31
Title:  31,31-18-701 (374.201b) OOS,FAIL TO POST OR ANNOUNCE NO SMOKING REG,18,701,,374.201b OOS,CT,TRF,MF,130.00,130.00,NON-NRVC,CLSACOSTS,,N,200.00,M,,,2020.07.01,9999.12.31
Title:  31,31-18-701 (374.313a),FAIL TO MAINTAIN A REASONABLE TEMPERATURE,18,701,,374.313a,CT,TRF,MF,30.00,30.00,NON-NRVC,CLSACOSTS,,N,100.00,M,,,2020.07.01,9999.12.31
Title:  31,31-18-701 (374.313a) OOS,FAIL TO MAINTAIN A REASONABLE TEMPERATURE,18,701,,374.313a OOS,CT,TRF,MF,130.00,130.00,NON-NRVC,CLSACOSTS,,N,200.00,M,,,2020.07.01,9999.12.31
Title:  31,31-18-701 (374.313b),BUS: FAIL TO MAINTAIN RESTROOM,18,701,,374.313b,CT,TRF,MF,30.00,30.00,NON-NRVC,CLSACOSTS,,N,100.00,M,,,2020.07.01,9999.12.31
Title:  31,31-18-701 (374.313b) OOS,BUS: FAIL TO MAINTAIN RESTROOM,18,701,,374.313b OOS,CT,TRF,MF,130.00,130.00,NON-NRVC,CLSACOSTS,,N,200.00,M,,,2020.07.01,9999.12.31
Title:  31,31-18-701 (374.313c),BUS: NOT MAINTAINED IN CLEAN WORKING ORD,18,701,,374.313c,CT,TRF,MF,30.00,30.00,NON-NRVC,CLSACOSTS,,N,100.00,M,,,2020.07.01,9999.12.31
Title:  31,31-18-701 (374.313c) OOS,BUS: NOT MAINTAINED IN CLEAN WORKING ORD,18,701,,374.313c OOS,CT,TRF,MF,130.00,130.00,NON-NRVC,CLSACOSTS,,N,200.00,M,,,2020.07.01,9999.12.31
Title:  31,31-18-701 (374.317),FAIL TO PROVIDE BUS/ DRIVER ID TO PASSENGERS,18,701,,374.317,CT,TRF,MF,30.00,30.00,NON-NRVC,CLSACOSTS,,N,100.00,M,,,2020.07.01,9999.12.31
Title:  31,31-18-701 (374.317) OOS,FAIL TO PROVIDE BUS/ DRIVER ID TO PASSENGERS,18,701,,374.317 OOS,CT,TRF,MF,130.00,130.00,NON-NRVC,CLSACOSTS,,N,200.00,M,,,2020.07.01,9999.12.31
Title:  31,31-18-701 (376.11),GENERAL LEASING REQUIREMENTS,18,701,,376.11,CT,TRF,MF,30.00,30.00,CRIMINAL,CLSACOSTS,,N,100.00,M,,,2020.07.01,9999.12.31
Title:  31,31-18-701 (382.105),EMPLOYER SHALL ENSURE ALCOHOL OR CONTR SUB TESTING COMPLIANCE,18,701,,382.105,CT,TRF,MF,30.00,30.00,NON-NRVC,CLSACOSTS,,N,100.00,M,,,2020.07.01,9999.12.31
Title:  31,31-18-701 (382.109),PREEMPTION OF STATE AND LOCAL LAWS,18,701,,382.109,CT,TRF,MF,30.00,30.00,NON-NRVC,CLSACOSTS,,N,100.00,M,,,2020.07.01,9999.12.31
Title:  31,31-18-701 (382.111),OTHER REQ IMPOSED BY EMPLOYERS,18,701,,382.111,CT,TRF,MF,30.00,30.00,NON-NRVC,CLSACOSTS,,N,100.00,M,,,2020.07.01,9999.12.31
Title:  31,31-18-701 (382.113),REQ FOR NOTICE,18,701,,382.113,CT,TRF,MF,30.00,30.00,NON-NRVC,CLSACOSTS,,N,100.00,M,,,2020.07.01,9999.12.31
Title:  31,31-18-701 (382.115),START DATE FOR TESTING PROGRAMS,18,701,,382.115,CT,TRF,MF,30.00,30.00,NON-NRVC,CLSACOSTS,,N,100.00,M,,,2020.07.01,9999.12.31
Title:  31,31-18-701 (382.115a),FAIL TO INITIATE DRUG/ALCOHOL TESTING PROGRAM,18,701,,382.115a,CT,TRF,MF,30.00,30.00,NON-NRVC,CLSACOSTS,,N,100.00,M,,,2020.07.01,9999.12.31
Title:  31,31-18-701 (382.115a) OOS,FAIL TO INITIATE DRUG/ALCOHOL TESTING PROGRAM,18,701,,382.115a OOS,CT,TRF,MF,300.00,300.00,NON-NRVC,CLSACOSTS,,N,370.00,M,,,2020.07.01,9999.12.31
Title:  31,31-18-701 (382.117),PUBLIC INTEREST EXCLUSION,18,701,,382.117,CT,TRF,MF,30.00,30.00,NON-NRVC,CLSACOSTS,,N,100.00,M,,,2020.07.01,9999.12.31
Title:  31,31-18-701 (382.119),STAND-DOWN WAIVER PROVISION,18,701,,382.119,CT,TRF,MF,30.00,30.00,NON-NRVC,CLSACOSTS,,N,100.00,M,,,2020.07.01,9999.12.31
Title:  31,31-18-701 (382.121),EMPLOYEE ADMIT USE OF ALCOHOL OR CONTROLLED SUB,18,701,,382.121,CT,TRF,MF,30.00,30.00,NON-NRVC,CLSACOSTS,,N,100.00,M,,,2020.07.01,9999.12.31
Title:  31,31-18-701 (382.201),ALCOHOL CONCENTRATION,18,701,,382.201,CT,TRF,MF,30.00,30.00,NON-NRVC,CLSACOSTS,,N,100.00,M,,,2020.07.01,9999.12.31
Title:  31,31-18-701 (382.201) OOS,ALCOHOL CONCENTRATION,18,701,,382.201 OOS,CT,TRF,MF,300.00,300.00,NON-NRVC,CLSACOSTS,,N,370.00,M,,,2020.07.01,9999.12.31
Title:  31,31-18-701 (382.205),ON-DUTY USE,18,701,,382.205,CT,TRF,MF,30.00,30.00,NON-NRVC,CLSACOSTS,,N,100.00,M,,,2020.07.01,9999.12.31
Title:  31,31-18-701 (382.207),PRE-DUTY USE,18,701,,382.207,CT,TRF,MF,30.00,30.00,NON-NRVC,CLSACOSTS,,N,100.00,M,,,2020.07.01,9999.12.31
Title:  31,31-18-701 (382.209),USE FOLOWING AN ACCIDENT,18,701,,382.209,CT,TRF,MF,30.00,30.00,NON-NRVC,CLSACOSTS,,N,100.00,M,,,2020.07.01,9999.12.31
Title:  31,31-18-701 (382.211),REFUSAL TO SUBMIT TO TEST,18,701,,382.211,CT,TRF,MF,30.00,30.00,NON-NRVC,CLSACOSTS,,N,100.00,M,,,2020.07.01,9999.12.31
Title:  31,31-18-701 (382.211) OOS,REFUSAL TO SUBMIT TO TEST,18,701,,382.211 OOS,CT,TRF,MF,300.00,300.00,NON-NRVC,CLSACOSTS,,N,370.00,M,,,2020.07.01,9999.12.31
Title:  31,31-18-701 (382.213),CONTROLLED SUBSTANCES USE,18,701,,382.213,CT,TRF,MF,30.00,30.00,NON-NRVC,CLSACOSTS,,N,100.00,M,,,2020.07.01,9999.12.31
Title:  31,31-18-701 (382.213b) OOS,USING DRIVER KNOWN TO HAVE USED CONTROLLED SUBSTANCE,18,701,,382.213b OOS,CT,TRF,MF,300.00,300.00,NON-NRVC,CLSACOSTS,,N,370.00,M,,,2020.07.01,9999.12.31
Title:  31,31-18-701 (382.215),CONTROLLED SUBSTANCES TESTING,18,701,,382.215,CT,TRF,MF,30.00,30.00,NON-NRVC,CLSACOSTS,,N,100.00,M,,,2020.07.01,9999.12.31
Title:  31,31-18-701 (382.215) OOS,CONTROLLED SUBSTANCES TESTING,18,701,,382.215 OOS,CT,TRF,MF,300.00,300.00,NON-NRVC,CLSACOSTS,,N,370.00,M,,,2020.07.01,9999.12.31
Title:  31,31-18-701 (382.301),PRE-EMPLOYMENT TESTING,18,701,,382.301,CT,TRF,MF,30.00,30.00,NON-NRVC,CLSACOSTS,,N,100.00,M,,,2020.07.01,9999.12.31
Title:  31,31-18-701 (382.301a) OOS,USING DRIVER BEFORE RECEIVING NEG PRE-EMPLOY CONTROLLED SUBSTANCE TEST,18,701,,382.301a OOS,CT,TRF,MF,300.00,300.00,NON-NRVC,CLSACOSTS,,N,370.00,M,,,2020.07.01,9999.12.31
Title:  31,31-18-701 (382.303),POST-ACCIDENT TESTING,18,701,,382.303,CT,TRF,MF,30.00,30.00,NON-NRVC,CLSACOSTS,,N,100.00,M,,,2020.07.01,9999.12.31
Title:  31,31-18-701 (382.303a) OOS,FAIL TO CONDUCT ALCOHOL TEST ON DRIVER POST CRASH,18,701,,382.303a OOS,CT,TRF,MF,300.00,300.00,NON-NRVC,CLSACOSTS,,N,370.00,M,,,2020.07.01,9999.12.31
Title:  31,31-18-701 (382.303b) OOS,FAIL TO CONDUCT CONTROLLED SUBSTANCE TEST ON DRIVER POST CRASH,18,701,,382.303b OOS,CT,TRF,MF,300.00,300.00,NON-NRVC,CLSACOSTS,,N,370.00,M,,,2020.07.01,9999.12.31
Title:  31,31-18-701 (382.305),RANDOM TESTING,18,701,,382.305,CT,TRF,MF,30.00,30.00,NON-NRVC,CLSACOSTS,,N,100.00,M,,,2020.07.01,9999.12.31
Title:  31,31-18-701 (382.305) OOS,RANDOM TESTING,18,701,,382.305 OOS,CT,TRF,MF,300.00,300.00,NON-NRVC,CLSACOSTS,,N,370.00,M,,,2020.07.01,9999.12.31
Title:  31,31-18-701 (382.307),REASONABLE SUSPICION TESTING,18,701,,382.307,CT,TRF,MF,30.00,30.00,NON-NRVC,CLSACOSTS,,N,100.00,M,,,2020.07.01,9999.12.31
Title:  31,31-18-701 (382.309),RETURN-TO-DUTY TESTING,18,701,,382.309,CT,TRF,MF,30.00,30.00,NON-NRVC,CLSACOSTS,,N,100.00,M,,,2020.07.01,9999.12.31
Title:  31,31-18-701 (382.309a) OOS,USING DRIVER W/O RETURN TO DUTY ALCOHOL TEST,18,701,,382.309a OOS,CT,TRF,MF,300.00,300.00,NON-NRVC,CLSACOSTS,,N,370.00,M,,,2020.07.01,9999.12.31
Title:  31,31-18-701 (382.309b) OOS,USING DRIVER W/O RETURN TO DUTY CONTROLLED SUBSTANCE TEST,18,701,,382.309b OOS,CT,TRF,MF,300.00,300.00,NON-NRVC,CLSACOSTS,,N,370.00,M,,,2020.07.01,9999.12.31
Title:  31,31-18-701 (382.311),FOLLOW-UP TESTING,18,701,,382.311,CT,TRF,MF,30.00,30.00,NON-NRVC,CLSACOSTS,,N,100.00,M,,,2020.07.01,9999.12.31
Title:  31,31-18-701 (382.401a),EMPLOYER SHALL MAINTAIN ALCOHOL MISUSE/CONTR SUB PREVENTION PROGRAM RECORDS,18,701,,382.401a,CT,TRF,MF,30.00,30.00,NON-NRVC,CLSACOSTS,,N,100.00,M,,,2020.07.01,9999.12.31
Title:  31,31-18-701 (382.401b1i),MIN RETENTION 5 YRS: ALCOHOL TEST RESULTS 0.02 OR GREATER,18,701,,382.401b1i,CT,TRF,MF,30.00,30.00,NON-NRVC,CLSACOSTS,,N,100.00,M,,,2020.07.01,9999.12.31
Title:  31,31-18-701 (382.401b1ii),MIN RETENTION 5 YRS: POSITIVE CONTR SUB TEST RESULTS,18,701,,382.401b1ii,CT,TRF,MF,30.00,30.00,NON-NRVC,CLSACOSTS,,N,100.00,M,,,2020.07.01,9999.12.31
Title:  31,31-18-701 (382.401b1iii),MIN RETENTION 5 YRS: ALCOHOL/CONTR SUB TEST REFUSALS,18,701,,382.401b1iii,CT,TRF,MF,30.00,30.00,NON-NRVC,CLSACOSTS,,N,100.00,M,,,2020.07.01,9999.12.31
Title:  31,31-18-701 (382.401b1iv),MIN RETENTION 5 YRS: EVALUATION AND REFERRALS,18,701,,382.401b1iv,CT,TRF,MF,30.00,30.00,NON-NRVC,CLSACOSTS,,N,100.00,M,,,2020.07.01,9999.12.31
Title:  31,31-18-701 (382.401b1v),MIN RETENTION 5 YRS: CALIBRATION DOCUMENTATION,18,701,,382.401b1v,CT,TRF,MF,30.00,30.00,NON-NRVC,CLSACOSTS,,N,100.00,M,,,2020.07.01,9999.12.31
Title:  31,31-18-701 (382.401b1vi),MIN RETENTION 5 YRS: ALCOHOL AND CONTR SUB ADMIN OF TESTING PROGRAMS,18,701,,382.401b1vi,CT,TRF,MF,30.00,30.00,NON-NRVC,CLSACOSTS,,N,100.00,M,,,2020.07.01,9999.12.31
Title:  31,31-18-701 (382.401b1vii),MIN RETENTION 5 YRS: ANNUAL CALENDAR YR SUMMARY REQ'D,18,701,,382.401b1vii,CT,TRF,MF,30.00,30.00,NON-NRVC,CLSACOSTS,,N,100.00,M,,,2020.07.01,9999.12.31
Title:  31,31-18-701 (382.401b2),MIN RETENTION 2 YRS: ALCOHOL CONTR SUB COLLECTION PROCESS RECORDS,18,701,,382.401b2,CT,TRF,MF,30.00,30.00,NON-NRVC,CLSACOSTS,,N,100.00,M,,,2020.07.01,9999.12.31
Title:  31,31-18-701 (382.401b3),MIN RETENTION 1 YR: NEGATIVE AND CANCELED CONTR SUB TEST RESULTS,18,701,,382.401b3,CT,TRF,MF,30.00,30.00,NON-NRVC,CLSACOSTS,,N,100.00,M,,,2020.07.01,9999.12.31
Title:  31,31-18-701 (382.401b4),INDEFINITE PERIOD: EDUCATION RECORDS,18,701,,382.401b4,CT,TRF,MF,30.00,30.00,NON-NRVC,CLSACOSTS,,N,100.00,M,,,2020.07.01,9999.12.31
Title:  31,31-18-701 (382.401c1i),RECORD TYPES: COLLECTION LOG BOOKS,18,701,,382.401c1i,CT,TRF,MF,30.00,30.00,NON-NRVC,CLSACOSTS,,N,100.00,M,,,2020.07.01,9999.12.31
Title:  31,31-18-701 (382.401c1ii),RECORD TYPES: RANDOM SELECTION PROCESS DOCS,18,701,,382.401c1ii,CT,TRF,MF,30.00,30.00,NON-NRVC,CLSACOSTS,,N,100.00,M,,,2020.07.01,9999.12.31
Title:  31,31-18-701 (382.401c1iii),RECORD TYPES: EVIDENTIAL BREATH TESTING DEVICE CALIBRATION,18,701,,382.401c1iii,CT,TRF,MF,30.00,30.00,NON-NRVC,CLSACOSTS,,N,100.00,M,,,2020.07.01,9999.12.31
Title:  31,31-18-701 (382.401c1iv),RECORD TYPES: BREATH ALCOHOL TECH TRAINING,18,701,,382.401c1iv,CT,TRF,MF,30.00,30.00,NON-NRVC,CLSACOSTS,,N,100.00,M,,,2020.07.01,9999.12.31
Title:  31,31-18-701 (382.401c1v),RECORD TYPES: DECISIONS TO ADMINISTER REASONABLE SUSPICION ALCOHOL/CONTR SUB TESTS,18,701,,382.401c1v,CT,TRF,MF,30.00,30.00,NON-NRVC,CLSACOSTS,,N,100.00,M,,,2020.07.01,9999.12.31
Title:  31,31-18-701 (382.401c1vi),RECORD TYPES: DECISIONS ON POST-ACCIDENT TESTS,18,701,,382.401c1vi,CT,TRF,MF,30.00,30.00,NON-NRVC,CLSACOSTS,,N,100.00,M,,,2020.07.01,9999.12.31
Title:  31,31-18-701 (382.401c1vii),RECORD TYPES: ANNUAL CALENDAR YR SUMMARY,18,701,,382.401c1vii,CT,TRF,MF,30.00,30.00,NON-NRVC,CLSACOSTS,,N,100.00,M,,,2020.07.01,9999.12.31
Title:  31,31-18-701 (382.401c2i),RECORD TYPES: EMPLOYER'S COPY ALCOHOL TEST FORM INCLUDING RESULTS,18,701,,382.401c2i,CT,TRF,MF,30.00,30.00,NON-NRVC,CLSACOSTS,,N,100.00,M,,,2020.07.01,9999.12.31
